Department family,Entity,Date,Expense type,Expense area,Supplier,Transaction number,Amount,Description,,
MOJ,LAA,11/8/2017,EXP - PURCHASE OF GOODS/SERVICES - OFFICE RELATED - Reprographics,ISD Management and Admin.,WILLIAMS LEA LTD,MOJ-LAA17100002,68106.7,Printing Costs,,
MOJ,LAA,11/8/2017,EXP - PURCHASE OF GOODS/SERVICES - OTHER TRAVEL - UK Other,Centralised Costs,REDFERN TRAVEL LTD,4633,55695.4,Travel Costs,,
MOJ,LAA,11/8/2017,EXP - PURCHASE OF GOODS/SERVICES - OTHER TRAVEL - UK Other,Financial Management,REDFERN TRAVEL LTD,DM3005A,-28987.48,Travel Costs,,
MOJ,LAA,11/10/2017,EXP - PURCHASE OF GOODS/SERVICES - ICT OUTSOURCING & MAINT./SUPPORT - Licences,ISD Management and Admin.,TRUSTMARQUE SOLUTIONS LTD,2264913,27082.98,IT Costs,,
MOJ,LAA,11/10/2017,EXP - PURCHASE OF GOODS/SERVICES - ICT OUTSOURCING & MAINT./SUPPORT - Other,ATOS Managed Service,ATOS IT SERVICES UK LTD,55842496435,40344.22,IT Costs,,
MOJ,LAA,11/10/2017,EXP - PURCHASE OF GOODS/SERVICES - OTHER - Translation / Interpreting Services,Central Funds,THEBIGWORD INTERPRETING SERVICES LTD,90100520,716267.62,Translation / Interpreting Services Costs,,
MOJ,LAA,11/14/2017,EXP - PURCHASE OF GOODS/SERVICES - ICT OUTSOURCING & MAINT./SUPPORT - Other,Contract Management - General,SOLIRIUS CONSULTING LTD,616-LAA-002,64882.66,IT Costs,,
MOJ,LAA,11/14/2017,EXP - PURCHASE OF GOODS/SERVICES - ICT OUTSOURCING & MAINT./SUPPORT - Other,Contract Management - General,SOLIRIUS CONSULTING LTD,648-LAA-003,48272.4,IT Costs,,
MOJ,LAA,11/14/2017,EXP - PURCHASE OF GOODS/SERVICES - OTHER TRAVEL - UK Other,Centralised Costs,REDFERN TRAVEL LTD,4843,67534.84,Travel Costs,,
MOJ,LAA,11/20/2017,EXP - PURCHASE OF GOODS/SERVICES - OTHER PROFESSIONAL SERVICES - LEGAL SERVICES - THIRD PARTY LEGAL COSTS,National Courts Core Team NCT,ROSSENDALES LTD,40085,91864.17,Fund Costs,,
MOJ,LAA,11/20/2017,EXP - PURCHASE OF GOODS/SERVICES - OTHER PROFESSIONAL SERVICES - LEGAL SERVICES - THIRD PARTY LEGAL COSTS,National Courts Core Team NCT,ROSSENDALES LTD,40086,56116.1,Fund Costs,,
MOJ,LAA,11/21/2017,EXP - PURCHASE OF GOODS/SERVICES - ICT OUTSOURCING & MAINT./SUPPORT - Licences,ISD Management and Admin.,INOVEM LTD,DINV-2508,34894.8,IT Costs,,
MOJ,LAA,11/22/2017,EXP - PURCHASE OF GOODS/SERVICES - OTHER - Translation / Interpreting Services,Central Funds,CLARION INTERPRETING LTD,52797,27189.25,Translation / Interpreting Services Costs,,
MOJ,LAA,11/23/2017,EXP - PURCHASE OF GOODS/SERVICES - OTHER - Translation / Interpreting Services,Central Funds,THEBIGWORD INTERPRETING SERVICES LTD,90102798,547020.7,Translation / Interpreting Services Costs,,
MOJ,LAA,11/29/2017,EXP - PURCHASE OF GOODS/SERVICES - ICT OUTSOURCING & MAINT./SUPPORT - Hosting,ISD Management and Admin.,REDCENTRIC SOLUTIONS LTD,232909,70252.56,IT Costs,,
MOJ,LAA,11/29/2017,EXP - PURCHASE OF GOODS/SERVICES - PURCHASE PRICE VARIANCE,Property Costs - Leeds,LONDON & SCOTTISH PROPERTY ASSET MANAGEMENT LTD,30960,57600,Property Costs,,
MOJ,LAA,11/29/2017,EXP - PURCHASE OF GOODS/SERVICES - PURCHASE PRICE VARIANCE,Property Costs - Leeds,LONDON & SCOTTISH PROPERTY ASSET MANAGEMENT LTD,30961,33796.4,Property Costs,,
MOJ,LAA,11/30/2017,EXP - PURCHASE OF GOODS/SERVICES - ICT OUTSOURCING & MAINT./SUPPORT - Hosting,Business Analyst,CARRENZA LTD,693005318,108626.4,IT Costs,,
MOJ,LAA,11/30/2017,EXP - PURCHASE OF GOODS/SERVICES - ICT OUTSOURCING & MAINT./SUPPORT - Hosting,Business Analyst,CARRENZA LTD,693005344,90892.8,IT Costs,,
MOJ,LAA,11/30/2017,EXP - PURCHASE OF GOODS/SERVICES - ICT OUTSOURCING & MAINT./SUPPORT - Hosting,Business Analyst,CARRENZA LTD,693005421,39960,IT Costs,,
MOJ,LAA,11/30/2017,EXP - PURCHASE OF GOODS/SERVICES - ICT OUTSOURCING & MAINT./SUPPORT - Hosting,ISD Management and Admin.,CARRENZA LTD,693005521,100331.41,IT Costs,,
MOJ,LAA,11/30/2017,EXP - PURCHASE OF GOODS/SERVICES - ICT OUTSOURCING & MAINT./SUPPORT - Hosting,ISD Management and Admin.,CARRENZA LTD,693005522,30240,IT Costs,,
MOJ,LAA,11/22/2017,Higher Crime,LEGAL AID FUND,A TOBY HEDWORTH QC,1352448:148440326,34078.58,Legal Aid Payment Higher Crime,,
MOJ,LAA,11/22/2017,Civil Representation,LEGAL AID FUND,A WILLIAM B EDIS,1353384:148452684,27177.5,Legal Aid Payment Civil Representation,,
MOJ,LAA,11/2/2017,Lower Crime,LEGAL AID FUND,ABBEY SOLICITORS,1336776:148326979,25200,Legal Aid Payment Lower Crime,,
MOJ,LAA,11/15/2017,Higher Crime,LEGAL AID FUND,ABBEY SOLICITORS,1348510:148409980,107574.07,Legal Aid Payment Higher Crime,,
MOJ,LAA,11/29/2017,Lower Crime,LEGAL AID FUND,ABBEY SOLICITORS,1357486:148516493,25200,Legal Aid Payment Lower Crime,,
MOJ,LAA,11/2/2017,Legal Help,LEGAL AID FUND,ABBOTSTONE LAW LLP,1337935:148325507,77058,Legal Aid Payment Legal Help,,
MOJ,LAA,11/29/2017,Legal Help,LEGAL AID FUND,ABBOTSTONE LAW LLP,1357676:148516182,67870,Legal Aid Payment Legal Help,,
MOJ,LAA,11/2/2017,Higher Crime,LEGAL AID FUND,ABR SOLICITORS,1339315:148327495,71545.9,Legal Aid Payment Higher Crime,,
MOJ,LAA,11/15/2017,Higher Crime,LEGAL AID FUND,ABR SOLICITORS,1344680:148394339,45747.97,Legal Aid Payment Higher Crime,,
MOJ,LAA,11/29/2017,Legal Help,LEGAL AID FUND,ABR SOLICITORS,1357124:148515796,27533,Legal Aid Payment Legal Help,,
MOJ,LAA,11/2/2017,Lower Crime,LEGAL AID FUND,ABV SOLICITORS,1339206:148327181,65000,Legal Aid Payment Lower Crime,,
MOJ,LAA,11/2/2017,Higher Crime,LEGAL AID FUND,ABV SOLICITORS,1339206:148342456,51218.88,Legal Aid Payment Higher Crime,,
MOJ,LAA,11/29/2017,Lower Crime,LEGAL AID FUND,ABV SOLICITORS,1357452:148516311,65000,Legal Aid Payment Lower Crime,,
MOJ,LAA,11/2/2017,Lower Crime,LEGAL AID FUND,ACA LAW LTD,1336813:148327120,40065,Legal Aid Payment Lower Crime,,
MOJ,LAA,11/2/2017,Higher Crime,LEGAL AID FUND,ACA LAW LTD,1336813:148339770,55622.8,Legal Aid Payment Higher Crime,,
MOJ,LAA,11/29/2017,Lower Crime,LEGAL AID FUND,ACA LAW LTD,1356524:148516870,48471,Legal Aid Payment Lower Crime,,
MOJ,LAA,11/29/2017,Lower Crime,LEGAL AID FUND,ACA LAW LTD,1356866:148483806,48655.97,Legal Aid Payment Lower Crime,,
MOJ,LAA,11/2/2017,Lower Crime,LEGAL AID FUND,ACHOM & PARTNERS,1336559:148326994,26372,Legal Aid Payment Lower Crime,,
MOJ,LAA,11/22/2017,Higher Crime,LEGAL AID FUND,ACHOM & PARTNERS,1352069:148449401,87602.34,Legal Aid Payment Higher Crime,,
MOJ,LAA,11/9/2017,Civil Representation,LEGAL AID FUND,ADAM J SMITH,1344286:2000000000004679,50090.05,Legal Aid Payment Civil Representation,,
MOJ,LAA,11/9/2017,Civil Representation,LEGAL AID FUND,ADAM J SMITH,1344286:3000000497480009RC,-29397.16,Legal Aid Payment Civil Representation,,
MOJ,LAA,11/9/2017,Civil Representation,LEGAL AID FUND,ADAM J SMITH,1344286:300000049748RC255,-41156.43,Legal Aid Payment Civil Representation,,
MOJ,LAA,11/29/2017,Higher Crime,LEGAL AID FUND,ADAM P P WISEMAN,1357075:148478257,48609.84,Legal Aid Payment Higher Crime,,
MOJ,LAA,11/15/2017,Higher Crime,LEGAL AID FUND,ADVICE WISE SOLICITORS LTD,1344704:148386811,52246.4,Legal Aid Payment Higher Crime,,
MOJ,LAA,11/22/2017,Civil Representation,LEGAL AID FUND,AITKEN HARTER,1351767:148446031,26984.02,Legal Aid Payment Civil Representation,,
MOJ,LAA,11/2/2017,Higher Crime,LEGAL AID FUND,ALAN HARRIS SOLICITORS LTD,1337001:148327584,31365.89,Legal Aid Payment Higher Crime,,
MOJ,LAA,11/29/2017,Legal Help,LEGAL AID FUND,ALASTAIR BATEMAN & CO,1356840:148515529,30103,Legal Aid Payment Legal Help,,
MOJ,LAA,11/2/2017,Civil Representation,LEGAL AID FUND,ALBIN & CO LTD,1336692:148306441,30439.36,Legal Aid Payment Civil Representation,,
MOJ,LAA,11/2/2017,Lower Crime,LEGAL AID FUND,ALBIN & CO LTD,1336692:148327142,45000,Legal Aid Payment Lower Crime,,
MOJ,LAA,11/2/2017,Higher Crime,LEGAL AID FUND,ALBIN & CO LTD,1336692:148327499,59338.93,Legal Aid Payment Higher Crime,,
MOJ,LAA,11/29/2017,Lower Crime,LEGAL AID FUND,ALBIN & CO LTD,1357497:148516534,45000,Legal Aid Payment Lower Crime,,
MOJ,LAA,11/2/2017,Lower Crime,LEGAL AID FUND,ALDERSON LAW LLP,1335385:148327044,30800,Legal Aid Payment Lower Crime,,
MOJ,LAA,11/29/2017,Lower Crime,LEGAL AID FUND,ALDERSON LAW LLP,1356905:148516636,30800,Legal Aid Payment Lower Crime,,
MOJ,LAA,11/29/2017,Civil Representation,LEGAL AID FUND,ALEXA R STOREY-REA,1358937:3000001692780026,27831.34,Legal Aid Payment Civil Representation,,
MOJ,LAA,11/29/2017,Higher Crime,LEGAL AID FUND,ALEXANDER BENNETT,1357290:148519133,107574.07,Legal Aid Payment Higher Crime,,
MOJ,LAA,11/15/2017,Higher Crime,LEGAL AID FUND,ALEXANDER J ROSE,1347272:148395038,45221.72,Legal Aid Payment Higher Crime,,
MOJ,LAA,11/22/2017,Higher Crime,LEGAL AID FUND,ALEXANDER JOHNSON,1353317:148441568,100257.31,Legal Aid Payment Higher Crime,,
MOJ,LAA,11/2/2017,Lower Crime,LEGAL AID FUND,ALLEN HOOLE SOLICITORS,1339140:148327080,35000,Legal Aid Payment Lower Crime,,
MOJ,LAA,11/2/2017,Lower Crime,LEGAL AID FUND,ALLEN HOOLE SOLICITORS,1339563:148327143,45000,Legal Aid Payment Lower Crime,,
MOJ,LAA,11/29/2017,Lower Crime,LEGAL AID FUND,ALLEN HOOLE SOLICITORS,1353757:148517657,25145,Legal Aid Payment Lower Crime,,
MOJ,LAA,11/29/2017,Lower Crime,LEGAL AID FUND,ALLEN HOOLE SOLICITORS,1355068:148516550,28600,Legal Aid Payment Lower Crime,,
MOJ,LAA,11/29/2017,Lower Crime,LEGAL AID FUND,ALLEN HOOLE SOLICITORS,1358626:148516558,41500,Legal Aid Payment Lower Crime,,
MOJ,LAA,11/2/2017,Higher Crime,LEGAL AID FUND,ALTAF SOLICITORS LTD,1339074:148303113,28813.57,Legal Aid Payment Higher Crime,,
MOJ,LAA,11/8/2017,Higher Crime,LEGAL AID FUND,ALTAF SOLICITORS LTD,1343500:148379913,49239.89,Legal Aid Payment Higher Crime,,
MOJ,LAA,11/29/2017,Civil Representation,LEGAL AID FUND,AMANDA GINSBURG,1358092:3000001432660012,70194.13,Legal Aid Payment Civil Representation,,
MOJ,LAA,11/2/2017,Lower Crime,LEGAL AID FUND,AMOSU ROBINSHAW LTD,1336833:148327027,29057,Legal Aid Payment Lower Crime,,
MOJ,LAA,11/29/2017,Higher Crime,LEGAL AID FUND,AMOSU ROBINSHAW LTD,1356546:148486722,30482.88,Legal Aid Payment Higher Crime,,
MOJ,LAA,11/15/2017,Higher Crime,LEGAL AID FUND,ANDREW J JEBB,1347022:148425247,47200.68,Legal Aid Payment Higher Crime,,
MOJ,LAA,11/22/2017,Higher Crime,LEGAL AID FUND,ANDREW SCOTT,1352410:148471994,35570.88,Legal Aid Payment Higher Crime,,
MOJ,LAA,11/2/2017,Lower Crime,LEGAL AID FUND,ANGELA PORTER SOLICITORS,1336754:148327048,31362,Legal Aid Payment Lower Crime,,
MOJ,LAA,11/29/2017,Lower Crime,LEGAL AID FUND,ANGELA PORTER SOLICITORS,1357464:148517164,47976,Legal Aid Payment Lower Crime,,
MOJ,LAA,11/2/2017,Higher Crime,LEGAL AID FUND,ANGELA TAYLOR CRIMINAL SOLICITORS,1336952:148328295,29664.55,Legal Aid Payment Higher Crime,,
MOJ,LAA,11/29/2017,Higher Crime,LEGAL AID FUND,ANGUS H MACDONALD,1354951:148512489,37200,Legal Aid Payment Higher Crime,,
MOJ,LAA,11/15/2017,Higher Crime,LEGAL AID FUND,ANNETTE P HENRY,1345299:148425648,45030.97,Legal Aid Payment Higher Crime,,
MOJ,LAA,11/7/2017,Civil Representation,LEGAL AID FUND,ANNIE WARD,1340180:147625529,-27303.05,Legal Aid Payment Civil Representation,,
MOJ,LAA,11/7/2017,Civil Representation,LEGAL AID FUND,ANNIE WARD,1340180:147625534,-27035.18,Legal Aid Payment Civil Representation,,
MOJ,LAA,11/7/2017,Civil Representation,LEGAL AID FUND,ANNIE WARD,1340180:2000000000004663,43270.59,Legal Aid Payment Civil Representation,,
MOJ,LAA,11/15/2017,Civil Representation,LEGAL AID FUND,ANTHONY COLLINS LLP,1346573:3000001631420048,26439.33,Legal Aid Payment Civil Representation,,
MOJ,LAA,11/29/2017,Higher Crime,LEGAL AID FUND,ANTHONY D E METZER QC,1356156:148524646,73920,Legal Aid Payment Higher Crime,,
MOJ,LAA,11/15/2017,Higher Crime,LEGAL AID FUND,ANTHONY D WILSON LTD,1344553:148425788,29229.12,Legal Aid Payment Higher Crime,,
MOJ,LAA,11/22/2017,Higher Crime,LEGAL AID FUND,ANTHONY J MORRIS,1353225:148441411,30006.48,Legal Aid Payment Higher Crime,,
MOJ,LAA,11/2/2017,Legal Help,LEGAL AID FUND,APFEL BELL & CO SOLICITORS,1338254:148325468,29254,Legal Aid Payment Legal Help,,
MOJ,LAA,11/2/2017,Higher Crime,LEGAL AID FUND,APPLEBY SHAW LTD,1337811:148327491,55138.68,Legal Aid Payment Higher Crime,,
MOJ,LAA,11/8/2017,Higher Crime,LEGAL AID FUND,APPLEBY SHAW LTD,1343987:148362258,73098.7,Legal Aid Payment Higher Crime,,
MOJ,LAA,11/2/2017,Legal Help,LEGAL AID FUND,APPLEMAN LEGAL,1337929:148325493,45963,Legal Aid Payment Legal Help,,
MOJ,LAA,11/29/2017,Legal Help,LEGAL AID FUND,APPLEMAN LEGAL,1357671:148516187,28584,Legal Aid Payment Legal Help,,
MOJ,LAA,11/8/2017,Higher Crime,LEGAL AID FUND,ARORA LODHI HEATH,1341249:148379677,107574.07,Legal Aid Payment Higher Crime,,
MOJ,LAA,11/2/2017,Higher Crime,LEGAL AID FUND,ASHRAF KHAN,1336165:148340181,36328.66,Legal Aid Payment Higher Crime,,
MOJ,LAA,11/2/2017,Civil Representation,LEGAL AID FUND,ASWINI WEERERATNE,1338435:148299452,36183.6,Legal Aid Payment Civil Representation,,
MOJ,LAA,11/29/2017,Lower Crime,LEGAL AID FUND,ATLEE CHUNG & CO,1354375:148489219,28479.66,Legal Aid Payment Lower Crime,,
MOJ,LAA,11/15/2017,Higher Crime,LEGAL AID FUND,AUSTIN & CARNLEY,1347676:148401327,53770.47,Legal Aid Payment Higher Crime,,
MOJ,LAA,11/22/2017,Higher Crime,LEGAL AID FUND,B H MOHAMMED,1353304:148441549,65996.94,Legal Aid Payment Higher Crime,,
MOJ,LAA,11/29/2017,Higher Crime,LEGAL AID FUND,B H MOHAMMED,1358299:148486666,76713.47,Legal Aid Payment Higher Crime,,
MOJ,LAA,11/2/2017,Lower Crime,LEGAL AID FUND,BAILEY NICHOLSON GRAYSON,1339375:148327085,35400,Legal Aid Payment Lower Crime,,
MOJ,LAA,11/29/2017,Lower Crime,LEGAL AID FUND,BAILEY NICHOLSON GRAYSON,1356244:148516283,35400,Legal Aid Payment Lower Crime,,
MOJ,LAA,11/29/2017,Lower Crime,LEGAL AID FUND,BAINS SOLICITORS,1356243:148516745,39687,Legal Aid Payment Lower Crime,,
MOJ,LAA,11/29/2017,Legal Help,LEGAL AID FUND,BANKFIELD HEATH SOLICITORS,1356416:148516006,27684,Legal Aid Payment Legal Help,,
MOJ,LAA,11/22/2017,Civil Representation,LEGAL AID FUND,BARBARA H KNOTT,1351057:3000001455090040,36551.26,Legal Aid Payment Civil Representation,,
MOJ,LAA,11/2/2017,Civil Representation,LEGAL AID FUND,BARBARA M HEWSON,1338393:148306608,-28202.05,Legal Aid Payment Civil Representation,,
MOJ,LAA,11/15/2017,Civil Representation,LEGAL AID FUND,BARBARA W CONNOLLY QC,1347771:3000000967730019,29451.6,Legal Aid Payment Civil Representation,,
MOJ,LAA,11/6/2017,Civil Representation,LEGAL AID FUND,BARCAN & KIRBY LLP,1340169:2000000000004638,40045.6,Legal Aid Payment Civil Representation,,
MOJ,LAA,11/6/2017,Civil Representation,LEGAL AID FUND,BARCAN & KIRBY LLP,1340170:2000000000004639,85614.59,Legal Aid Payment Civil Representation,,
MOJ,LAA,11/22/2017,Higher Crime,LEGAL AID FUND,BARK & CO,1349789:148456673,46085.15,Legal Aid Payment Higher Crime,,
MOJ,LAA,11/29/2017,Higher Crime,LEGAL AID FUND,BARK & CO,1354385:148501114,29692.74,Legal Aid Payment Higher Crime,,
MOJ,LAA,11/29/2017,Higher Crime,LEGAL AID FUND,BARK & CO,1354385:148518640,60282.37,Legal Aid Payment Higher Crime,,
MOJ,LAA,11/2/2017,Legal Help,LEGAL AID FUND,BARNES HARRILD & DYER,1335470:148325475,32476,Legal Aid Payment Legal Help,,
MOJ,LAA,11/2/2017,Legal Help,LEGAL AID FUND,BARNES HARRILD & DYER,1337311:148325455,25291,Legal Aid Payment Legal Help,,
MOJ,LAA,11/29/2017,Legal Help,LEGAL AID FUND,BARNES HARRILD & DYER,1356345:148516010,29214,Legal Aid Payment Legal Help,,
MOJ,LAA,11/29/2017,Legal Help,LEGAL AID FUND,BARNES HARRILD & DYER,1358700:148515591,42235,Legal Aid Payment Legal Help,,
MOJ,LAA,11/7/2017,Civil Representation,LEGAL AID FUND,BARRATT GOFF & TOMLINSON,1340182:2000000000004659,77342.05,Legal Aid Payment Civil Representation,,
MOJ,LAA,11/2/2017,Lower Crime,LEGAL AID FUND,BARRETT & NELLIGAN SOLICITORS LTD,1337200:148327002,27000,Legal Aid Payment Lower Crime,,
MOJ,LAA,11/15/2017,Higher Crime,LEGAL AID FUND,BARRETT & NELLIGAN SOLICITORS LTD,1347156:148409977,81558.11,Legal Aid Payment Higher Crime,,
MOJ,LAA,11/29/2017,Lower Crime,LEGAL AID FUND,BARRETT & NELLIGAN SOLICITORS LTD,1353962:148516480,27000,Legal Aid Payment Lower Crime,,
MOJ,LAA,11/15/2017,Higher Crime,LEGAL AID FUND,BARRIE A FAIRBAIRN LTD,1348522:148386411,32406.79,Legal Aid Payment Higher Crime,,
MOJ,LAA,11/29/2017,Higher Crime,LEGAL AID FUND,BARRY J SMITH,1354926:148525158,31410.56,Legal Aid Payment Higher Crime,,
MOJ,LAA,11/22/2017,Civil Representation,LEGAL AID FUND,BATES & MOUNTAIN,1350362:3000002080660024,25671.46,Legal Aid Payment Civil Representation,,
MOJ,LAA,11/2/2017,Lower Crime,LEGAL AID FUND,BAXTER BROWN MCARTHUR SOLICITORS,1339182:148327018,28700,Legal Aid Payment Lower Crime,,
MOJ,LAA,11/29/2017,Lower Crime,LEGAL AID FUND,BAXTER BROWN MCARTHUR SOLICITORS,1357429:148516301,28700,Legal Aid Payment Lower Crime,,
MOJ,LAA,11/2/2017,Lower Crime,LEGAL AID FUND,BDH SOLICITORS LTD,1337186:148327006,27400,Legal Aid Payment Lower Crime,,
MOJ,LAA,11/29/2017,Lower Crime,LEGAL AID FUND,BDH SOLICITORS LTD,1354044:148516474,27400,Legal Aid Payment Lower Crime,,
MOJ,LAA,11/8/2017,Higher Crime,LEGAL AID FUND,BELINDA KNIGHT SOLICITORS,1343327:148346317,68511.38,Legal Aid Payment Higher Crime,,
MOJ,LAA,11/2/2017,Lower Crime,LEGAL AID FUND,BELL LAMB & JOYNSON,1339437:148327015,28300,Legal Aid Payment Lower Crime,,
MOJ,LAA,11/29/2017,Lower Crime,LEGAL AID FUND,BELL LAMB & JOYNSON,1356589:148516495,28300,Legal Aid Payment Lower Crime,,
MOJ,LAA,11/2/2017,Lower Crime,LEGAL AID FUND,BELMORES SOLICITORS LTD,1339173:148327093,36726,Legal Aid Payment Lower Crime,,
MOJ,LAA,11/29/2017,Lower Crime,LEGAL AID FUND,BELMORES SOLICITORS LTD,1357514:148516790,39865,Legal Aid Payment Lower Crime,,
MOJ,LAA,11/29/2017,Higher Crime,LEGAL AID FUND,BENNETT & CO,1357289:148518594,81962.66,Legal Aid Payment Higher Crime,,
MOJ,LAA,11/15/2017,Civil Representation,LEGAL AID FUND,BERKSON FAMILY LAW SOLICITORS LTD,1346906:3000001022710036,31890.11,Legal Aid Payment Civil Representation,,
MOJ,LAA,11/15/2017,Higher Crime,LEGAL AID FUND,BERNARD G TETLOW QC,1345140:148395079,48453.5,Legal Aid Payment Higher Crime,,
MOJ,LAA,11/8/2017,Civil Representation,LEGAL AID FUND,BERRY & LAMBERTS SOLICITORS,1340863:148148263,97558.67,Legal Aid Payment Civil Representation,,
MOJ,LAA,11/8/2017,Civil Representation,LEGAL AID FUND,BERRY & LAMBERTS SOLICITORS,1340863:148214148,-32047.2,Legal Aid Payment Civil Representation,,
MOJ,LAA,11/8/2017,Civil Representation,LEGAL AID FUND,BERRY & LAMBERTS SOLICITORS,1340863:148214159,-32047.2,Legal Aid Payment Civil Representation,,
MOJ,LAA,11/8/2017,Civil Representation,LEGAL AID FUND,BERRY & LAMBERTS SOLICITORS,1340863:148214167,-32047.2,Legal Aid Payment Civil Representation,,
MOJ,LAA,11/29/2017,Civil Representation,LEGAL AID FUND,BERRY & LAMBERTS SOLICITORS,1357585:148482539,98348.87,Legal Aid Payment Civil Representation,,
MOJ,LAA,11/29/2017,Civil Representation,LEGAL AID FUND,BERRY & LAMBERTS SOLICITORS,1357585:148482540,-97558.67,Legal Aid Payment Civil Representation,,
MOJ,LAA,11/2/2017,Lower Crime,LEGAL AID FUND,BESWICKS SOLICITORS LLP,1339824:148327149,48684,Legal Aid Payment Lower Crime,,
MOJ,LAA,11/29/2017,Lower Crime,LEGAL AID FUND,BESWICKS SOLICITORS LLP,1358372:148517237,33269,Legal Aid Payment Lower Crime,,
MOJ,LAA,11/29/2017,Civil Representation,LEGAL AID FUND,BG SOLICITORS LLP,1355460:3000001096860031RC,-39938.4,Legal Aid Payment Civil Representation,,
MOJ,LAA,11/29/2017,Civil Representation,LEGAL AID FUND,BG SOLICITORS LLP,1355460:3000001096860043,55906.67,Legal Aid Payment Civil Representation,,
MOJ,LAA,11/2/2017,Lower Crime,LEGAL AID FUND,BHATIA BEST LTD,1339544:148327125,40900,Legal Aid Payment Lower Crime,,
MOJ,LAA,11/2/2017,Lower Crime,LEGAL AID FUND,BHATIA BEST LTD,1339545:148327051,31800,Legal Aid Payment Lower Crime,,
MOJ,LAA,11/2/2017,Lower Crime,LEGAL AID FUND,BHATIA BEST LTD,1339546:148327198,89800,Legal Aid Payment Lower Crime,,
MOJ,LAA,11/29/2017,Lower Crime,LEGAL AID FUND,BHATIA BEST LTD,1355462:148516231,40900,Legal Aid Payment Lower Crime,,
MOJ,LAA,11/29/2017,Lower Crime,LEGAL AID FUND,BHATIA BEST LTD,1355463:148516229,31800,Legal Aid Payment Lower Crime,,
MOJ,LAA,11/29/2017,Lower Crime,LEGAL AID FUND,BHATIA BEST LTD,1355464:148516227,89800,Legal Aid Payment Lower Crime,,
MOJ,LAA,11/6/2017,Civil Representation,LEGAL AID FUND,BHATT MURPHY SOLICITORS,1340160:2000000000004637,74176.73,Legal Aid Payment Civil Representation,,
MOJ,LAA,11/2/2017,Legal Help,LEGAL AID FUND,BINDMANS LLP,1336957:148325488,42900,Legal Aid Payment Legal Help,,
MOJ,LAA,11/2/2017,Higher Crime,LEGAL AID FUND,BINDMANS LLP,1336957:148340253,75245.41,Legal Aid Payment Higher Crime,,
MOJ,LAA,11/29/2017,Legal Help,LEGAL AID FUND,BINDMANS LLP,1356299:148515175,68300,Legal Aid Payment Legal Help,,
MOJ,LAA,11/29/2017,Higher Crime,LEGAL AID FUND,BIRCHALL BLACKBURN SOLICITORS,1354377:148500001,43972.44,Legal Aid Payment Higher Crime,,
MOJ,LAA,11/29/2017,Higher Crime,LEGAL AID FUND,BIRD & CO SOLICITORS LLP,1355413:148500344,38084.85,Legal Aid Payment Higher Crime,,
MOJ,LAA,11/2/2017,Lower Crime,LEGAL AID FUND,BIRDS SOLICITORS LTD,1336720:148327183,67500,Legal Aid Payment Lower Crime,,
MOJ,LAA,11/29/2017,Higher Crime,LEGAL AID FUND,BIRDS SOLICITORS LTD,1357092:148482165,49852.96,Legal Aid Payment Higher Crime,,
MOJ,LAA,11/29/2017,Lower Crime,LEGAL AID FUND,BIRDS SOLICITORS LTD,1357092:148516299,67500,Legal Aid Payment Lower Crime,,
MOJ,LAA,11/29/2017,Higher Crime,LEGAL AID FUND,BIRNBERG PEIRCE LTD,1356328:148519153,129088.88,Legal Aid Payment Higher Crime,,
MOJ,LAA,11/2/2017,Higher Crime,LEGAL AID FUND,BISHOP & LIGHT SOLICITORS LTD,1339912:148328442,59961.12,Legal Aid Payment Higher Crime,,
MOJ,LAA,11/29/2017,Legal Help,LEGAL AID FUND,BISON SOLICITORS LTD,1357681:148513251,90000,Legal Aid Payment Legal Help,,
MOJ,LAA,11/29/2017,Legal Help,LEGAL AID FUND,BISON SOLICITORS LTD,1357681:148513265,26746,Legal Aid Payment Legal Help,,
MOJ,LAA,11/22/2017,Higher Crime,LEGAL AID FUND,BJ & CO SOLICITORS LTD,1351321:148448739,37093.28,Legal Aid Payment Higher Crime,,
MOJ,LAA,11/29/2017,Higher Crime,LEGAL AID FUND,BJ & CO SOLICITORS LTD,1356836:148519187,107970.13,Legal Aid Payment Higher Crime,,
MOJ,LAA,11/2/2017,Lower Crime,LEGAL AID FUND,BLACKFORDS LLP,1339966:148327178,61643,Legal Aid Payment Lower Crime,,
MOJ,LAA,11/22/2017,Higher Crime,LEGAL AID FUND,BLACKFORDS LLP,1352811:148440767,32257.08,Legal Aid Payment Higher Crime,,
MOJ,LAA,11/22/2017,Higher Crime,LEGAL AID FUND,BLACKFORDS LLP,1352811:148441686,25830.11,Legal Aid Payment Higher Crime,,
MOJ,LAA,11/29/2017,Lower Crime,LEGAL AID FUND,BLACKFORDS LLP,1357565:148516842,54553,Legal Aid Payment Lower Crime,,
MOJ,LAA,11/2/2017,Lower Crime,LEGAL AID FUND,BLACKWELLS,1336741:148327161,54100,Legal Aid Payment Lower Crime,,
MOJ,LAA,11/29/2017,Lower Crime,LEGAL AID FUND,BLACKWELLS,1357111:148516426,54100,Legal Aid Payment Lower Crime,,
MOJ,LAA,11/9/2017,Civil Representation,LEGAL AID FUND,BLAKER SON & YOUNG,1344273:2000000000004707,28034.09,Legal Aid Payment Civil Representation,,
MOJ,LAA,11/2/2017,Lower Crime,LEGAL AID FUND,BOBBETTS MACKAN,1337384:148327131,42000,Legal Aid Payment Lower Crime,,
MOJ,LAA,11/29/2017,Lower Crime,LEGAL AID FUND,BOBBETTS MACKAN,1357920:148516548,42000,Legal Aid Payment Lower Crime,,
MOJ,LAA,11/2/2017,Lower Crime,LEGAL AID FUND,BOND JOSEPH,1336848:148327175,61011,Legal Aid Payment Lower Crime,,
MOJ,LAA,11/29/2017,Lower Crime,LEGAL AID FUND,BOND JOSEPH,1356844:148517129,50097,Legal Aid Payment Lower Crime,,
MOJ,LAA,11/8/2017,Civil Representation,LEGAL AID FUND,BOOTS STARKE GOACHER SOLICITORS,1342747:3000001105190033,41375.58,Legal Aid Payment Civil Representation,,
MOJ,LAA,11/15/2017,Civil Representation,LEGAL AID FUND,BORNEO MARTELL TURNER COULSTON LLP,1347713:3000001634420010,27748.15,Legal Aid Payment Civil Representation,,
MOJ,LAA,11/29/2017,Civil Representation,LEGAL AID FUND,BOWERMANS,1354030:141812652,25757.26,Legal Aid Payment Civil Representation,,
MOJ,LAA,11/29/2017,Civil Representation,LEGAL AID FUND,BOWERMANS,1354030:148454538,27032.4,Legal Aid Payment Civil Representation,,
MOJ,LAA,11/2/2017,Civil Representation,LEGAL AID FUND,BOYS & MAUGHAN,1337472:3000001123500006,30129.28,Legal Aid Payment Civil Representation,,
MOJ,LAA,11/22/2017,Civil Representation,LEGAL AID FUND,BPS SOLICITORS,1353062:148467728,25517.34,Legal Aid Payment Civil Representation,,
MOJ,LAA,11/29/2017,Lower Crime,LEGAL AID FUND,BRADY EASTWOOD PIERCE & STEWART,1357611:148516884,36248,Legal Aid Payment Lower Crime,,
MOJ,LAA,11/2/2017,Legal Help,LEGAL AID FUND,BRAITCH SOLICITORS (RB SOLICITORS),1336639:148325471,29646,Legal Aid Payment Legal Help,,
MOJ,LAA,11/29/2017,Legal Help,LEGAL AID FUND,BRAITCH SOLICITORS (RB SOLICITORS),1357829:148515314,33604,Legal Aid Payment Legal Help,,
MOJ,LAA,11/29/2017,Higher Crime,LEGAL AID FUND,BRETT WILSON LLP,1358966:148494071,105857.75,Legal Aid Payment Higher Crime,,
MOJ,LAA,11/2/2017,Lower Crime,LEGAL AID FUND,BREYDONS SOLICITORS LTD,1337917:148327124,40883,Legal Aid Payment Lower Crime,,
MOJ,LAA,11/29/2017,Lower Crime,LEGAL AID FUND,BREYDONS SOLICITORS LTD,1357657:148517348,43144,Legal Aid Payment Lower Crime,,
MOJ,LAA,11/2/2017,Legal Help,LEGAL AID FUND,BRIGHTON HOUSING TRUST,1336473:148325496,48007,Legal Aid Payment Legal Help,,
MOJ,LAA,11/6/2017,Civil Representation,LEGAL AID FUND,BRINDLEY TWIST TAFFT & JAMES LLP,1340161:2000000000004635,70070.4,Legal Aid Payment Civil Representation,,
MOJ,LAA,11/8/2017,Higher Crime,LEGAL AID FUND,BROOKLYN SOLICITORS LTD,1342908:148379793,-61983.97,Legal Aid Payment Higher Crime,,
MOJ,LAA,11/8/2017,Higher Crime,LEGAL AID FUND,BROOKLYN SOLICITORS LTD,1342908:148379801,61983.97,Legal Aid Payment Higher Crime,,
MOJ,LAA,11/29/2017,Higher Crime,LEGAL AID FUND,BROOKLYN SOLICITORS LTD,1356829:148478924,26699.41,Legal Aid Payment Higher Crime,,
MOJ,LAA,11/22/2017,Higher Crime,LEGAL AID FUND,BRYSONS SOLICITORS,1351316:148440925,33824.77,Legal Aid Payment Higher Crime,,
MOJ,LAA,11/15/2017,Higher Crime,LEGAL AID FUND,BSB SOLICITORS,1348289:148425520,37791.76,Legal Aid Payment Higher Crime,,
MOJ,LAA,11/2/2017,Lower Crime,LEGAL AID FUND,BULLIVANT LAW LTD,1336628:148327049,31600,Legal Aid Payment Lower Crime,,
MOJ,LAA,11/15/2017,Higher Crime,LEGAL AID FUND,BULLIVANT LAW LTD,1348690:148425932,88132.64,Legal Aid Payment Higher Crime,,
MOJ,LAA,11/29/2017,Lower Crime,LEGAL AID FUND,BULLIVANT LAW LTD,1357818:148516285,31600,Legal Aid Payment Lower Crime,,
MOJ,LAA,11/29/2017,Legal Help,LEGAL AID FUND,BURKE NIAZI  LTD,1359037:148513192,90000,Legal Aid Payment Legal Help,,
MOJ,LAA,11/6/2017,Civil Representation,LEGAL AID FUND,BURNETTS SOLICITORS,1340158:2000000000004634,96648.43,Legal Aid Payment Civil Representation,,
MOJ,LAA,11/15/2017,Civil Representation,LEGAL AID FUND,BURSTALLS,1347376:148399684,30012.91,Legal Aid Payment Civil Representation,,
MOJ,LAA,11/29/2017,Legal Help,LEGAL AID FUND,BURTON AND BURTON SOLICITOR LTD,1353944:148515919,32139,Legal Aid Payment Legal Help,,
MOJ,LAA,11/2/2017,Higher Crime,LEGAL AID FUND,BURTON COPELAND LLP,1339531:148308478,89975.11,Legal Aid Payment Higher Crime,,
MOJ,LAA,11/2/2017,Lower Crime,LEGAL AID FUND,BURTON COPELAND LLP,1339531:148327151,49864,Legal Aid Payment Lower Crime,,
MOJ,LAA,11/29/2017,Lower Crime,LEGAL AID FUND,BURTON COPELAND LLP,1355759:148517108,45575,Legal Aid Payment Lower Crime,,
MOJ,LAA,11/9/2017,Civil Representation,LEGAL AID FUND,BUTCHER & BARLOW LLP,1344291:2000000000004685,35425.54,Legal Aid Payment Civil Representation,,
MOJ,LAA,11/2/2017,Legal Help,LEGAL AID FUND,BUTLER & CO,1339178:148325484,36500,Legal Aid Payment Legal Help,,
MOJ,LAA,11/29/2017,Legal Help,LEGAL AID FUND,BUTLER & CO,1357519:148515091,36500,Legal Aid Payment Legal Help,,
MOJ,LAA,11/15/2017,Higher Crime,LEGAL AID FUND,BUXTON RYAN & CO,1348122:148409976,26820.01,Legal Aid Payment Higher Crime,,
MOJ,LAA,11/8/2017,Higher Crime,LEGAL AID FUND,BYRNE & PARTNERS LLP,1342769:148358304,70393.17,Legal Aid Payment Higher Crime,,
MOJ,LAA,11/2/2017,Lower Crime,LEGAL AID FUND,CARLTON PLACE LAW,1336810:148327104,38400,Legal Aid Payment Lower Crime,,
MOJ,LAA,11/29/2017,Lower Crime,LEGAL AID FUND,CARLTON PLACE LAW,1356615:148516523,38400,Legal Aid Payment Lower Crime,,
MOJ,LAA,11/22/2017,Higher Crime,LEGAL AID FUND,CAROLINE T GOODWIN,1352475:148440270,34078.58,Legal Aid Payment Higher Crime,,
MOJ,LAA,11/2/2017,Lower Crime,LEGAL AID FUND,CARR & CO,1339639:148327061,32800,Legal Aid Payment Lower Crime,,
MOJ,LAA,11/15/2017,Higher Crime,LEGAL AID FUND,CARR & CO,1347367:148386506,89975.11,Legal Aid Payment Higher Crime,,
MOJ,LAA,11/29/2017,Lower Crime,LEGAL AID FUND,CARR & CO,1354325:148516424,32800,Legal Aid Payment Lower Crime,,
MOJ,LAA,11/2/2017,Lower Crime,LEGAL AID FUND,CARRINGTONS SOLICITORS,1336623:148327206,258306,Legal Aid Payment Lower Crime,,
MOJ,LAA,11/29/2017,Lower Crime,LEGAL AID FUND,CARRINGTONS SOLICITORS,1357813:148516749,225632,Legal Aid Payment Lower Crime,,
MOJ,LAA,11/8/2017,Higher Crime,LEGAL AID FUND,CARSON KAYE SOLICITORS,1340245:148360731,45410.52,Legal Aid Payment Higher Crime,,
MOJ,LAA,11/15/2017,Higher Crime,LEGAL AID FUND,CARSON KAYE SOLICITORS,1346126:148402033,79501.43,Legal Aid Payment Higher Crime,,
MOJ,LAA,11/22/2017,Higher Crime,LEGAL AID FUND,CARSON KAYE SOLICITORS,1349902:148432901,76519.31,Legal Aid Payment Higher Crime,,
MOJ,LAA,11/29/2017,Higher Crime,LEGAL AID FUND,CARSON KAYE SOLICITORS,1358080:148518396,80104.34,Legal Aid Payment Higher Crime,,
MOJ,LAA,11/8/2017,Higher Crime,LEGAL AID FUND,CARTER MOORE SOLICITORS LTD,1343316:148347370,55734.79,Legal Aid Payment Higher Crime,,
MOJ,LAA,11/2/2017,Lower Crime,LEGAL AID FUND,CARTER OSBORNE LTD,1337025:148327194,79827,Legal Aid Payment Lower Crime,,
MOJ,LAA,11/29/2017,Lower Crime,LEGAL AID FUND,CARTER OSBORNE LTD,1355409:148516746,71807,Legal Aid Payment Lower Crime,,
MOJ,LAA,11/2/2017,Lower Crime,LEGAL AID FUND,CARTWRIGHT KING LTD,1335337:148327069,33542,Legal Aid Payment Lower Crime,,
MOJ,LAA,11/2/2017,Lower Crime,LEGAL AID FUND,CARTWRIGHT KING LTD,1336444:148326993,26259,Legal Aid Payment Lower Crime,,
MOJ,LAA,11/2/2017,Legal Help,LEGAL AID FUND,CARTWRIGHT KING LTD,1337857:148325460,27148,Legal Aid Payment Legal Help,,
MOJ,LAA,11/2/2017,Lower Crime,LEGAL AID FUND,CARTWRIGHT KING LTD,1339264:148327009,27698,Legal Aid Payment Lower Crime,,
MOJ,LAA,11/2/2017,Legal Help,LEGAL AID FUND,CARTWRIGHT KING LTD,1339265:148325509,95586,Legal Aid Payment Legal Help,,
MOJ,LAA,11/2/2017,Lower Crime,LEGAL AID FUND,CARTWRIGHT KING LTD,1339265:148327116,39481,Legal Aid Payment Lower Crime,,
MOJ,LAA,11/8/2017,Higher Crime,LEGAL AID FUND,CARTWRIGHT KING LTD,1343707:148383906,97775.86,Legal Aid Payment Higher Crime,,
MOJ,LAA,11/29/2017,Lower Crime,LEGAL AID FUND,CARTWRIGHT KING LTD,1357168:148516758,28337,Legal Aid Payment Lower Crime,,
MOJ,LAA,11/29/2017,Higher Crime,LEGAL AID FUND,CARTWRIGHT KING LTD,1357170:148478316,42322.92,Legal Aid Payment Higher Crime,,
MOJ,LAA,11/29/2017,Legal Help,LEGAL AID FUND,CARTWRIGHT KING LTD,1357170:148515749,78377,Legal Aid Payment Legal Help,,
MOJ,LAA,11/29/2017,Legal Help,LEGAL AID FUND,CARTWRIGHT KING LTD,1357692:148516171,27650,Legal Aid Payment Legal Help,,
MOJ,LAA,11/2/2017,Civil Representation,LEGAL AID FUND,CATRIONA A M DUTHIE,1335911:3000001205580024,39475.3,Legal Aid Payment Civil Representation,,
MOJ,LAA,11/8/2017,Higher Crime,LEGAL AID FUND,CHARLES F ROYLE,1340366:148379622,35063.62,Legal Aid Payment Higher Crime,,
MOJ,LAA,11/8/2017,Civil Representation,LEGAL AID FUND,CHARLES N GEEKIE QC,1340913:3000001768530007,53265.6,Legal Aid Payment Civil Representation,,
MOJ,LAA,11/8/2017,Civil Representation,LEGAL AID FUND,CHARLOTTE F PITTS,1342091:3000002070530017,26420.22,Legal Aid Payment Civil Representation,,
MOJ,LAA,11/8/2017,Higher Crime,LEGAL AID FUND,CHARTER SOLICITORS,1340337:148346408,29035.81,Legal Aid Payment Higher Crime,,
MOJ,LAA,11/29/2017,Lower Crime,LEGAL AID FUND,CHIVERS SOLICITORS,1356603:148517014,34203,Legal Aid Payment Lower Crime,,
MOJ,LAA,11/8/2017,Higher Crime,LEGAL AID FUND,CHRISTINE AGNEW,1341858:148384540,28540,Legal Aid Payment Higher Crime,,
MOJ,LAA,11/29/2017,Civil Representation,LEGAL AID FUND,CHRISTINE H JULIEN,1355293:148482742,25428.6,Legal Aid Payment Civil Representation,,
MOJ,LAA,11/2/2017,Higher Crime,LEGAL AID FUND,CHRISTOPHER M  CONVEY,1338334:148322945,48520.01,Legal Aid Payment Higher Crime,,
MOJ,LAA,11/2/2017,Lower Crime,LEGAL AID FUND,CHURCHERS SOLICITORS,1339099:148327000,26764,Legal Aid Payment Lower Crime,,
MOJ,LAA,11/29/2017,Lower Crime,LEGAL AID FUND,CHURCHERS SOLICITORS,1358203:148517147,35825,Legal Aid Payment Lower Crime,,
MOJ,LAA,11/15/2017,Higher Crime,LEGAL AID FUND,CITY LAW CHAMBERS LTD,1344504:148394468,29664.55,Legal Aid Payment Higher Crime,,
MOJ,LAA,11/2/2017,Legal Help,LEGAL AID FUND,CJCH SOLICITORS,1337909:148325477,32933,Legal Aid Payment Legal Help,,
MOJ,LAA,11/2/2017,Lower Crime,LEGAL AID FUND,CJH GREENHILL COOPER SOLICITORS,1339359:148326988,25900,Legal Aid Payment Lower Crime,,
MOJ,LAA,11/29/2017,Lower Crime,LEGAL AID FUND,CJH GREENHILL COOPER SOLICITORS,1356324:148516251,25900,Legal Aid Payment Lower Crime,,
MOJ,LAA,11/10/2017,Civil Representation,LEGAL AID FUND,CLARKE WILLMOTT LLP,1344300:2000000000004728,52030.9,Legal Aid Payment Civil Representation,,
MOJ,LAA,11/8/2017,Higher Crime,LEGAL AID FUND,CLARKES LLP,1341392:148347668,81129.28,Legal Aid Payment Higher Crime,,
MOJ,LAA,11/29/2017,Higher Crime,LEGAL AID FUND,CLIFFORD JOHNSTON & CO,1355757:148486732,73369.45,Legal Aid Payment Higher Crime,,
MOJ,LAA,11/2/2017,Legal Help,LEGAL AID FUND,CMHT SOLICITORS LLP,1339832:148325503,65633,Legal Aid Payment Legal Help,,
MOJ,LAA,11/29/2017,Legal Help,LEGAL AID FUND,CMHT SOLICITORS LLP,1358283:148515322,57164,Legal Aid Payment Legal Help,,
MOJ,LAA,11/2/2017,Lower Crime,LEGAL AID FUND,COBAINS SOLICITORS,1339425:148327031,30000,Legal Aid Payment Lower Crime,,
MOJ,LAA,11/29/2017,Lower Crime,LEGAL AID FUND,COBAINS SOLICITORS,1356576:148516481,30000,Legal Aid Payment Lower Crime,,
MOJ,LAA,11/2/2017,Lower Crime,LEGAL AID FUND,COBLEYS SOLICITORS LTD,1336815:148326980,25340,Legal Aid Payment Lower Crime,,
MOJ,LAA,11/8/2017,Higher Crime,LEGAL AID FUND,COBLEYS SOLICITORS LTD,1342754:148346940,44398.8,Legal Aid Payment Higher Crime,,
MOJ,LAA,11/15/2017,Higher Crime,LEGAL AID FUND,COBLEYS SOLICITORS LTD,1348298:148386520,40408.62,Legal Aid Payment Higher Crime,,
MOJ,LAA,11/15/2017,Higher Crime,LEGAL AID FUND,COBLEYS SOLICITORS LTD,1348298:148394122,89975.11,Legal Aid Payment Higher Crime,,
MOJ,LAA,11/22/2017,Higher Crime,LEGAL AID FUND,COBLEYS SOLICITORS LTD,1349830:148441376,29664.55,Legal Aid Payment Higher Crime,,
MOJ,LAA,11/22/2017,Higher Crime,LEGAL AID FUND,COBLEYS SOLICITORS LTD,1351182:148441358,89975.11,Legal Aid Payment Higher Crime,,
MOJ,LAA,11/29/2017,Higher Crime,LEGAL AID FUND,COBLEYS SOLICITORS LTD,1356526:148500680,89975.11,Legal Aid Payment Higher Crime,,
MOJ,LAA,11/2/2017,Higher Crime,LEGAL AID FUND,COHEN CRAMER,1339328:148328837,68560.95,Legal Aid Payment Higher Crime,,
MOJ,LAA,11/29/2017,Higher Crime,LEGAL AID FUND,COHEN CRAMER,1357136:148486935,31976.09,Legal Aid Payment Higher Crime,,
MOJ,LAA,11/2/2017,Legal Help,LEGAL AID FUND,CONFREYS,1337440:148325486,39729,Legal Aid Payment Legal Help,,
MOJ,LAA,11/29/2017,Legal Help,LEGAL AID FUND,CONFREYS,1358359:148515456,30727,Legal Aid Payment Legal Help,,
MOJ,LAA,11/2/2017,Lower Crime,LEGAL AID FUND,CONNOR ROSS-BROWN SOLICITORS,1338162:148327082,35000,Legal Aid Payment Lower Crime,,
MOJ,LAA,11/15/2017,Higher Crime,LEGAL AID FUND,CONNOR ROSS-BROWN SOLICITORS,1344602:148386591,27522.41,Legal Aid Payment Higher Crime,,
MOJ,LAA,11/29/2017,Lower Crime,LEGAL AID FUND,CONNOR ROSS-BROWN SOLICITORS,1355537:148516634,35000,Legal Aid Payment Lower Crime,,
MOJ,LAA,11/29/2017,Higher Crime,LEGAL AID FUND,COTISENS SOLICITORS,1356812:148518666,38330.7,Legal Aid Payment Higher Crime,,
MOJ,LAA,11/29/2017,Lower Crime,LEGAL AID FUND,COUSINS TYRER SOLICITORS,1354776:148517025,33087,Legal Aid Payment Lower Crime,,
MOJ,LAA,11/29/2017,Legal Help,LEGAL AID FUND,COVENTRY LAW CENTRE LTD,1356865:148515332,28782,Legal Aid Payment Legal Help,,
MOJ,LAA,11/15/2017,Civil Representation,LEGAL AID FUND,CRAIG JEAKINGS,1348154:3000002307730009,25306.54,Legal Aid Payment Civil Representation,,
MOJ,LAA,11/8/2017,Civil Representation,LEGAL AID FUND,CRANE & STAPLES,1342351:3000000670010007,39719.38,Legal Aid Payment Civil Representation,,
MOJ,LAA,11/22/2017,Civil Representation,LEGAL AID FUND,CRANE & STAPLES,1350623:3000001130960013,27686.6,Legal Aid Payment Civil Representation,,
MOJ,LAA,11/2/2017,Higher Crime,LEGAL AID FUND,CRANFELDS,1337761:148308904,54964.4,Legal Aid Payment Higher Crime,,
MOJ,LAA,11/29/2017,Higher Crime,LEGAL AID FUND,CRANFELDS,1358435:148353947,-54964.4,Legal Aid Payment Higher Crime,,
MOJ,LAA,11/29/2017,Higher Crime,LEGAL AID FUND,CRANFELDS,1358435:148353959,43695.76,Legal Aid Payment Higher Crime,,
MOJ,LAA,11/29/2017,Higher Crime,LEGAL AID FUND,CRANFELDS,1358435:148500504,49406.7,Legal Aid Payment Higher Crime,,
MOJ,LAA,11/29/2017,Civil Representation,LEGAL AID FUND,CREIGHTON & PARTNERS,1356899:148482638,26965.4,Legal Aid Payment Civil Representation,,
MOJ,LAA,11/2/2017,Lower Crime,LEGAL AID FUND,CRIMINAL DEFENCE ASSOCIATES,1336619:148326969,25000,Legal Aid Payment Lower Crime,,
MOJ,LAA,11/29/2017,Lower Crime,LEGAL AID FUND,CRIMINAL DEFENCE ASSOCIATES,1357809:148516257,25000,Legal Aid Payment Lower Crime,,
MOJ,LAA,11/2/2017,Lower Crime,LEGAL AID FUND,CRIMINAL DEFENCE SOLICITORS,1339165:148327154,50500,Legal Aid Payment Lower Crime,,
MOJ,LAA,11/29/2017,Lower Crime,LEGAL AID FUND,CRIMINAL DEFENCE SOLICITORS,1357888:148516340,34600,Legal Aid Payment Lower Crime,,
MOJ,LAA,11/2/2017,Lower Crime,LEGAL AID FUND,CROWE HUMBLE WESENCRAFT,1336794:148327155,50700,Legal Aid Payment Lower Crime,,
MOJ,LAA,11/15/2017,Higher Crime,LEGAL AID FUND,CROWE HUMBLE WESENCRAFT,1348287:148402568,26893.52,Legal Aid Payment Higher Crime,,
MOJ,LAA,11/15/2017,Higher Crime,LEGAL AID FUND,CROWE HUMBLE WESENCRAFT,1348287:148409867,69261.78,Legal Aid Payment Higher Crime,,
MOJ,LAA,11/29/2017,Lower Crime,LEGAL AID FUND,CROWE HUMBLE WESENCRAFT,1356883:148516391,50700,Legal Aid Payment Lower Crime,,
MOJ,LAA,11/2/2017,Higher Crime,LEGAL AID FUND,CUNNINGHAMS LYTHGOE CAPLIN LTD,1336879:148327516,44960.52,Legal Aid Payment Higher Crime,,
MOJ,LAA,11/2/2017,Higher Crime,LEGAL AID FUND,CUNNINGHAMS LYTHGOE CAPLIN LTD,1336879:148339307,30997.17,Legal Aid Payment Higher Crime,,
MOJ,LAA,11/15/2017,Higher Crime,LEGAL AID FUND,CUNNINGHAMS LYTHGOE CAPLIN LTD,1348120:148402398,89975.11,Legal Aid Payment Higher Crime,,
MOJ,LAA,11/8/2017,Civil Representation,LEGAL AID FUND,CYRUS R LARIZADEH,1341136:148037356,32491.8,Legal Aid Payment Civil Representation,,
MOJ,LAA,11/15/2017,Civil Representation,LEGAL AID FUND,CYRUS R LARIZADEH,1346527:3000001912110015,40190.4,Legal Aid Payment Civil Representation,,
MOJ,LAA,11/2/2017,Lower Crime,LEGAL AID FUND,DALTON HOLMES GRAY,1336896:148327110,38910,Legal Aid Payment Lower Crime,,
MOJ,LAA,11/29/2017,Lower Crime,LEGAL AID FUND,DALTON HOLMES GRAY,1356047:148516901,38924,Legal Aid Payment Lower Crime,,
MOJ,LAA,11/2/2017,Lower Crime,LEGAL AID FUND,DANIEL WOODMAN & CO LTD,1336858:148326974,25000,Legal Aid Payment Lower Crime,,
MOJ,LAA,11/29/2017,Lower Crime,LEGAL AID FUND,DANIEL WOODMAN & CO LTD,1356854:148516553,25000,Legal Aid Payment Lower Crime,,
MOJ,LAA,11/2/2017,Higher Crime,LEGAL AID FUND,DAPINDERPAUL SINGH,1336214:148302532,28635.48,Legal Aid Payment Higher Crime,,
MOJ,LAA,11/29/2017,Civil Representation,LEGAL AID FUND,DARREN F HOWE QC,1357343:3000002326800018,43286.4,Legal Aid Payment Civil Representation,,
MOJ,LAA,11/29/2017,Civil Representation,LEGAL AID FUND,DARREN F HOWE QC,1357343:3000002680400004,47491.96,Legal Aid Payment Civil Representation,,
MOJ,LAA,11/15/2017,Higher Crime,LEGAL AID FUND,DARRON WHITEHEAD,1346823:148402488,25052.23,Legal Aid Payment Higher Crime,,
MOJ,LAA,11/8/2017,Higher Crime,LEGAL AID FUND,DARRYL CHERRETT,1340342:148347425,35328.82,Legal Aid Payment Higher Crime,,
MOJ,LAA,11/29/2017,Higher Crime,LEGAL AID FUND,DARRYL CHERRETT,1354982:148486581,25379.33,Legal Aid Payment Higher Crime,,
MOJ,LAA,11/2/2017,Lower Crime,LEGAL AID FUND,DARRYL INGRAM & CO,1336767:148327022,29000,Legal Aid Payment Lower Crime,,
MOJ,LAA,11/29/2017,Lower Crime,LEGAL AID FUND,DARRYL INGRAM & CO,1357479:148516316,29000,Legal Aid Payment Lower Crime,,
MOJ,LAA,11/2/2017,Lower Crime,LEGAL AID FUND,DAVID AKE & CO,1337085:148326992,26130,Legal Aid Payment Lower Crime,,
MOJ,LAA,11/29/2017,Civil Representation,LEGAL AID FUND,DAVID BARNEY & CO,1355711:3000001500280008,28201.77,Legal Aid Payment Civil Representation,,
MOJ,LAA,11/2/2017,Legal Help,LEGAL AID FUND,DAVID GRAY LLP,1336745:148325483,36311,Legal Aid Payment Legal Help,,
MOJ,LAA,11/8/2017,Higher Crime,LEGAL AID FUND,DAVID GRAY LLP,1343076:148353711,39378.44,Legal Aid Payment Higher Crime,,
MOJ,LAA,11/15/2017,Higher Crime,LEGAL AID FUND,DAVID GRAY LLP,1348469:148402261,49729.07,Legal Aid Payment Higher Crime,,
MOJ,LAA,11/29/2017,Higher Crime,LEGAL AID FUND,DAVID GRAY LLP,1357116:148486983,32272.22,Legal Aid Payment Higher Crime,,
MOJ,LAA,11/29/2017,Higher Crime,LEGAL AID FUND,DAVID GRAY LLP,1357116:148487022,26893.52,Legal Aid Payment Higher Crime,,
MOJ,LAA,11/23/2017,Higher Crime,LEGAL AID FUND,DAVID RUBIE MITCHELL & CO,1353612:148195594,-69782.31,Legal Aid Payment Higher Crime,,
MOJ,LAA,11/23/2017,Higher Crime,LEGAL AID FUND,DAVID RUBIE MITCHELL & CO,1353612:2000000000004863,38519.26,Legal Aid Payment Higher Crime,,
MOJ,LAA,11/29/2017,Civil Representation,LEGAL AID FUND,DAVID RUBIE MITCHELL & CO,1353634:9690983,48763.05,Legal Aid Payment Civil Representation,,
MOJ,LAA,11/2/2017,Lower Crime,LEGAL AID FUND,DAVID SEDGWICK SOLICITORS LTD,1336662:148326990,26028,Legal Aid Payment Lower Crime,,
MOJ,LAA,11/29/2017,Lower Crime,LEGAL AID FUND,DAVID SEDGWICK SOLICITORS LTD,1358234:148516659,33243,Legal Aid Payment Lower Crime,,
MOJ,LAA,11/29/2017,Civil Representation,LEGAL AID FUND,DAVID SHINE & KHARBANDA,256732:148390150,27173.33,Legal Aid Payment Civil Representation,,
MOJ,LAA,11/29/2017,Higher Crime,LEGAL AID FUND,DAVID TAYLOR,1354302:148493793,29466.02,Legal Aid Payment Higher Crime,,
MOJ,LAA,11/2/2017,Lower Crime,LEGAL AID FUND,DAVIES & JONES SOLICITORS,1339889:148327065,33300,Legal Aid Payment Lower Crime,,
MOJ,LAA,11/29/2017,Lower Crime,LEGAL AID FUND,DAVIES & JONES SOLICITORS,1358721:148516221,33300,Legal Aid Payment Lower Crime,,
MOJ,LAA,11/15/2017,Higher Crime,LEGAL AID FUND,DDE LAW LTD,1344737:148424990,65266.28,Legal Aid Payment Higher Crime,,
MOJ,LAA,11/2/2017,Lower Crime,LEGAL AID FUND,DE MAIDS SOLICITORS & ADVOCATES,1337332:148327040,30500,Legal Aid Payment Lower Crime,,
MOJ,LAA,11/8/2017,Higher Crime,LEGAL AID FUND,DE MAIDS SOLICITORS & ADVOCATES,1341569:148379496,89975.11,Legal Aid Payment Higher Crime,,
MOJ,LAA,11/29/2017,Lower Crime,LEGAL AID FUND,DE MAIDS SOLICITORS & ADVOCATES,1359066:148516222,30500,Legal Aid Payment Lower Crime,,
MOJ,LAA,11/15/2017,Higher Crime,LEGAL AID FUND,DEAN E KERSHAW,1346748:148401570,28089.34,Legal Aid Payment Higher Crime,,
MOJ,LAA,11/29/2017,Lower Crime,LEGAL AID FUND,DEFENCE LAW LTD,1353872:148517399,39031,Legal Aid Payment Lower Crime,,
MOJ,LAA,11/2/2017,Legal Help,LEGAL AID FUND,DEIGHTON PIERCE GLYNN LTD,1338140:148325465,28916,Legal Aid Payment Legal Help,,
MOJ,LAA,11/15/2017,Higher Crime,LEGAL AID FUND,DEVAS KEOGH JAMES SOLICITORS LTD,1347145:148409774,39006.66,Legal Aid Payment Higher Crime,,
MOJ,LAA,11/29/2017,Higher Crime,LEGAL AID FUND,DIANA ELLIS QC,1355022:148486449,32407.36,Legal Aid Payment Higher Crime,,
MOJ,LAA,11/22/2017,Legal Help,LEGAL AID FUND,DIRECT HELP & ADVICE LTD,1351373:148468856,30126.36,Legal Aid Payment Legal Help,,
MOJ,LAA,11/2/2017,Lower Crime,LEGAL AID FUND,DJMS SOLICITORS LTD,1336506:148327117,39763,Legal Aid Payment Lower Crime,,
MOJ,LAA,11/2/2017,Lower Crime,LEGAL AID FUND,DJMS SOLICITORS LTD,1338135:148327038,30303,Legal Aid Payment Lower Crime,,
MOJ,LAA,11/29/2017,Lower Crime,LEGAL AID FUND,DJMS SOLICITORS LTD,1359001:148516953,36873,Legal Aid Payment Lower Crime,,
MOJ,LAA,11/29/2017,Civil Representation,LEGAL AID FUND,DMA LAW LTD,1358573:3000002805560003,34117.36,Legal Aid Payment Civil Representation,,
MOJ,LAA,11/2/2017,Lower Crime,LEGAL AID FUND,DOBSONS,1337502:148327078,35000,Legal Aid Payment Lower Crime,,
MOJ,LAA,11/15/2017,Higher Crime,LEGAL AID FUND,DOBSONS,1345761:148424996,102854.71,Legal Aid Payment Higher Crime,,
MOJ,LAA,11/29/2017,Lower Crime,LEGAL AID FUND,DOBSONS,1357229:148516303,35000,Legal Aid Payment Lower Crime,,
MOJ,LAA,11/2/2017,Legal Help,LEGAL AID FUND,DONOVAN NEWTON SOLICITORS,1336595:148325494,45974,Legal Aid Payment Legal Help,,
MOJ,LAA,11/29/2017,Legal Help,LEGAL AID FUND,DONOVAN NEWTON SOLICITORS,1358263:148515728,44768,Legal Aid Payment Legal Help,,
MOJ,LAA,11/2/2017,Lower Crime,LEGAL AID FUND,DPP LAW LTD,1336816:148327016,28400,Legal Aid Payment Lower Crime,,
MOJ,LAA,11/2/2017,Lower Crime,LEGAL AID FUND,DPP LAW LTD,1336817:148327010,27800,Legal Aid Payment Lower Crime,,
MOJ,LAA,11/8/2017,Higher Crime,LEGAL AID FUND,DPP LAW LTD,1342756:148360861,107970.13,Legal Aid Payment Higher Crime,,
MOJ,LAA,11/15/2017,Higher Crime,LEGAL AID FUND,DPP LAW LTD,1344516:148409987,45995.52,Legal Aid Payment Higher Crime,,
MOJ,LAA,11/29/2017,Lower Crime,LEGAL AID FUND,DPP LAW LTD,1356527:148516310,28400,Legal Aid Payment Lower Crime,,
MOJ,LAA,11/29/2017,Lower Crime,LEGAL AID FUND,DPP LAW LTD,1356528:148516357,27800,Legal Aid Payment Lower Crime,,
MOJ,LAA,11/2/2017,Higher Crime,LEGAL AID FUND,DRAYCOTT BROWNE LTD,1339451:148308552,67020.71,Legal Aid Payment Higher Crime,,
MOJ,LAA,11/2/2017,Higher Crime,LEGAL AID FUND,DRAYCOTT BROWNE LTD,1339451:148309479,44537.99,Legal Aid Payment Higher Crime,,
MOJ,LAA,11/22/2017,Higher Crime,LEGAL AID FUND,DRAYCOTT BROWNE LTD,1350664:148433459,37824.55,Legal Aid Payment Higher Crime,,
MOJ,LAA,11/2/2017,Lower Crime,LEGAL AID FUND,DRISCOLL YOUNG SOLICITORS LTD,1339358:148326997,26586,Legal Aid Payment Lower Crime,,
MOJ,LAA,11/29/2017,Lower Crime,LEGAL AID FUND,DRISCOLL YOUNG SOLICITORS LTD,1356323:148516677,27516,Legal Aid Payment Lower Crime,,
MOJ,LAA,11/2/2017,Legal Help,LEGAL AID FUND,DUNCAN LEWIS SOLICITORS  LTD,1335447:148325499,59300,Legal Aid Payment Legal Help,,
MOJ,LAA,11/2/2017,Lower Crime,LEGAL AID FUND,DUNCAN LEWIS SOLICITORS  LTD,1339433:148327174,60800,Legal Aid Payment Lower Crime,,
MOJ,LAA,11/2/2017,Lower Crime,LEGAL AID FUND,DUNCAN LEWIS SOLICITORS  LTD,1339434:148327189,73289,Legal Aid Payment Lower Crime,,
MOJ,LAA,11/29/2017,Legal Help,LEGAL AID FUND,DUNCAN LEWIS SOLICITORS  LTD,1356585:148513008,90000,Legal Aid Payment Legal Help,,
MOJ,LAA,11/29/2017,Legal Help,LEGAL AID FUND,DUNCAN LEWIS SOLICITORS  LTD,1356585:148513011,95000,Legal Aid Payment Legal Help,,
MOJ,LAA,11/29/2017,Legal Help,LEGAL AID FUND,DUNCAN LEWIS SOLICITORS  LTD,1356585:148513080,83400,Legal Aid Payment Legal Help,,
MOJ,LAA,11/29/2017,Lower Crime,LEGAL AID FUND,DUNCAN LEWIS SOLICITORS  LTD,1356585:148516323,60800,Legal Aid Payment Lower Crime,,
MOJ,LAA,11/29/2017,Legal Help,LEGAL AID FUND,DUNCAN LEWIS SOLICITORS  LTD,1356586:148512900,90000,Legal Aid Payment Legal Help,,
MOJ,LAA,11/29/2017,Legal Help,LEGAL AID FUND,DUNCAN LEWIS SOLICITORS  LTD,1356586:148512902,95000,Legal Aid Payment Legal Help,,
MOJ,LAA,11/29/2017,Legal Help,LEGAL AID FUND,DUNCAN LEWIS SOLICITORS  LTD,1356586:148512903,93000,Legal Aid Payment Legal Help,,
MOJ,LAA,11/29/2017,Legal Help,LEGAL AID FUND,DUNCAN LEWIS SOLICITORS  LTD,1356586:148512904,91000,Legal Aid Payment Legal Help,,
MOJ,LAA,11/29/2017,Legal Help,LEGAL AID FUND,DUNCAN LEWIS SOLICITORS  LTD,1356586:148513003,31000,Legal Aid Payment Legal Help,,
MOJ,LAA,11/29/2017,Lower Crime,LEGAL AID FUND,DUNCAN LEWIS SOLICITORS  LTD,1356586:148516872,41833,Legal Aid Payment Lower Crime,,
MOJ,LAA,11/29/2017,Legal Help,LEGAL AID FUND,DUNCAN LEWIS SOLICITORS  LTD,1357298:148515292,59300,Legal Aid Payment Legal Help,,
MOJ,LAA,11/2/2017,Lower Crime,LEGAL AID FUND,EBR ATTRIDGE LLP,1339131:148326985,25746,Legal Aid Payment Lower Crime,,
MOJ,LAA,11/2/2017,Higher Crime,LEGAL AID FUND,EBR ATTRIDGE LLP,1339220:148340283,42556.93,Legal Aid Payment Higher Crime,,
MOJ,LAA,11/2/2017,Lower Crime,LEGAL AID FUND,EBR ATTRIDGE LLP,1339221:148327086,35400,Legal Aid Payment Lower Crime,,
MOJ,LAA,11/2/2017,Lower Crime,LEGAL AID FUND,EBR ATTRIDGE LLP,1339222:148327168,58100,Legal Aid Payment Lower Crime,,
MOJ,LAA,11/15/2017,Higher Crime,LEGAL AID FUND,EBR ATTRIDGE LLP,1344583:148395487,35290.69,Legal Aid Payment Higher Crime,,
MOJ,LAA,11/22/2017,Higher Crime,LEGAL AID FUND,EBR ATTRIDGE LLP,1351700:148441038,86761.49,Legal Aid Payment Higher Crime,,
MOJ,LAA,11/22/2017,Higher Crime,LEGAL AID FUND,EBR ATTRIDGE LLP,1351702:148394351,-37284.3,Legal Aid Payment Higher Crime,,
MOJ,LAA,11/29/2017,Lower Crime,LEGAL AID FUND,EBR ATTRIDGE LLP,1357847:148516298,35400,Legal Aid Payment Lower Crime,,
MOJ,LAA,11/29/2017,Lower Crime,LEGAL AID FUND,EBR ATTRIDGE LLP,1357848:148516295,58100,Legal Aid Payment Lower Crime,,
MOJ,LAA,11/29/2017,Higher Crime,LEGAL AID FUND,EBR ATTRIDGE LLP,1357848:148519181,68560.95,Legal Aid Payment Higher Crime,,
MOJ,LAA,11/15/2017,Higher Crime,LEGAL AID FUND,EDMUND GRITT,1345523:148394689,25183.08,Legal Aid Payment Higher Crime,,
MOJ,LAA,11/2/2017,Lower Crime,LEGAL AID FUND,EDWARD FAIL BRADSHAW & WATERSON,1337494:148327045,30985,Legal Aid Payment Lower Crime,,
MOJ,LAA,11/22/2017,Higher Crime,LEGAL AID FUND,EDWARD FAIL BRADSHAW & WATERSON,1352777:148441178,89975.11,Legal Aid Payment Higher Crime,,
MOJ,LAA,11/29/2017,Higher Crime,LEGAL AID FUND,EDWARD FAIL BRADSHAW & WATERSON,1357221:148478254,52704.13,Legal Aid Payment Higher Crime,,
MOJ,LAA,11/29/2017,Lower Crime,LEGAL AID FUND,EDWARD FAIL BRADSHAW & WATERSON,1357222:148516915,25060,Legal Aid Payment Lower Crime,,
MOJ,LAA,11/15/2017,Higher Crime,LEGAL AID FUND,EDWARD HAYES LLP,1347318:148409897,59167.95,Legal Aid Payment Higher Crime,,
MOJ,LAA,11/2/2017,Legal Help,LEGAL AID FUND,EDWARDS DUTHIE,1339919:148325469,29514,Legal Aid Payment Legal Help,,
MOJ,LAA,11/2/2017,Lower Crime,LEGAL AID FUND,EDWARDS DUTHIE,1339919:148327062,32887,Legal Aid Payment Lower Crime,,
MOJ,LAA,11/29/2017,Higher Crime,LEGAL AID FUND,EDWARDS DUTHIE,1357613:148486359,35751.36,Legal Aid Payment Higher Crime,,
MOJ,LAA,11/29/2017,Lower Crime,LEGAL AID FUND,EDWARDS DUTHIE,1357613:148517467,34382,Legal Aid Payment Lower Crime,,
MOJ,LAA,11/15/2017,Higher Crime,LEGAL AID FUND,EDWINS SOLICITORS,1344915:148410000,52454.03,Legal Aid Payment Higher Crime,,
MOJ,LAA,11/22/2017,Higher Crime,LEGAL AID FUND,EDWINS SOLICITORS,1352290:148433376,34311.85,Legal Aid Payment Higher Crime,,
MOJ,LAA,11/2/2017,Legal Help,LEGAL AID FUND,ELDER RAHIMI LIMITED,1339445:148325491,44544,Legal Aid Payment Legal Help,,
MOJ,LAA,11/29/2017,Legal Help,LEGAL AID FUND,ELDER RAHIMI LIMITED,1354883:148515953,29819,Legal Aid Payment Legal Help,,
MOJ,LAA,11/29/2017,Legal Help,LEGAL AID FUND,ELDER RAHIMI LIMITED,1355763:148515647,53575,Legal Aid Payment Legal Help,,
MOJ,LAA,11/15/2017,Higher Crime,LEGAL AID FUND,ELLIOT MATHER LLP,1347508:148409545,30284.2,Legal Aid Payment Higher Crime,,
MOJ,LAA,11/22/2017,Higher Crime,LEGAL AID FUND,ELLIOTT STERN SOLICITORS,1351151:148472258,89975.11,Legal Aid Payment Higher Crime,,
MOJ,LAA,11/2/2017,Lower Crime,LEGAL AID FUND,ERIC ROBINSON SOLICITORS,1337387:148327072,34000,Legal Aid Payment Lower Crime,,
MOJ,LAA,11/15/2017,Higher Crime,LEGAL AID FUND,ERIC ROBINSON SOLICITORS,1346316:148409992,107970.13,Legal Aid Payment Higher Crime,,
MOJ,LAA,11/29/2017,Lower Crime,LEGAL AID FUND,ERIC ROBINSON SOLICITORS,1357922:148516521,42600,Legal Aid Payment Lower Crime,,
MOJ,LAA,11/22/2017,Higher Crime,LEGAL AID FUND,ESHAGHIAN & CO SOLICITORS,1351924:148432217,28977.38,Legal Aid Payment Higher Crime,,
MOJ,LAA,11/8/2017,Civil Representation,LEGAL AID FUND,ESKINAZI & CO,1342006:3000000986970016,26534.46,Legal Aid Payment Civil Representation,,
MOJ,LAA,11/8/2017,Higher Crime,LEGAL AID FUND,EVANS & CO,1343152:148362380,59674.88,Legal Aid Payment Higher Crime,,
MOJ,LAA,11/2/2017,Lower Crime,LEGAL AID FUND,EVANS HAYES BURNELL SOLICITORS LTD,1335043:148327102,38286,Legal Aid Payment Lower Crime,,
MOJ,LAA,11/29/2017,Lower Crime,LEGAL AID FUND,EVANS HAYES BURNELL SOLICITORS LTD,1354408:148517585,30084,Legal Aid Payment Lower Crime,,
MOJ,LAA,11/15/2017,Higher Crime,LEGAL AID FUND,EWING LAW-ADVOCATE,1347000:148410320,27217.68,Legal Aid Payment Higher Crime,,
MOJ,LAA,11/2/2017,Lower Crime,LEGAL AID FUND,EWINGS & CO,1337371:148327046,31300,Legal Aid Payment Lower Crime,,
MOJ,LAA,11/29/2017,Lower Crime,LEGAL AID FUND,EWINGS & CO,1357906:148516304,31300,Legal Aid Payment Lower Crime,,
MOJ,LAA,11/2/2017,Higher Crime,LEGAL AID FUND,F A LEE & CO,1336691:148303262,97511.55,Legal Aid Payment Higher Crime,,
MOJ,LAA,11/2/2017,Legal Help,LEGAL AID FUND,FADIGA & CO LTD,1339793:148325482,36302,Legal Aid Payment Legal Help,,
MOJ,LAA,11/29/2017,Legal Help,LEGAL AID FUND,FADIGA & CO LTD,1353993:148515587,55076,Legal Aid Payment Legal Help,,
MOJ,LAA,11/29/2017,Civil Representation,LEGAL AID FUND,FAHRI JACOB,1357591:3000001777020020,44659.45,Legal Aid Payment Civil Representation,,
MOJ,LAA,11/22/2017,Higher Crime,LEGAL AID FUND,FARADAYS SOLICITORS LTD,1351160:148441577,107574.07,Legal Aid Payment Higher Crime,,
MOJ,LAA,11/22/2017,Civil Representation,LEGAL AID FUND,FIELDINGS PORTER SOLICITORS,1349507:3000001017840056,28130.76,Legal Aid Payment Civil Representation,,
MOJ,LAA,11/22/2017,Civil Representation,LEGAL AID FUND,FINN GLEDHILL,1350078:3000001692640003RC,-34999.2,Legal Aid Payment Civil Representation,,
MOJ,LAA,11/22/2017,Civil Representation,LEGAL AID FUND,FINN GLEDHILL,1350078:3000001692640005,38216.64,Legal Aid Payment Civil Representation,,
MOJ,LAA,11/29/2017,Legal Help,LEGAL AID FUND,FISHER JONES GREENWOOD LLP,1356705:148516037,53824,Legal Aid Payment Legal Help,,
MOJ,LAA,11/2/2017,Civil Representation,LEGAL AID FUND,FLG LTD,1335547:3000001166090015,48000,Legal Aid Payment Civil Representation,,
MOJ,LAA,11/22/2017,Civil Representation,LEGAL AID FUND,FLG LTD,1351706:3000000687650013,39477.27,Legal Aid Payment Civil Representation,,
MOJ,LAA,11/22/2017,Civil Representation,LEGAL AID FUND,FLG LTD,1351908:3000000686300013,29593.1,Legal Aid Payment Civil Representation,,
MOJ,LAA,11/2/2017,Civil Representation,LEGAL AID FUND,FMW LAW LTD,1337315:148319795,106279.2,Legal Aid Payment Civil Representation,,
MOJ,LAA,11/2/2017,Civil Representation,LEGAL AID FUND,FMW LAW LTD,1337315:148319866,-105851.12,Legal Aid Payment Civil Representation,,
MOJ,LAA,11/2/2017,Lower Crime,LEGAL AID FUND,FMW LAW LTD,1337315:148327159,53600,Legal Aid Payment Lower Crime,,
MOJ,LAA,11/2/2017,Civil Representation,LEGAL AID FUND,FMW LAW LTD,1337315:3000001416550009,34928.99,Legal Aid Payment Civil Representation,,
MOJ,LAA,11/29/2017,Lower Crime,LEGAL AID FUND,FMW LAW LTD,1358706:148516278,53600,Legal Aid Payment Lower Crime,,
MOJ,LAA,11/2/2017,Lower Crime,LEGAL AID FUND,FORBES SOLICITORS,1336970:148327095,37000,Legal Aid Payment Lower Crime,,
MOJ,LAA,11/15/2017,Higher Crime,LEGAL AID FUND,FORBES SOLICITORS,1348117:148409012,26003.39,Legal Aid Payment Higher Crime,,
MOJ,LAA,11/29/2017,Lower Crime,LEGAL AID FUND,FORBES SOLICITORS,1356310:148516464,37000,Legal Aid Payment Lower Crime,,
MOJ,LAA,11/8/2017,Higher Crime,LEGAL AID FUND,FORESTERS SOLICITORS,1343348:148362371,27987.19,Legal Aid Payment Higher Crime,,
MOJ,LAA,11/29/2017,Legal Help,LEGAL AID FUND,FOUNTAIN SOLICITORS LTD,1358239:148512865,90000,Legal Aid Payment Legal Help,,
MOJ,LAA,11/29/2017,Legal Help,LEGAL AID FUND,FOUNTAIN SOLICITORS LTD,1358239:148512869,34000,Legal Aid Payment Legal Help,,
MOJ,LAA,11/29/2017,Higher Crime,LEGAL AID FUND,FRANCO S TIZZANO,1355854:148478376,31548.96,Legal Aid Payment Higher Crime,,
MOJ,LAA,11/15/2017,Civil Representation,LEGAL AID FUND,FRANK T FEEHAN QC,1346802:148229443,27540,Legal Aid Payment Civil Representation,,
MOJ,LAA,11/15/2017,Civil Representation,LEGAL AID FUND,FRANK T FEEHAN QC,1346802:3000000911550026RC,-37551.6,Legal Aid Payment Civil Representation,,
MOJ,LAA,11/15/2017,Civil Representation,LEGAL AID FUND,FRANK T FEEHAN QC,1346802:3000001945170015,52973.4,Legal Aid Payment Civil Representation,,
MOJ,LAA,11/2/2017,Lower Crime,LEGAL AID FUND,FREEMANS SOLICITORS,1339941:148327012,27900,Legal Aid Payment Lower Crime,,
MOJ,LAA,11/29/2017,Lower Crime,LEGAL AID FUND,FREEMANS SOLICITORS,1357543:148516335,27900,Legal Aid Payment Lower Crime,,
MOJ,LAA,11/2/2017,Legal Help,LEGAL AID FUND,G T STEWART LTD,1335720:148325458,26555,Legal Aid Payment Legal Help,,
MOJ,LAA,11/2/2017,Lower Crime,LEGAL AID FUND,G T STEWART LTD,1336499:148327100,37513,Legal Aid Payment Lower Crime,,
MOJ,LAA,11/2/2017,Lower Crime,LEGAL AID FUND,G T STEWART LTD,1339244:148327152,49962,Legal Aid Payment Lower Crime,,
MOJ,LAA,11/8/2017,Civil Representation,LEGAL AID FUND,G T STEWART LTD,1343314:148337788,39864,Legal Aid Payment Civil Representation,,
MOJ,LAA,11/15/2017,Higher Crime,LEGAL AID FUND,G T STEWART LTD,1344719:148425316,29664.55,Legal Aid Payment Higher Crime,,
MOJ,LAA,11/29/2017,Lower Crime,LEGAL AID FUND,G T STEWART LTD,1357870:148516907,34704,Legal Aid Payment Lower Crime,,
MOJ,LAA,11/29/2017,Lower Crime,LEGAL AID FUND,G T STEWART LTD,1358989:148517338,56702,Legal Aid Payment Lower Crime,,
MOJ,LAA,11/29/2017,Lower Crime,LEGAL AID FUND,G T STEWART LTD,1358994:148517334,38567,Legal Aid Payment Lower Crime,,
MOJ,LAA,11/15/2017,Higher Crime,LEGAL AID FUND,GAMLINS LAW LTD,1348083:148409891,65340.24,Legal Aid Payment Higher Crime,,
MOJ,LAA,11/22/2017,Civil Representation,LEGAL AID FUND,GAMLINS LAW LTD,1351167:3000000914090037,34207.63,Legal Aid Payment Civil Representation,,
MOJ,LAA,11/2/2017,Lower Crime,LEGAL AID FUND,GAMMON PIERCY & GAIGER,1337509:148327200,96353,Legal Aid Payment Lower Crime,,
MOJ,LAA,11/29/2017,Lower Crime,LEGAL AID FUND,GAMMON PIERCY & GAIGER,1357576:148517144,36217,Legal Aid Payment Lower Crime,,
MOJ,LAA,11/22/2017,Higher Crime,LEGAL AID FUND,GARCHA & CO,1353295:148432390,81347.36,Legal Aid Payment Higher Crime,,
MOJ,LAA,11/2/2017,Legal Help,LEGAL AID FUND,GARRATTS,1339514:148325463,28333,Legal Aid Payment Legal Help,,
MOJ,LAA,11/29/2017,Lower Crime,LEGAL AID FUND,GARTSIDES,1358356:148516675,26535,Legal Aid Payment Lower Crime,,
MOJ,LAA,11/2/2017,Lower Crime,LEGAL AID FUND,GEOFF WHITE & CO,1336552:148327118,39895,Legal Aid Payment Lower Crime,,
MOJ,LAA,11/29/2017,Lower Crime,LEGAL AID FUND,GEOFF WHITE & CO,1358601:148517131,40009,Legal Aid Payment Lower Crime,,
MOJ,LAA,11/15/2017,Higher Crime,LEGAL AID FUND,GERALD ARMSTRONG,1347327:148386961,34395.13,Legal Aid Payment Higher Crime,,
MOJ,LAA,11/2/2017,Lower Crime,LEGAL AID FUND,GHP LEGAL,1339378:148327003,27100,Legal Aid Payment Lower Crime,,
MOJ,LAA,11/29/2017,Lower Crime,LEGAL AID FUND,GHP LEGAL,1356247:148516224,27100,Legal Aid Payment Lower Crime,,
MOJ,LAA,11/15/2017,Higher Crime,LEGAL AID FUND,GLADSTONE SOLICITORS LTD,1348623:148394593,31177.97,Legal Aid Payment Higher Crime,,
MOJ,LAA,11/15/2017,Higher Crime,LEGAL AID FUND,GLAISYERS LLP,1348440:148409997,73908.43,Legal Aid Payment Higher Crime,,
MOJ,LAA,11/22/2017,Civil Representation,LEGAL AID FUND,GLAISYERS LLP,1351512:148475328,27934.01,Legal Aid Payment Civil Representation,,
MOJ,LAA,11/2/2017,Legal Help,LEGAL AID FUND,GLEDHILL SOLICITORS,1340000:148325497,55817,Legal Aid Payment Legal Help,,
MOJ,LAA,11/29/2017,Legal Help,LEGAL AID FUND,GLEDHILL SOLICITORS,1357977:148515355,47213,Legal Aid Payment Legal Help,,
MOJ,LAA,11/29/2017,Lower Crime,LEGAL AID FUND,GOLDKORNS,1358987:148517286,27788,Legal Aid Payment Lower Crime,,
MOJ,LAA,11/2/2017,Lower Crime,LEGAL AID FUND,GOLDSTONES SOLICITORS LTD,1339843:148327103,38400,Legal Aid Payment Lower Crime,,
MOJ,LAA,11/29/2017,Lower Crime,LEGAL AID FUND,GOLDSTONES SOLICITORS LTD,1358295:148516218,38400,Legal Aid Payment Lower Crime,,
MOJ,LAA,11/2/2017,Lower Crime,LEGAL AID FUND,GOODALL BARNETT JAMES SOLICITORS,1339768:148327089,36000,Legal Aid Payment Lower Crime,,
MOJ,LAA,11/15/2017,Higher Crime,LEGAL AID FUND,GOODALL BARNETT JAMES SOLICITORS,1346860:148387056,54390.26,Legal Aid Payment Higher Crime,,
MOJ,LAA,11/29/2017,Lower Crime,LEGAL AID FUND,GOODALL BARNETT JAMES SOLICITORS,1359042:148516504,36000,Legal Aid Payment Lower Crime,,
MOJ,LAA,11/29/2017,Lower Crime,LEGAL AID FUND,GOODHAND & FORSYTH SOLICITORS,1359012:148517316,28076,Legal Aid Payment Lower Crime,,
MOJ,LAA,11/2/2017,Higher Crime,LEGAL AID FUND,GORDON SHINE & COMPANY SOLICITORS,1337373:148339473,49566.49,Legal Aid Payment Higher Crime,,
MOJ,LAA,11/8/2017,Higher Crime,LEGAL AID FUND,GQS SOLICITORS,1343331:148379428,34953.96,Legal Aid Payment Higher Crime,,
MOJ,LAA,11/29/2017,Higher Crime,LEGAL AID FUND,GRAHAM M HUSTON,1354973:148518156,26364.6,Legal Aid Payment Higher Crime,,
MOJ,LAA,11/15/2017,Higher Crime,LEGAL AID FUND,GRAHAME H JAMES,1347417:148386342,28476.24,Legal Aid Payment Higher Crime,,
MOJ,LAA,11/29/2017,Legal Help,LEGAL AID FUND,GRAHAME STOWE BATESON,1356826:148515550,25474,Legal Aid Payment Legal Help,,
MOJ,LAA,11/29/2017,Civil Representation,LEGAL AID FUND,GRAHAME STOWE BATESON,1357135:3000001494470008,26431.47,Legal Aid Payment Civil Representation,,
MOJ,LAA,11/2/2017,Lower Crime,LEGAL AID FUND,GRECH GOODEN SOLICITORS LTD,1339080:148327107,38557,Legal Aid Payment Lower Crime,,
MOJ,LAA,11/29/2017,Lower Crime,LEGAL AID FUND,GRECH GOODEN SOLICITORS LTD,1358276:148516708,36754,Legal Aid Payment Lower Crime,,
MOJ,LAA,11/15/2017,Civil Representation,LEGAL AID FUND,GRIFFITHS ROBERTSON,1347731:3000000694800012RC,-27997.2,Legal Aid Payment Civil Representation,,
MOJ,LAA,11/15/2017,Civil Representation,LEGAL AID FUND,GRIFFITHS ROBERTSON,1347731:3000000694800014,49629.26,Legal Aid Payment Civil Representation,,
MOJ,LAA,11/2/2017,Legal Help,LEGAL AID FUND,GUILE NICHOLAS-INC DONALD GALBRAITH & CO,1336669:148325506,73400,Legal Aid Payment Legal Help,,
MOJ,LAA,11/2/2017,Legal Help,LEGAL AID FUND,GUILE NICHOLAS-INC DONALD GALBRAITH & CO,1337856:148325464,28670,Legal Aid Payment Legal Help,,
MOJ,LAA,11/29/2017,Legal Help,LEGAL AID FUND,GUILE NICHOLAS-INC DONALD GALBRAITH & CO,1357691:148516172,64543,Legal Aid Payment Legal Help,,
MOJ,LAA,11/29/2017,Legal Help,LEGAL AID FUND,GUILE NICHOLAS-INC DONALD GALBRAITH & CO,1358241:148515170,73400,Legal Aid Payment Legal Help,,
MOJ,LAA,11/2/2017,Lower Crime,LEGAL AID FUND,GURNEY HARDEN SOLICITORS,1339119:148327087,35564,Legal Aid Payment Lower Crime,,
MOJ,LAA,11/29/2017,Lower Crime,LEGAL AID FUND,GURNEY HARDEN SOLICITORS,1358605:148517123,40465,Legal Aid Payment Lower Crime,,
MOJ,LAA,11/2/2017,Lower Crime,LEGAL AID FUND,GWB HARTHILLS LLP,1336739:148327071,33880,Legal Aid Payment Lower Crime,,
MOJ,LAA,11/2/2017,Lower Crime,LEGAL AID FUND,GWB HARTHILLS LLP,1339142:148327056,32388,Legal Aid Payment Lower Crime,,
MOJ,LAA,11/29/2017,Lower Crime,LEGAL AID FUND,GWB HARTHILLS LLP,1357109:148516998,40150,Legal Aid Payment Lower Crime,,
MOJ,LAA,11/9/2017,Civil Representation,LEGAL AID FUND,H A UNDERWOOD SOLICITORS,1344281:2000000000004681,149265.75,Legal Aid Payment Civil Representation,,
MOJ,LAA,11/2/2017,Lower Crime,LEGAL AID FUND,H P GOWER SOLICITORS,1339017:148327169,58532,Legal Aid Payment Lower Crime,,
MOJ,LAA,11/29/2017,Lower Crime,LEGAL AID FUND,H P GOWER SOLICITORS,1358951:148517379,49940,Legal Aid Payment Lower Crime,,
MOJ,LAA,11/29/2017,Legal Help,LEGAL AID FUND,HALLIDAY REEVES LAW FIRM,1358664:148515793,26165,Legal Aid Payment Legal Help,,
MOJ,LAA,11/22/2017,Higher Crime,LEGAL AID FUND,HALLINAN BLACKBURN GITTINGS & NOTT,1352806:148463660,58760.89,Legal Aid Payment Higher Crime,,
MOJ,LAA,11/2/2017,Lower Crime,LEGAL AID FUND,HAMER CHILDS,1337350:148327035,30000,Legal Aid Payment Lower Crime,,
MOJ,LAA,11/29/2017,Lower Crime,LEGAL AID FUND,HAMER CHILDS,1359085:148516597,30000,Legal Aid Payment Lower Crime,,
MOJ,LAA,11/8/2017,Legal Help,LEGAL AID FUND,HAMPSHIRE LAW,1340894:148384217,34373.52,Legal Aid Payment Legal Help,,
MOJ,LAA,11/8/2017,Higher Crime,LEGAL AID FUND,HARBANS SINGH & CO,1340877:148379783,89975.11,Legal Aid Payment Higher Crime,,
MOJ,LAA,11/29/2017,Civil Representation,LEGAL AID FUND,HARLAND & CO LTD,1356863:3000001950860016,30932.62,Legal Aid Payment Civil Representation,,
MOJ,LAA,11/2/2017,Lower Crime,LEGAL AID FUND,HARRINGTONS SOLICITORS LTD,1339344:148327001,26800,Legal Aid Payment Lower Crime,,
MOJ,LAA,11/2/2017,Lower Crime,LEGAL AID FUND,HARRIS CUFFARO & NICHOLS,1337183:148327114,39200,Legal Aid Payment Lower Crime,,
MOJ,LAA,11/29/2017,Lower Crime,LEGAL AID FUND,HARRIS CUFFARO & NICHOLS,1354041:148516264,39200,Legal Aid Payment Lower Crime,,
MOJ,LAA,11/8/2017,Higher Crime,LEGAL AID FUND,HARRIS SOLICITORS LTD,1343657:148379196,71545.9,Legal Aid Payment Higher Crime,,
MOJ,LAA,11/15/2017,Higher Crime,LEGAL AID FUND,HARWOOD SOLICITORS,1346107:148410060,125355.01,Legal Aid Payment Higher Crime,,
MOJ,LAA,11/29/2017,Higher Crime,LEGAL AID FUND,HASAN SOLICITORS,1354728:148493844,84568.2,Legal Aid Payment Higher Crime,,
MOJ,LAA,11/2/2017,Lower Crime,LEGAL AID FUND,HASKELL & CO,1336658:148327092,36640,Legal Aid Payment Lower Crime,,
MOJ,LAA,11/29/2017,Lower Crime,LEGAL AID FUND,HASKELL & CO,1358230:148517122,29898,Legal Aid Payment Lower Crime,,
MOJ,LAA,11/15/2017,Higher Crime,LEGAL AID FUND,HCB BERRY & BERRY LTD,1346386:148401204,89975.11,Legal Aid Payment Higher Crime,,
MOJ,LAA,11/2/2017,Lower Crime,LEGAL AID FUND,HDH LAW,1339004:148327014,28000,Legal Aid Payment Lower Crime,,
MOJ,LAA,11/29/2017,Lower Crime,LEGAL AID FUND,HDH LAW,1359029:148516623,28000,Legal Aid Payment Lower Crime,,
MOJ,LAA,11/29/2017,Lower Crime,LEGAL AID FUND,HE LAW LTD,1353923:148517408,26981,Legal Aid Payment Lower Crime,,
MOJ,LAA,11/2/2017,Lower Crime,LEGAL AID FUND,HEALEY COLBON,1339146:148327005,27300,Legal Aid Payment Lower Crime,,
MOJ,LAA,11/29/2017,Lower Crime,LEGAL AID FUND,HEALEY COLBON,1358632:148516262,27300,Legal Aid Payment Lower Crime,,
MOJ,LAA,11/2/2017,Civil Representation,LEGAL AID FUND,HECHT MONTGOMERY SOLICITORS,1338177:148320199,44779.38,Legal Aid Payment Civil Representation,,
MOJ,LAA,11/2/2017,Civil Representation,LEGAL AID FUND,HECHT MONTGOMERY SOLICITORS,1338177:148320200,-43615.79,Legal Aid Payment Civil Representation,,
MOJ,LAA,11/8/2017,Higher Crime,LEGAL AID FUND,HEDLEY SOLICITORS,1343706:148347510,43799.35,Legal Aid Payment Higher Crime,,
MOJ,LAA,11/15/2017,Higher Crime,LEGAL AID FUND,HEDLEY SOLICITORS,1344913:148409975,74210.09,Legal Aid Payment Higher Crime,,
MOJ,LAA,11/29/2017,Higher Crime,LEGAL AID FUND,HEDLEY SOLICITORS,1353865:148477867,89975.11,Legal Aid Payment Higher Crime,,
MOJ,LAA,11/8/2017,Higher Crime,LEGAL AID FUND,HELEN MCCORMACK,1342797:148346134,40726.16,Legal Aid Payment Higher Crime,,
MOJ,LAA,11/16/2017,Civil Representation,LEGAL AID FUND,HENMANS LLP,1329403:148255037,-25475.36,Legal Aid Payment Civil Representation,,
MOJ,LAA,11/22/2017,Civil Representation,LEGAL AID FUND,HENMANS LLP,1353006:148255037,25475.36,Legal Aid Payment Civil Representation,,
MOJ,LAA,11/2/2017,Lower Crime,LEGAL AID FUND,HENNESSY & HAMMUDI,1339106:148327171,60000,Legal Aid Payment Lower Crime,,
MOJ,LAA,11/29/2017,Lower Crime,LEGAL AID FUND,HENNESSY & HAMMUDI,1358210:148516535,60000,Legal Aid Payment Lower Crime,,
MOJ,LAA,11/2/2017,Lower Crime,LEGAL AID FUND,HENRY HYAMS,1337094:148327029,29551,Legal Aid Payment Lower Crime,,
MOJ,LAA,11/29/2017,Lower Crime,LEGAL AID FUND,HENRY HYAMS,1354690:148517023,35242,Legal Aid Payment Lower Crime,,
MOJ,LAA,11/2/2017,Lower Crime,LEGAL AID FUND,HENRY'S SOLICITORS LTD,1339276:148327055,32167,Legal Aid Payment Lower Crime,,
MOJ,LAA,11/29/2017,Lower Crime,LEGAL AID FUND,HENRY'S SOLICITORS LTD,1356897:148517112,42406,Legal Aid Payment Lower Crime,,
MOJ,LAA,11/2/2017,Lower Crime,LEGAL AID FUND,HENSCOTT SOLICITORS,1339343:148326986,25762,Legal Aid Payment Lower Crime,,
MOJ,LAA,11/29/2017,Civil Representation,LEGAL AID FUND,HEPBURN DELANEY,1355708:3000001542770013,26891.34,Legal Aid Payment Civil Representation,,
MOJ,LAA,11/2/2017,Higher Crime,LEGAL AID FUND,HGH CRIMINAL DEFENCE SOLICITORS,1336686:148339491,79113.4,Legal Aid Payment Higher Crime,,
MOJ,LAA,11/15/2017,Higher Crime,LEGAL AID FUND,HIGHFIELD SOLICITORS LTD,1346123:148402017,89975.11,Legal Aid Payment Higher Crime,,
MOJ,LAA,11/22/2017,Higher Crime,LEGAL AID FUND,HIGHFIELD SOLICITORS LTD,1349898:148449412,28466.72,Legal Aid Payment Higher Crime,,
MOJ,LAA,11/22/2017,Higher Crime,LEGAL AID FUND,HIGHFIELD SOLICITORS LTD,1349898:148471707,53630.64,Legal Aid Payment Higher Crime,,
MOJ,LAA,11/2/2017,Lower Crime,LEGAL AID FUND,HILL TWINE,1335387:148327123,40787,Legal Aid Payment Lower Crime,,
MOJ,LAA,11/29/2017,Lower Crime,LEGAL AID FUND,HILL TWINE,1356908:148517461,34367,Legal Aid Payment Lower Crime,,
MOJ,LAA,11/2/2017,Lower Crime,LEGAL AID FUND,HINE SOLICITORS,1336503:148327050,31656,Legal Aid Payment Lower Crime,,
MOJ,LAA,11/2/2017,Lower Crime,LEGAL AID FUND,HINE SOLICITORS,1338975:148327073,34027,Legal Aid Payment Lower Crime,,
MOJ,LAA,11/2/2017,Lower Crime,LEGAL AID FUND,HINE SOLICITORS,1338976:148327037,30288,Legal Aid Payment Lower Crime,,
MOJ,LAA,11/29/2017,Lower Crime,LEGAL AID FUND,HINE SOLICITORS,1353752:148517662,36271,Legal Aid Payment Lower Crime,,
MOJ,LAA,11/29/2017,Lower Crime,LEGAL AID FUND,HINE SOLICITORS,1353932:148517342,60791,Legal Aid Payment Lower Crime,,
MOJ,LAA,11/29/2017,Lower Crime,LEGAL AID FUND,HINE SOLICITORS,1353933:148517341,66665,Legal Aid Payment Lower Crime,,
MOJ,LAA,11/29/2017,Lower Crime,LEGAL AID FUND,HINE SOLICITORS,1358997:148517346,34874,Legal Aid Payment Lower Crime,,
MOJ,LAA,11/29/2017,Lower Crime,LEGAL AID FUND,HINE SOLICITORS,1358998:148517345,45269,Legal Aid Payment Lower Crime,,
MOJ,LAA,11/29/2017,Lower Crime,LEGAL AID FUND,HINE SOLICITORS,1359000:148517343,32696,Legal Aid Payment Lower Crime,,
MOJ,LAA,11/2/2017,Legal Help,LEGAL AID FUND,HODGE JONES & ALLEN LLP,1339850:148325474,31241,Legal Aid Payment Legal Help,,
MOJ,LAA,11/2/2017,Lower Crime,LEGAL AID FUND,HODGE JONES & ALLEN LLP,1339850:148327177,61194,Legal Aid Payment Lower Crime,,
MOJ,LAA,11/2/2017,Higher Crime,LEGAL AID FUND,HODGE JONES & ALLEN LLP,1339850:148327519,50783.14,Legal Aid Payment Higher Crime,,
MOJ,LAA,11/8/2017,Higher Crime,LEGAL AID FUND,HODGE JONES & ALLEN LLP,1341270:148360723,87308.78,Legal Aid Payment Higher Crime,,
MOJ,LAA,11/15/2017,Higher Crime,LEGAL AID FUND,HODGE JONES & ALLEN LLP,1346341:148425268,105857.75,Legal Aid Payment Higher Crime,,
MOJ,LAA,11/15/2017,Higher Crime,LEGAL AID FUND,HODGE JONES & ALLEN LLP,1346341:148425274,-30092.37,Legal Aid Payment Higher Crime,,
MOJ,LAA,11/22/2017,Higher Crime,LEGAL AID FUND,HODGE JONES & ALLEN LLP,1353308:148441658,40263.98,Legal Aid Payment Higher Crime,,
MOJ,LAA,11/22/2017,Civil Representation,LEGAL AID FUND,HODGE JONES & ALLEN LLP,1353308:148454624,-25451.44,Legal Aid Payment Civil Representation,,
MOJ,LAA,11/29/2017,Legal Help,LEGAL AID FUND,HODGE JONES & ALLEN LLP,1358305:148515625,26350,Legal Aid Payment Legal Help,,
MOJ,LAA,11/29/2017,Lower Crime,LEGAL AID FUND,HODGE JONES & ALLEN LLP,1358305:148516892,66804,Legal Aid Payment Lower Crime,,
MOJ,LAA,11/29/2017,Higher Crime,LEGAL AID FUND,HODGE JONES & ALLEN LLP,1358305:148519143,30092.37,Legal Aid Payment Higher Crime,,
MOJ,LAA,11/2/2017,Higher Crime,LEGAL AID FUND,HODGSON COULTHARD & CO,1339662:148302812,27864.38,Legal Aid Payment Higher Crime,,
MOJ,LAA,11/22/2017,Higher Crime,LEGAL AID FUND,HOGAN BROWN SOLICITORS,1351559:148449230,42490.59,Legal Aid Payment Higher Crime,,
MOJ,LAA,11/29/2017,Lower Crime,LEGAL AID FUND,HORSMAN SOLICITORS LTD,1354380:148517125,31656,Legal Aid Payment Lower Crime,,
MOJ,LAA,11/2/2017,Lower Crime,LEGAL AID FUND,HOWARD & BYRNE SOLICITORS,1336716:148327170,58700,Legal Aid Payment Lower Crime,,
MOJ,LAA,11/29/2017,Lower Crime,LEGAL AID FUND,HOWARD & BYRNE SOLICITORS,1357185:148516423,58700,Legal Aid Payment Lower Crime,,
MOJ,LAA,11/8/2017,Higher Crime,LEGAL AID FUND,HOWARDS SOLICITORS LTD,1342895:148379278,30921.6,Legal Aid Payment Higher Crime,,
MOJ,LAA,11/2/2017,Legal Help,LEGAL AID FUND,HOWE & CO,1336740:148325504,68423,Legal Aid Payment Legal Help,,
MOJ,LAA,11/29/2017,Legal Help,LEGAL AID FUND,HOWE & CO,1357110:148515640,44212,Legal Aid Payment Legal Help,,
MOJ,LAA,11/2/2017,Lower Crime,LEGAL AID FUND,HOWELLS LLP,1337077:148327140,44300,Legal Aid Payment Lower Crime,,
MOJ,LAA,11/29/2017,Lower Crime,LEGAL AID FUND,HOWELLS LLP,1354770:148516410,44900,Legal Aid Payment Lower Crime,,
MOJ,LAA,11/2/2017,Higher Crime,LEGAL AID FUND,HSR SOLICITORS,1336633:148340044,89975.11,Legal Aid Payment Higher Crime,,
MOJ,LAA,11/29/2017,Civil Representation,LEGAL AID FUND,HUGH JAMES,1353638:9690984,27178.05,Legal Aid Payment Civil Representation,,
MOJ,LAA,11/29/2017,Civil Representation,LEGAL AID FUND,HUGH JAMES,1353638:9690985,70841.6,Legal Aid Payment Civil Representation,,
MOJ,LAA,11/29/2017,Civil Representation,LEGAL AID FUND,HUGH JAMES,1353638:9690987,26957.06,Legal Aid Payment Civil Representation,,
MOJ,LAA,11/29/2017,Higher Crime,LEGAL AID FUND,HUMPHRYS DAWSON,1356875:148501112,33662.03,Legal Aid Payment Higher Crime,,
MOJ,LAA,11/29/2017,Legal Help,LEGAL AID FUND,HUNT & COOMBS LLP,1355428:148515443,26707,Legal Aid Payment Legal Help,,
MOJ,LAA,11/29/2017,Lower Crime,LEGAL AID FUND,HUNT & COOMBS LLP,1355428:148516812,25056,Legal Aid Payment Lower Crime,,
MOJ,LAA,11/15/2017,Higher Crime,LEGAL AID FUND,HURRAIRAH HARRIS SOLICITORS,1344949:148425057,88442.71,Legal Aid Payment Higher Crime,,
MOJ,LAA,11/22/2017,Higher Crime,LEGAL AID FUND,HUSSAIN SOLICITORS LTD,1351369:148456472,72372.67,Legal Aid Payment Higher Crime,,
MOJ,LAA,11/6/2017,Civil Representation,LEGAL AID FUND,HUTTONS LAW LTD,1340162:2000000000004645,61265.51,Legal Aid Payment Civil Representation,,
MOJ,LAA,11/2/2017,Lower Crime,LEGAL AID FUND,I B B SOLICITORS,1336764:148327190,75300,Legal Aid Payment Lower Crime,,
MOJ,LAA,11/2/2017,Civil Representation,LEGAL AID FUND,I B B SOLICITORS,1336764:3000001007230014,41229.42,Legal Aid Payment Civil Representation,,
MOJ,LAA,11/29/2017,Lower Crime,LEGAL AID FUND,I B B SOLICITORS,1357477:148516308,75300,Legal Aid Payment Lower Crime,,
MOJ,LAA,11/3/2017,Civil Representation,LEGAL AID FUND,IACOPI PALMER SOLICITORS LLP,1340153:2000000000004624,73628.05,Legal Aid Payment Civil Representation,,
MOJ,LAA,11/22/2017,Higher Crime,LEGAL AID FUND,IAIN R O SUGGETT,1352994:148456342,25620,Legal Aid Payment Higher Crime,,
MOJ,LAA,11/2/2017,Higher Crime,LEGAL AID FUND,IAN F HENDERSON,1335960:148340340,66302.75,Legal Aid Payment Higher Crime,,
MOJ,LAA,11/22/2017,Higher Crime,LEGAL AID FUND,ICAH D E PEART QC,1352906:148440132,31602.68,Legal Aid Payment Higher Crime,,
MOJ,LAA,11/29/2017,Higher Crime,LEGAL AID FUND,IGNATIUS L HUGHES QC,1356236:148493130,37796.82,Legal Aid Payment Higher Crime,,
MOJ,LAA,11/2/2017,Lower Crime,LEGAL AID FUND,INSTALAW,1337784:148327187,71827,Legal Aid Payment Lower Crime,,
MOJ,LAA,11/29/2017,Lower Crime,LEGAL AID FUND,INSTALAW,1358460:148517527,85531,Legal Aid Payment Lower Crime,,
MOJ,LAA,11/2/2017,Lower Crime,LEGAL AID FUND,IRVINE THANVI NATAS SOLICITORS,1339283:148327184,70400,Legal Aid Payment Lower Crime,,
MOJ,LAA,11/29/2017,Lower Crime,LEGAL AID FUND,IRVINE THANVI NATAS SOLICITORS,1356810:148516289,70400,Legal Aid Payment Lower Crime,,
MOJ,LAA,11/2/2017,Civil Representation,LEGAL AID FUND,IRWIN MITCHELL LLP,1339697:148343591,77014.08,Legal Aid Payment Civil Representation,,
MOJ,LAA,11/22/2017,Higher Crime,LEGAL AID FUND,IRWIN MITCHELL LLP,1349808:148394116,25289.33,Legal Aid Payment Higher Crime,,
MOJ,LAA,11/22/2017,Civil Representation,LEGAL AID FUND,IRWIN MITCHELL LLP,1349808:148421986,-31923.19,Legal Aid Payment Civil Representation,,
MOJ,LAA,11/23/2017,Civil Representation,LEGAL AID FUND,IRWIN MITCHELL LLP,1353613:148139843,-29588,Legal Aid Payment Civil Representation,,
MOJ,LAA,11/23/2017,Civil Representation,LEGAL AID FUND,IRWIN MITCHELL LLP,1353613:2000000000004858,137814.65,Legal Aid Payment Civil Representation,,
MOJ,LAA,11/29/2017,Higher Crime,LEGAL AID FUND,ISHAQ & UDDIN ASSOCIATES LLP,1358386:148500508,32423.81,Legal Aid Payment Higher Crime,,
MOJ,LAA,11/2/2017,Legal Help,LEGAL AID FUND,ISON HARRISON LTD,1339334:148325473,30054,Legal Aid Payment Legal Help,,
MOJ,LAA,11/15/2017,Higher Crime,LEGAL AID FUND,ISON HARRISON LTD,1348485:148425585,105857.75,Legal Aid Payment Higher Crime,,
MOJ,LAA,11/22/2017,Civil Representation,LEGAL AID FUND,ISON HARRISON LTD,1351554:148452791,28242.72,Legal Aid Payment Civil Representation,,
MOJ,LAA,11/29/2017,Civil Representation,LEGAL AID FUND,ISON HARRISON LTD,1357141:3000001748960012,32526.6,Legal Aid Payment Civil Representation,,
MOJ,LAA,11/29/2017,Legal Help,LEGAL AID FUND,ISON HARRISON LTD,1357143:148515545,27553,Legal Aid Payment Legal Help,,
MOJ,LAA,11/2/2017,Lower Crime,LEGAL AID FUND,J D SOLICITORS,1335167:148327167,56986,Legal Aid Payment Lower Crime,,
MOJ,LAA,11/29/2017,Lower Crime,LEGAL AID FUND,J D SOLICITORS,1354075:148517711,49225,Legal Aid Payment Lower Crime,,
MOJ,LAA,11/2/2017,Lower Crime,LEGAL AID FUND,J D SPICER ZEB,1339853:148327197,86276,Legal Aid Payment Lower Crime,,
MOJ,LAA,11/15/2017,Higher Crime,LEGAL AID FUND,J D SPICER ZEB,1346342:148385818,69460.2,Legal Aid Payment Higher Crime,,
MOJ,LAA,11/29/2017,Higher Crime,LEGAL AID FUND,J D SPICER ZEB,1358306:148478400,57366.88,Legal Aid Payment Higher Crime,,
MOJ,LAA,11/29/2017,Legal Help,LEGAL AID FUND,J D SPICER ZEB,1358307:148515600,29778,Legal Aid Payment Legal Help,,
MOJ,LAA,11/29/2017,Lower Crime,LEGAL AID FUND,J D SPICER ZEB,1358308:148516854,89216,Legal Aid Payment Lower Crime,,
MOJ,LAA,11/2/2017,Higher Crime,LEGAL AID FUND,J. R. JONES SOLICITORS,1339878:148309151,30907.25,Legal Aid Payment Higher Crime,,
MOJ,LAA,11/9/2017,Civil Representation,LEGAL AID FUND,JACKAMANS SOLICITORS,1344263:2000000000004686,25724.34,Legal Aid Payment Civil Representation,,
MOJ,LAA,11/2/2017,Legal Help,LEGAL AID FUND,JACKSON LEES GROUP LTD,1335712:148325500,62774,Legal Aid Payment Legal Help,,
MOJ,LAA,11/2/2017,Lower Crime,LEGAL AID FUND,JACKSON LEES GROUP LTD,1335712:148327138,44047,Legal Aid Payment Lower Crime,,
MOJ,LAA,11/2/2017,Higher Crime,LEGAL AID FUND,JACKSON LEES GROUP LTD,1335712:148327620,49729.07,Legal Aid Payment Higher Crime,,
MOJ,LAA,11/2/2017,Legal Help,LEGAL AID FUND,JACKSON LEES GROUP LTD,1337319:148325495,47237,Legal Aid Payment Legal Help,,
MOJ,LAA,11/29/2017,Legal Help,LEGAL AID FUND,JACKSON LEES GROUP LTD,1354963:148516142,63569,Legal Aid Payment Legal Help,,
MOJ,LAA,11/29/2017,Lower Crime,LEGAL AID FUND,JACKSON LEES GROUP LTD,1354963:148517444,41452,Legal Aid Payment Lower Crime,,
MOJ,LAA,11/29/2017,Legal Help,LEGAL AID FUND,JACKSON LEES GROUP LTD,1359056:148515563,47859,Legal Aid Payment Legal Help,,
MOJ,LAA,11/8/2017,Higher Crime,LEGAL AID FUND,JACOBS SOLICITORS LTD,1342595:148379891,25391.27,Legal Aid Payment Higher Crime,,
MOJ,LAA,11/22/2017,Higher Crime,LEGAL AID FUND,JAMES A D WOOD QC,1351262:148432812,25567.26,Legal Aid Payment Higher Crime,,
MOJ,LAA,11/15/2017,Higher Crime,LEGAL AID FUND,JAMES G C DOYLE,1348018:148401574,28089.34,Legal Aid Payment Higher Crime,,
MOJ,LAA,11/29/2017,Lower Crime,LEGAL AID FUND,JAMES MURRAY SOLICITORS,1356295:148516937,26468,Legal Aid Payment Lower Crime,,
MOJ,LAA,11/29/2017,Higher Crime,LEGAL AID FUND,JAMES R TILBURY,1358166:148486150,26877.02,Legal Aid Payment Higher Crime,,
MOJ,LAA,11/29/2017,Higher Crime,LEGAL AID FUND,JANES SOLICITORS,1354003:148496799,125861.16,Legal Aid Payment Higher Crime,,
MOJ,LAA,11/29/2017,Higher Crime,LEGAL AID FUND,JASON K PITTER,1353839:148518157,25107.22,Legal Aid Payment Higher Crime,,
MOJ,LAA,11/2/2017,Lower Crime,LEGAL AID FUND,JASON NICHOLSON,1337573:148327098,37449,Legal Aid Payment Lower Crime,,
MOJ,LAA,11/29/2017,Lower Crime,LEGAL AID FUND,JASON NICHOLSON,1354460:148517768,28096,Legal Aid Payment Lower Crime,,
MOJ,LAA,11/8/2017,Higher Crime,LEGAL AID FUND,JEFFREY P CHAPMAN,1344127:148380273,41313.8,Legal Aid Payment Higher Crime,,
MOJ,LAA,11/15/2017,Higher Crime,LEGAL AID FUND,JENNIFER JOSEPHS,1346807:148402372,25615.03,Legal Aid Payment Higher Crime,,
MOJ,LAA,11/2/2017,Lower Crime,LEGAL AID FUND,JERMAN SAMUELS & PEARSON LLP,1337617:148327182,65000,Legal Aid Payment Lower Crime,,
MOJ,LAA,11/22/2017,Higher Crime,LEGAL AID FUND,JERMAN SAMUELS & PEARSON LLP,1351202:148448239,54397.98,Legal Aid Payment Higher Crime,,
MOJ,LAA,11/29/2017,Lower Crime,LEGAL AID FUND,JERMAN SAMUELS & PEARSON LLP,1354045:148516650,65000,Legal Aid Payment Lower Crime,,
MOJ,LAA,11/2/2017,Legal Help,LEGAL AID FUND,JESSE DOUGLAS & AASKELLS SOLICITORS,1337531:148325489,43578,Legal Aid Payment Legal Help,,
MOJ,LAA,11/29/2017,Legal Help,LEGAL AID FUND,JESSE DOUGLAS & AASKELLS SOLICITORS,1357597:148515602,63870,Legal Aid Payment Legal Help,,
MOJ,LAA,11/15/2017,Civil Representation,LEGAL AID FUND,JMW SOLICITORS LLP,1346849:148276842,-26674.56,Legal Aid Payment Civil Representation,,
MOJ,LAA,11/15/2017,Higher Crime,LEGAL AID FUND,JMW SOLICITORS LLP,1346849:148309615,56365.02,Legal Aid Payment Higher Crime,,
MOJ,LAA,11/29/2017,Civil Representation,LEGAL AID FUND,JOHN A PITT VATER,1357037:3000002378350025,42411.6,Legal Aid Payment Civil Representation,,
MOJ,LAA,11/22/2017,Civil Representation,LEGAL AID FUND,JOHN C HAMILTON,1353269:148467731,28405.62,Legal Aid Payment Civil Representation,,
MOJ,LAA,11/2/2017,Lower Crime,LEGAL AID FUND,JOHN DELANEY & CO SOLICITORS,1339335:148327064,33000,Legal Aid Payment Lower Crime,,
MOJ,LAA,11/15/2017,Higher Crime,LEGAL AID FUND,JOHN DELANEY & CO SOLICITORS,1348486:148409983,107970.13,Legal Aid Payment Higher Crime,,
MOJ,LAA,11/29/2017,Lower Crime,LEGAL AID FUND,JOHN DELANEY & CO SOLICITORS,1357144:148516434,33000,Legal Aid Payment Lower Crime,,
MOJ,LAA,11/29/2017,Higher Crime,LEGAL AID FUND,JOHN FOSTER HARRISON QC,1358914:148512491,73920,Legal Aid Payment Higher Crime,,
MOJ,LAA,11/2/2017,Civil Representation,LEGAL AID FUND,JOHN FOWLERS LLP,1337059:148337530,27617.77,Legal Aid Payment Civil Representation,,
MOJ,LAA,11/2/2017,Lower Crime,LEGAL AID FUND,JOHN FULLER & PARTNERS,1339084:148327084,35391,Legal Aid Payment Lower Crime,,
MOJ,LAA,11/29/2017,Lower Crime,LEGAL AID FUND,JOHN FULLER & PARTNERS,1358282:148516773,32412,Legal Aid Payment Lower Crime,,
MOJ,LAA,11/2/2017,Lower Crime,LEGAL AID FUND,JOHN ONIONS SOLICITORS,1337256:148326981,25558,Legal Aid Payment Lower Crime,,
MOJ,LAA,11/29/2017,Lower Crime,LEGAL AID FUND,JOHN ONIONS SOLICITORS,1359087:148517215,29740,Legal Aid Payment Lower Crime,,
MOJ,LAA,11/8/2017,Civil Representation,LEGAL AID FUND,JOHN R THORNTON,1341933:148384950,25708.32,Legal Aid Payment Civil Representation,,
MOJ,LAA,11/29/2017,Higher Crime,LEGAL AID FUND,JOHN T BENSON QC,1354189:148493853,27253.88,Legal Aid Payment Higher Crime,,
MOJ,LAA,11/2/2017,Lower Crime,LEGAL AID FUND,JOHNSON ASTILLS,1339477:148327017,28500,Legal Aid Payment Lower Crime,,
MOJ,LAA,11/29/2017,Lower Crime,LEGAL AID FUND,JOHNSON ASTILLS,1355695:148516239,28500,Legal Aid Payment Lower Crime,,
MOJ,LAA,11/29/2017,Higher Crime,LEGAL AID FUND,JONAS ROY BLOOM,1357174:148519185,107970.13,Legal Aid Payment Higher Crime,,
MOJ,LAA,11/15/2017,Civil Representation,LEGAL AID FUND,JONATHAN R B ADLER,1347204:148397957,26026.68,Legal Aid Payment Civil Representation,,
MOJ,LAA,11/22/2017,Higher Crime,LEGAL AID FUND,JONATHAN R T PAGE,1351062:148456792,30052.92,Legal Aid Payment Higher Crime,,
MOJ,LAA,11/15/2017,Higher Crime,LEGAL AID FUND,JONATHON P GREEN,1347629:148410300,29466.6,Legal Aid Payment Higher Crime,,
MOJ,LAA,11/15/2017,Civil Representation,LEGAL AID FUND,JORDANS SOLICITORS,1347393:3000000733000011,49411.1,Legal Aid Payment Civil Representation,,
MOJ,LAA,11/2/2017,Lower Crime,LEGAL AID FUND,JOSEPH HILL & CO,1337139:148327186,71497,Legal Aid Payment Lower Crime,,
MOJ,LAA,11/8/2017,Higher Crime,LEGAL AID FUND,JOSEPH HILL & CO,1342008:148346797,89975.11,Legal Aid Payment Higher Crime,,
MOJ,LAA,11/8/2017,Higher Crime,LEGAL AID FUND,JOSEPH HILL & CO,1342008:148354506,72211.81,Legal Aid Payment Higher Crime,,
MOJ,LAA,11/29/2017,Lower Crime,LEGAL AID FUND,JOSEPH HILL & CO,1355115:148516856,38308,Legal Aid Payment Lower Crime,,
MOJ,LAA,11/2/2017,Lower Crime,LEGAL AID FUND,JSP LAW LTD,1335358:148327164,55334,Legal Aid Payment Lower Crime,,
MOJ,LAA,11/29/2017,Lower Crime,LEGAL AID FUND,JSP LAW LTD,1358042:148517484,39068,Legal Aid Payment Lower Crime,,
MOJ,LAA,11/9/2017,Civil Representation,LEGAL AID FUND,JULIA F TOWNEND,1344278:147776874,58006.8,Legal Aid Payment Civil Representation,,
MOJ,LAA,11/2/2017,Civil Representation,LEGAL AID FUND,JWP SOLICITORS,1335476:3000002392960013,33574.06,Legal Aid Payment Civil Representation,,
MOJ,LAA,11/29/2017,Higher Crime,LEGAL AID FUND,JWP SOLICITORS,1357117:148478974,33063.69,Legal Aid Payment Higher Crime,,
MOJ,LAA,11/29/2017,Civil Representation,LEGAL AID FUND,K BOSWELL & CO,1354760:148421272,26725.34,Legal Aid Payment Civil Representation,,
MOJ,LAA,11/2/2017,Lower Crime,LEGAL AID FUND,K LEGAL SOLICITORS,1336450:148327144,45360,Legal Aid Payment Lower Crime,,
MOJ,LAA,11/29/2017,Lower Crime,LEGAL AID FUND,K LEGAL SOLICITORS,1353874:148517398,31771,Legal Aid Payment Lower Crime,,
MOJ,LAA,11/29/2017,Higher Crime,LEGAL AID FUND,K LEGAL SOLICITORS,1353874:148518925,54387.97,Legal Aid Payment Higher Crime,,
MOJ,LAA,11/27/2017,Higher Crime,LEGAL AID FUND,KAIM TODNER SOLICITORS LIMITED,1353630:2000000000004884,27618.5,Legal Aid Payment Higher Crime,,
MOJ,LAA,11/22/2017,Higher Crime,LEGAL AID FUND,KALBER STRUCKLEY & CO LTD,1353307:148440994,56307.36,Legal Aid Payment Higher Crime,,
MOJ,LAA,11/22/2017,Higher Crime,LEGAL AID FUND,KAMA MELLY,1352886:148433309,27027.28,Legal Aid Payment Higher Crime,,
MOJ,LAA,11/8/2017,Higher Crime,LEGAL AID FUND,KANGS SOLICITORS,1341407:148347729,46279.15,Legal Aid Payment Higher Crime,,
MOJ,LAA,11/29/2017,Higher Crime,LEGAL AID FUND,KARIM & CO SOLICITORS,1356287:148478284,66491.44,Legal Aid Payment Higher Crime,,
MOJ,LAA,11/29/2017,Higher Crime,LEGAL AID FUND,KARIM & CO SOLICITORS,1356287:148485719,26653.4,Legal Aid Payment Higher Crime,,
MOJ,LAA,11/2/2017,Civil Representation,LEGAL AID FUND,KATE SMITH,1338405:3000001208420014RC,-29376,Legal Aid Payment Civil Representation,,
MOJ,LAA,11/29/2017,Civil Representation,LEGAL AID FUND,KATHRYN M SKELLORN,1355800:3000001377640016,25336.8,Legal Aid Payment Civil Representation,,
MOJ,LAA,11/9/2017,Civil Representation,LEGAL AID FUND,KATIE A HARRIS,1344282:3000001302350019RC,-29697.42,Legal Aid Payment Civil Representation,,
MOJ,LAA,11/2/2017,Lower Crime,LEGAL AID FUND,KEANEY WHITEHEAD PARTNERSHIP,1339071:148327004,27294,Legal Aid Payment Lower Crime,,
MOJ,LAA,11/29/2017,Lower Crime,LEGAL AID FUND,KEANEY WHITEHEAD PARTNERSHIP,1358652:148516942,29828,Legal Aid Payment Lower Crime,,
MOJ,LAA,11/22/2017,Higher Crime,LEGAL AID FUND,KELLOCKS,1351124:148441004,26233.28,Legal Aid Payment Higher Crime,,
MOJ,LAA,11/8/2017,Higher Crime,LEGAL AID FUND,KELLYS,1341063:148361322,33023.07,Legal Aid Payment Higher Crime,,
MOJ,LAA,11/2/2017,Civil Representation,LEGAL AID FUND,KENNETH BUSH LTD,1339524:3000000956300011RC,-25077.6,Legal Aid Payment Civil Representation,,
MOJ,LAA,11/2/2017,Civil Representation,LEGAL AID FUND,KENNETH BUSH LTD,1339524:3000000956300014,28660.3,Legal Aid Payment Civil Representation,,
MOJ,LAA,11/22/2017,Higher Crime,LEGAL AID FUND,KENNETH M BARROW & CO,1349776:148440301,25183.96,Legal Aid Payment Higher Crime,,
MOJ,LAA,11/2/2017,Lower Crime,LEGAL AID FUND,KENYON MCATEER SOLICITORS,1336561:148327059,32547,Legal Aid Payment Lower Crime,,
MOJ,LAA,11/29/2017,Lower Crime,LEGAL AID FUND,KESAR & CO SOLICITORS,1353868:148517400,27203,Legal Aid Payment Lower Crime,,
MOJ,LAA,11/8/2017,Higher Crime,LEGAL AID FUND,KHAN'S LAW FIRM LTD TA KK & CO,1343656:148378888,25548.84,Legal Aid Payment Higher Crime,,
MOJ,LAA,11/8/2017,Civil Representation,LEGAL AID FUND,KINGSFORDS SOLICITORS LTD,1340835:3000002350510010,36407.16,Legal Aid Payment Civil Representation,,
MOJ,LAA,11/8/2017,Civil Representation,LEGAL AID FUND,KIRSTY GALLACHER,1344086:148343861,51915.6,Legal Aid Payment Civil Representation,,
MOJ,LAA,11/2/2017,Lower Crime,LEGAL AID FUND,KIRWANS,1336956:148327108,38576,Legal Aid Payment Lower Crime,,
MOJ,LAA,11/2/2017,Lower Crime,LEGAL AID FUND,KYLES LEGAL PRACTICE,1338999:148327121,40146,Legal Aid Payment Lower Crime,,
MOJ,LAA,11/29/2017,Lower Crime,LEGAL AID FUND,KYLES LEGAL PRACTICE,1359013:148517283,33569,Legal Aid Payment Lower Crime,,
MOJ,LAA,11/2/2017,Lower Crime,LEGAL AID FUND,LANSBURY WORTHINGTON LTD,1337179:148327162,54900,Legal Aid Payment Lower Crime,,
MOJ,LAA,11/29/2017,Lower Crime,LEGAL AID FUND,LANSBURY WORTHINGTON LTD,1354037:148516279,54900,Legal Aid Payment Lower Crime,,
MOJ,LAA,11/2/2017,Lower Crime,LEGAL AID FUND,LANYON BOWDLER LLP,1337274:148326998,26600,Legal Aid Payment Lower Crime,,
MOJ,LAA,11/29/2017,Lower Crime,LEGAL AID FUND,LANYON BOWDLER LLP,1358761:148516568,26600,Legal Aid Payment Lower Crime,,
MOJ,LAA,11/2/2017,Legal Help,LEGAL AID FUND,LAWANA & CO,1339091:148325501,64000,Legal Aid Payment Legal Help,,
MOJ,LAA,11/29/2017,Legal Help,LEGAL AID FUND,LAWANA & CO,1358194:148515155,64000,Legal Aid Payment Legal Help,,
MOJ,LAA,11/2/2017,Lower Crime,LEGAL AID FUND,LAWRENCE & CO SOLICITORS CDS LLP,1337140:148327179,62900,Legal Aid Payment Lower Crime,,
MOJ,LAA,11/29/2017,Lower Crime,LEGAL AID FUND,LAWRENCE & CO SOLICITORS CDS LLP,1355116:148516338,62900,Legal Aid Payment Lower Crime,,
MOJ,LAA,11/15/2017,Civil Representation,LEGAL AID FUND,LAWRENCE CANNIFORD,1344409:1000000361390001,32415.66,Legal Aid Payment Civil Representation,,
MOJ,LAA,11/2/2017,Lower Crime,LEGAL AID FUND,LAWTONS SOLICITORS LTD,1335037:148327083,35000,Legal Aid Payment Lower Crime,,
MOJ,LAA,11/2/2017,Lower Crime,LEGAL AID FUND,LAWTONS SOLICITORS LTD,1339009:148327163,55000,Legal Aid Payment Lower Crime,,
MOJ,LAA,11/29/2017,Lower Crime,LEGAL AID FUND,LAWTONS SOLICITORS LTD,1354496:148517578,26803,Legal Aid Payment Lower Crime,,
MOJ,LAA,11/29/2017,Lower Crime,LEGAL AID FUND,LAWTONS SOLICITORS LTD,1354497:148516651,35000,Legal Aid Payment Lower Crime,,
MOJ,LAA,11/29/2017,Lower Crime,LEGAL AID FUND,LAWTONS SOLICITORS LTD,1358944:148516627,55000,Legal Aid Payment Lower Crime,,
MOJ,LAA,11/2/2017,Legal Help,LEGAL AID FUND,LEGAL JUSTICE SOLICITORS,1335414:148325470,29537,Legal Aid Payment Legal Help,,
MOJ,LAA,11/29/2017,Legal Help,LEGAL AID FUND,LEGAL JUSTICE SOLICITORS,1356937:148516064,44479,Legal Aid Payment Legal Help,,
MOJ,LAA,11/2/2017,Legal Help,LEGAL AID FUND,LEI DAT BAIG SOLICITORS LIMITED,1338923:148325485,37578,Legal Aid Payment Legal Help,,
MOJ,LAA,11/29/2017,Legal Help,LEGAL AID FUND,LEI DAT BAIG SOLICITORS LIMITED,1354242:148515922,53755,Legal Aid Payment Legal Help,,
MOJ,LAA,11/2/2017,Lower Crime,LEGAL AID FUND,LESLIE FRANKS SOLICITORS,1336629:148327191,75954,Legal Aid Payment Lower Crime,,
MOJ,LAA,11/29/2017,Lower Crime,LEGAL AID FUND,LESLIE FRANKS SOLICITORS,1357819:148516895,84232,Legal Aid Payment Lower Crime,,
MOJ,LAA,11/8/2017,Higher Crime,LEGAL AID FUND,LEVINS SOLICITORS,1342705:148353774,89739.94,Legal Aid Payment Higher Crime,,
MOJ,LAA,11/2/2017,Lower Crime,LEGAL AID FUND,LEVY & CO SOLICITORS LLP,1339087:148327165,56300,Legal Aid Payment Lower Crime,,
MOJ,LAA,11/29/2017,Lower Crime,LEGAL AID FUND,LEVY & CO SOLICITORS LLP,1358189:148516266,56300,Legal Aid Payment Lower Crime,,
MOJ,LAA,11/2/2017,Lower Crime,LEGAL AID FUND,LEWIS NEDAS LAW LTD,1337377:148327042,30700,Legal Aid Payment Lower Crime,,
MOJ,LAA,11/29/2017,Lower Crime,LEGAL AID FUND,LEWIS NEDAS LAW LTD,1357912:148516330,30700,Legal Aid Payment Lower Crime,,
MOJ,LAA,11/2/2017,Lower Crime,LEGAL AID FUND,LHD SOLICITORS LTD,1339245:148327030,30000,Legal Aid Payment Lower Crime,,
MOJ,LAA,11/29/2017,Lower Crime,LEGAL AID FUND,LHD SOLICITORS LTD,1357871:148516447,36600,Legal Aid Payment Lower Crime,,
MOJ,LAA,11/8/2017,Civil Representation,LEGAL AID FUND,LIANNE C MURPHY,1344039:3000001634420009,29548.8,Legal Aid Payment Civil Representation,,
MOJ,LAA,11/15/2017,Civil Representation,LEGAL AID FUND,LISA BARRACLOUGH,1347780:148399407,39549.6,Legal Aid Payment Civil Representation,,
MOJ,LAA,11/29/2017,Civil Representation,LEGAL AID FUND,LISA J THOMAS,1356143:3000001273900011,36598.09,Legal Aid Payment Civil Representation,,
MOJ,LAA,11/2/2017,Legal Help,LEGAL AID FUND,LISA MARIE MCNULTY SOLICITOR,1336885:148325472,30008,Legal Aid Payment Legal Help,,
MOJ,LAA,11/29/2017,Legal Help,LEGAL AID FUND,LISA MARIE MCNULTY SOLICITOR,1356321:148515661,28153,Legal Aid Payment Legal Help,,
MOJ,LAA,11/15/2017,Civil Representation,LEGAL AID FUND,LITTLESTONE COWAN SOLICITORS,1347677:3000001449710019,26181.4,Legal Aid Payment Civil Representation,,
MOJ,LAA,11/2/2017,Lower Crime,LEGAL AID FUND,LLM SOLICITORS (LONDON) LTD,1339005:148327129,41643,Legal Aid Payment Lower Crime,,
MOJ,LAA,11/29/2017,Lower Crime,LEGAL AID FUND,LLM SOLICITORS (LONDON) LTD,1359030:148517391,45239,Legal Aid Payment Lower Crime,,
MOJ,LAA,11/29/2017,Higher Crime,LEGAL AID FUND,LLM SOLICITORS (LONDON) LTD,1359030:148519330,29684.23,Legal Aid Payment Higher Crime,,
MOJ,LAA,11/9/2017,Civil Representation,LEGAL AID FUND,LLOYD BRENNAND,1344285:2000000000004682,29036.79,Legal Aid Payment Civil Representation,,
MOJ,LAA,11/22/2017,Higher Crime,LEGAL AID FUND,LLOYD J MORGAN,1350522:148471287,25700.88,Legal Aid Payment Higher Crime,,
MOJ,LAA,11/2/2017,Lower Crime,LEGAL AID FUND,LLOYDS PR SOLICITORS,1339144:148327113,39108,Legal Aid Payment Lower Crime,,
MOJ,LAA,11/2/2017,Lower Crime,LEGAL AID FUND,LLOYDS PR SOLICITORS,1339256:148327132,42031,Legal Aid Payment Lower Crime,,
MOJ,LAA,11/8/2017,Higher Crime,LEGAL AID FUND,LLOYDS PR SOLICITORS,1342955:148346956,89975.11,Legal Aid Payment Higher Crime,,
MOJ,LAA,11/15/2017,Higher Crime,LEGAL AID FUND,LLOYDS PR SOLICITORS,1344593:148393842,40540.39,Legal Aid Payment Higher Crime,,
MOJ,LAA,11/15/2017,Higher Crime,LEGAL AID FUND,LLOYDS PR SOLICITORS,1344593:148401317,49489.92,Legal Aid Payment Higher Crime,,
MOJ,LAA,11/15/2017,Higher Crime,LEGAL AID FUND,LLOYDS PR SOLICITORS,1344593:148424994,37966.14,Legal Aid Payment Higher Crime,,
MOJ,LAA,11/29/2017,Lower Crime,LEGAL AID FUND,LLOYDS PR SOLICITORS,1357161:148516769,27197,Legal Aid Payment Lower Crime,,
MOJ,LAA,11/29/2017,Lower Crime,LEGAL AID FUND,LLOYDS PR SOLICITORS,1358630:148516775,36022,Legal Aid Payment Lower Crime,,
MOJ,LAA,11/29/2017,Civil Representation,LEGAL AID FUND,LLYS CENNEN SOLICITORS,1358348:3000001298940013,25289.26,Legal Aid Payment Civil Representation,,
MOJ,LAA,11/22/2017,Civil Representation,LEGAL AID FUND,LORNA G MEYER QC,1350288:3000002551880009,47401.2,Legal Aid Payment Civil Representation,,
MOJ,LAA,11/14/2017,Civil Representation,LEGAL AID FUND,LORRAINE CAVANAGH,1344354:147224611,-25041.24,Legal Aid Payment Civil Representation,,
MOJ,LAA,11/14/2017,Civil Representation,LEGAL AID FUND,LORRAINE CAVANAGH,1344354:147224624,-32285.16,Legal Aid Payment Civil Representation,,
MOJ,LAA,11/2/2017,Civil Representation,LEGAL AID FUND,LUCINDA J DAVIS,1338942:148161664,30502.97,Legal Aid Payment Civil Representation,,
MOJ,LAA,11/2/2017,Civil Representation,LEGAL AID FUND,LUCINDA J DAVIS,1338942:148200983,-31368.17,Legal Aid Payment Civil Representation,,
MOJ,LAA,11/15/2017,Civil Representation,LEGAL AID FUND,LUCY E SOWDEN,1348604:3000001946700010,27873.17,Legal Aid Payment Civil Representation,,
MOJ,LAA,11/22/2017,Higher Crime,LEGAL AID FUND,LUCY KENNEDY,1352882:148250353,25052.42,Legal Aid Payment Higher Crime,,
MOJ,LAA,11/2/2017,Lower Crime,LEGAL AID FUND,LUMB & MACGILL,1336747:148327079,35000,Legal Aid Payment Lower Crime,,
MOJ,LAA,11/29/2017,Lower Crime,LEGAL AID FUND,LUMB & MACGILL,1357118:148516425,35000,Legal Aid Payment Lower Crime,,
MOJ,LAA,11/29/2017,Civil Representation,LEGAL AID FUND,LUMB & MACGILL,1357118:3000000822430004,44988.8,Legal Aid Payment Civil Representation,,
MOJ,LAA,11/2/2017,Legal Help,LEGAL AID FUND,LUPINS,1339441:148325508,88411,Legal Aid Payment Legal Help,,
MOJ,LAA,11/29/2017,Legal Help,LEGAL AID FUND,LUPINS,1356592:148515599,85448,Legal Aid Payment Legal Help,,
MOJ,LAA,11/22/2017,Civil Representation,LEGAL AID FUND,LYDIA SLEE,1351304:148148268,32184,Legal Aid Payment Civil Representation,,
MOJ,LAA,11/8/2017,Higher Crime,LEGAL AID FUND,M & M SOLICITORS,1343458:148378879,68222.11,Legal Aid Payment Higher Crime,,
MOJ,LAA,11/22/2017,Higher Crime,LEGAL AID FUND,M & M SOLICITORS,1351578:148440683,110552.77,Legal Aid Payment Higher Crime,,
MOJ,LAA,11/22/2017,Higher Crime,LEGAL AID FUND,M & M SOLICITORS,1351578:148456666,32579.84,Legal Aid Payment Higher Crime,,
MOJ,LAA,11/8/2017,Higher Crime,LEGAL AID FUND,M B LAW LTD,1343338:148378889,127029.3,Legal Aid Payment Higher Crime,,
MOJ,LAA,11/15/2017,Higher Crime,LEGAL AID FUND,M B LAW LTD,1344559:148402303,47436.92,Legal Aid Payment Higher Crime,,
MOJ,LAA,11/22/2017,Higher Crime,LEGAL AID FUND,M B LAW LTD,1351756:148471299,62035.02,Legal Aid Payment Higher Crime,,
MOJ,LAA,11/2/2017,Lower Crime,LEGAL AID FUND,M K LAW SOLICITORS LTD,1339052:148327196,86000,Legal Aid Payment Lower Crime,,
MOJ,LAA,11/29/2017,Lower Crime,LEGAL AID FUND,M K LAW SOLICITORS LTD,1353915:148516628,86000,Legal Aid Payment Lower Crime,,
MOJ,LAA,11/29/2017,Higher Crime,LEGAL AID FUND,M K LAW SOLICITORS LTD,1355555:148518662,42616.49,Legal Aid Payment Higher Crime,,
MOJ,LAA,11/22/2017,Civil Representation,LEGAL AID FUND,MACKINTOSH LAW,1350876:148454628,-28800,Legal Aid Payment Civil Representation,,
MOJ,LAA,11/8/2017,Higher Crime,LEGAL AID FUND,MACLAVERTY COOPER ATKINS,1341395:148379175,52704.13,Legal Aid Payment Higher Crime,,
MOJ,LAA,11/15/2017,Higher Crime,LEGAL AID FUND,MACLAVERTY COOPER ATKINS,1346554:148426023,53153.62,Legal Aid Payment Higher Crime,,
MOJ,LAA,11/15/2017,Higher Crime,LEGAL AID FUND,MALCOLM & CO SOLICITORS LLP,1346113:148409971,105857.75,Legal Aid Payment Higher Crime,,
MOJ,LAA,11/2/2017,Higher Crime,LEGAL AID FUND,MANN & CO SOLICITORS,1339354:148302323,72372.67,Legal Aid Payment Higher Crime,,
MOJ,LAA,11/8/2017,Higher Crime,LEGAL AID FUND,MANN & CO SOLICITORS,1342714:148379335,105857.75,Legal Aid Payment Higher Crime,,
MOJ,LAA,11/8/2017,Higher Crime,LEGAL AID FUND,MANN & CO SOLICITORS,1342714:148380083,49729.07,Legal Aid Payment Higher Crime,,
MOJ,LAA,11/8/2017,Higher Crime,LEGAL AID FUND,MANN & CO SOLICITORS,1342714:148380214,34162.34,Legal Aid Payment Higher Crime,,
MOJ,LAA,11/22/2017,Higher Crime,LEGAL AID FUND,MARK FRASER,1351090:148471410,36087.72,Legal Aid Payment Higher Crime,,
MOJ,LAA,11/2/2017,Higher Crime,LEGAL AID FUND,MARK JONES & PARTNERS,1339421:148327575,107970.13,Legal Aid Payment Higher Crime,,
MOJ,LAA,11/22/2017,Higher Crime,LEGAL AID FUND,MARK JONES & PARTNERS,1351120:148448492,89975.11,Legal Aid Payment Higher Crime,,
MOJ,LAA,11/2/2017,Lower Crime,LEGAL AID FUND,MARTIN MURRAY & ASSOCIATES,1337457:148327074,34064,Legal Aid Payment Lower Crime,,
MOJ,LAA,11/2/2017,Higher Crime,LEGAL AID FUND,MARTIN MURRAY & ASSOCIATES,1337457:148327588,129088.88,Legal Aid Payment Higher Crime,,
MOJ,LAA,11/2/2017,Lower Crime,LEGAL AID FUND,MARTIN MURRAY & ASSOCIATES,1337458:148327185,71222,Legal Aid Payment Lower Crime,,
MOJ,LAA,11/29/2017,Lower Crime,LEGAL AID FUND,MARTIN MURRAY & ASSOCIATES,1357232:148517157,49778,Legal Aid Payment Lower Crime,,
MOJ,LAA,11/29/2017,Higher Crime,LEGAL AID FUND,MARTIN MURRAY & ASSOCIATES,1357233:148486663,34423.44,Legal Aid Payment Higher Crime,,
MOJ,LAA,11/29/2017,Lower Crime,LEGAL AID FUND,MARTIN MURRAY & ASSOCIATES,1357233:148516845,81664,Legal Aid Payment Lower Crime,,
MOJ,LAA,11/2/2017,Lower Crime,LEGAL AID FUND,MARTYN HEWETT,1337470:148326972,25000,Legal Aid Payment Lower Crime,,
MOJ,LAA,11/29/2017,Lower Crime,LEGAL AID FUND,MARTYN HEWETT,1357195:148516507,25000,Legal Aid Payment Lower Crime,,
MOJ,LAA,11/8/2017,Higher Crime,LEGAL AID FUND,MARY MONSON SOLICITORS,1342586:148378882,36227.09,Legal Aid Payment Higher Crime,,
MOJ,LAA,11/8/2017,Higher Crime,LEGAL AID FUND,MAURICE ANDREWS SOLICITORS,1342369:148353799,30318.4,Legal Aid Payment Higher Crime,,
MOJ,LAA,11/22/2017,Higher Crime,LEGAL AID FUND,MAX B R HILL QC,1350225:148457523,35558.9,Legal Aid Payment Higher Crime,,
MOJ,LAA,11/9/2017,Civil Representation,LEGAL AID FUND,MCCOOL PATTERSON HEMSI & CO,1344289:147743153,-34912.53,Legal Aid Payment Civil Representation,,
MOJ,LAA,11/9/2017,Civil Representation,LEGAL AID FUND,MCCOOL PATTERSON HEMSI & CO,1344289:2000000000004680,34912.53,Legal Aid Payment Civil Representation,,
MOJ,LAA,11/2/2017,Lower Crime,LEGAL AID FUND,MCGRATH & CO SOLICITORS,1336707:148327034,30000,Legal Aid Payment Lower Crime,,
MOJ,LAA,11/29/2017,Lower Crime,LEGAL AID FUND,MCGRATH & CO SOLICITORS,1357176:148516590,30000,Legal Aid Payment Lower Crime,,
MOJ,LAA,11/29/2017,Civil Representation,LEGAL AID FUND,MCGUINNESS LEGAL,1355566:148421631,27867.56,Legal Aid Payment Civil Representation,,
MOJ,LAA,11/8/2017,Higher Crime,LEGAL AID FUND,MCKENZIES SOLICITORS,1343170:148379673,105857.75,Legal Aid Payment Higher Crime,,
MOJ,LAA,11/2/2017,Lower Crime,LEGAL AID FUND,MCLARTYS SOLICITORS,1336603:148326970,25000,Legal Aid Payment Lower Crime,,
MOJ,LAA,11/29/2017,Lower Crime,LEGAL AID FUND,MCLARTYS SOLICITORS,1358270:148516318,25000,Legal Aid Payment Lower Crime,,
MOJ,LAA,11/2/2017,Lower Crime,LEGAL AID FUND,MCMILLAN WILLIAMS SOLICITORS LTD,1337313:148327063,32900,Legal Aid Payment Lower Crime,,
MOJ,LAA,11/15/2017,Civil Representation,LEGAL AID FUND,MCMILLAN WILLIAMS SOLICITORS LTD,1346560:3000002069280003,36918.05,Legal Aid Payment Civil Representation,,
MOJ,LAA,11/29/2017,Lower Crime,LEGAL AID FUND,MCMILLAN WILLIAMS SOLICITORS LTD,1354120:148517672,43041,Legal Aid Payment Lower Crime,,
MOJ,LAA,11/29/2017,Lower Crime,LEGAL AID FUND,MCMILLAN WILLIAMS SOLICITORS LTD,1358702:148516305,32900,Legal Aid Payment Lower Crime,,
MOJ,LAA,11/2/2017,Lower Crime,LEGAL AID FUND,MCSORLEY LEWIS LAW LTD,1337447:148327020,28826,Legal Aid Payment Lower Crime,,
MOJ,LAA,11/29/2017,Lower Crime,LEGAL AID FUND,MCSORLEY LEWIS LAW LTD,1358365:148516698,30042,Legal Aid Payment Lower Crime,,
MOJ,LAA,11/29/2017,Higher Crime,LEGAL AID FUND,MELANIE SIMPSON,1355019:148518775,27900,Legal Aid Payment Higher Crime,,
MOJ,LAA,11/2/2017,Legal Help,LEGAL AID FUND,MENTAL HEALTH LEGAL REPRESENTATION LTD,1336775:148325479,33842,Legal Aid Payment Legal Help,,
MOJ,LAA,11/29/2017,Legal Help,LEGAL AID FUND,MENTAL HEALTH LEGAL REPRESENTATION LTD,1357485:148515729,47246,Legal Aid Payment Legal Help,,
MOJ,LAA,11/2/2017,Lower Crime,LEGAL AID FUND,METCALFE COPEMAN & PETTEFAR,1337031:148327109,38700,Legal Aid Payment Lower Crime,,
MOJ,LAA,11/29/2017,Lower Crime,LEGAL AID FUND,METCALFE COPEMAN & PETTEFAR,1355415:148516274,38700,Legal Aid Payment Lower Crime,,
MOJ,LAA,11/2/2017,Lower Crime,LEGAL AID FUND,MICHAEL CARROLL & CO,1339419:148327088,36000,Legal Aid Payment Lower Crime,,
MOJ,LAA,11/29/2017,Lower Crime,LEGAL AID FUND,MICHAEL CARROLL & CO,1356568:148516345,36000,Legal Aid Payment Lower Crime,,
MOJ,LAA,11/22/2017,Higher Crime,LEGAL AID FUND,MICHAEL CRUMLEY SOLICITORS,1351887:148470743,29664.55,Legal Aid Payment Higher Crime,,
MOJ,LAA,11/2/2017,Civil Representation,LEGAL AID FUND,MICHAEL D JONES,1338223:3000001231940031,38346.48,Legal Aid Payment Civil Representation,,
MOJ,LAA,11/15/2017,Higher Crime,LEGAL AID FUND,MICHAEL J HAYNES,1347595:148394873,26933.76,Legal Aid Payment Higher Crime,,
MOJ,LAA,11/2/2017,Lower Crime,LEGAL AID FUND,MICHAEL PURDON,1337233:148327099,37464,Legal Aid Payment Lower Crime,,
MOJ,LAA,11/29/2017,Lower Crime,LEGAL AID FUND,MICHAEL PURDON,1354362:148516969,46528,Legal Aid Payment Lower Crime,,
MOJ,LAA,11/29/2017,Civil Representation,LEGAL AID FUND,MICHAEL R BAILEY,1358860:3000001912110016,27086.4,Legal Aid Payment Civil Representation,,
MOJ,LAA,11/29/2017,Legal Help,LEGAL AID FUND,MIGRANT LEGAL PROJECT,1355485:148524320,43101.2,Legal Aid Payment Legal Help,,
MOJ,LAA,11/29/2017,Legal Help,LEGAL AID FUND,MIGRANT LEGAL PROJECT,1356698:148524322,30881.26,Legal Aid Payment Legal Help,,
MOJ,LAA,11/29/2017,Legal Help,LEGAL AID FUND,MIGRANT LEGAL PROJECT,1356699:148524323,32630.95,Legal Aid Payment Legal Help,,
MOJ,LAA,11/8/2017,Civil Representation,LEGAL AID FUND,MILES & PARTNERS LLP,1342042:148343326,40645.19,Legal Aid Payment Civil Representation,,
MOJ,LAA,11/22/2017,Higher Crime,LEGAL AID FUND,MITCHELLS SOLICITORS LLP,1351760:148448845,63501.82,Legal Aid Payment Higher Crime,,
MOJ,LAA,11/8/2017,Higher Crime,LEGAL AID FUND,MOHAMMED ANDERSON & CO SOLICITORS LTD,1340713:148361132,29664.55,Legal Aid Payment Higher Crime,,
MOJ,LAA,11/29/2017,Higher Crime,LEGAL AID FUND,MOHAMMED ANDERSON & CO SOLICITORS LTD,1354419:148492848,105857.75,Legal Aid Payment Higher Crime,,
MOJ,LAA,11/29/2017,Legal Help,LEGAL AID FUND,MONTAGUE SOLICITORS LTD,1353893:148515929,26528,Legal Aid Payment Legal Help,,
MOJ,LAA,11/22/2017,Higher Crime,LEGAL AID FUND,MORDI & CO,1351354:148456462,43104.62,Legal Aid Payment Higher Crime,,
MOJ,LAA,11/15/2017,Higher Crime,LEGAL AID FUND,MORGAN CULLEN & BALL LTD,1344488:148409861,107970.13,Legal Aid Payment Higher Crime,,
MOJ,LAA,11/2/2017,Higher Crime,LEGAL AID FUND,MORGAN CULLEN & BALL LTD-ADVOCATE,1335785:148302590,29778.1,Legal Aid Payment Higher Crime,,
MOJ,LAA,11/22/2017,Higher Crime,LEGAL AID FUND,MORGAN CULLEN & BALL LTD-ADVOCATE,1351846:148471813,31556.5,Legal Aid Payment Higher Crime,,
MOJ,LAA,11/15/2017,Civil Representation,LEGAL AID FUND,MORGAN HALL LTD,1348086:148420243,26771.19,Legal Aid Payment Civil Representation,,
MOJ,LAA,11/7/2017,Civil Representation,LEGAL AID FUND,MORGAN JONES & PETT LTD,1340196:2000000000004648,28331.03,Legal Aid Payment Civil Representation,,
MOJ,LAA,11/15/2017,Higher Crime,LEGAL AID FUND,MORGAN ROSE SOLICITORS LTD,1348444:148409967,68560.95,Legal Aid Payment Higher Crime,,
MOJ,LAA,11/29/2017,Civil Representation,LEGAL AID FUND,MORRISON SPOWART LTD,1356547:148510891,44844.75,Legal Aid Payment Civil Representation,,
MOJ,LAA,11/2/2017,Lower Crime,LEGAL AID FUND,MPR SOLICITORS LLP,1339459:148327070,33700,Legal Aid Payment Lower Crime,,
MOJ,LAA,11/8/2017,Higher Crime,LEGAL AID FUND,MPR SOLICITORS LLP,1342393:148379270,68839.64,Legal Aid Payment Higher Crime,,
MOJ,LAA,11/8/2017,Higher Crime,LEGAL AID FUND,MPR SOLICITORS LLP,1342393:148379637,95707.01,Legal Aid Payment Higher Crime,,
MOJ,LAA,11/8/2017,Higher Crime,LEGAL AID FUND,MSB LAW LLP,1341654:148354486,46133.47,Legal Aid Payment Higher Crime,,
MOJ,LAA,11/29/2017,Higher Crime,LEGAL AID FUND,MSB LAW LLP,1354012:148492616,30828.11,Legal Aid Payment Higher Crime,,
MOJ,LAA,11/29/2017,Higher Crime,LEGAL AID FUND,MSB LAW LLP,1354012:148518905,45305.01,Legal Aid Payment Higher Crime,,
MOJ,LAA,11/2/2017,Lower Crime,LEGAL AID FUND,MURRAYS PARTNERSHIP SOLICITORS,1337194:148326983,25612,Legal Aid Payment Lower Crime,,
MOJ,LAA,11/22/2017,Higher Crime,LEGAL AID FUND,MURRAYS PARTNERSHIP SOLICITORS,1349527:148440728,29600.83,Legal Aid Payment Higher Crime,,
MOJ,LAA,11/8/2017,Higher Crime,LEGAL AID FUND,MURRIA SOLICITORS LTD,1343121:148378884,25511.14,Legal Aid Payment Higher Crime,,
MOJ,LAA,11/29/2017,Lower Crime,LEGAL AID FUND,MUSTOE SHORTER SOLICITORS & ADVOCATES,1356045:148517204,28634,Legal Aid Payment Lower Crime,,
MOJ,LAA,11/22/2017,Higher Crime,LEGAL AID FUND,MY BRIEF SOLICITORS LTD,1352066:148471353,68751.55,Legal Aid Payment Higher Crime,,
MOJ,LAA,11/15/2017,Civil Representation,LEGAL AID FUND,NAOMI MARIA MADDERSON,1347966:3000001081290015,28985.31,Legal Aid Payment Civil Representation,,
MOJ,LAA,11/2/2017,Lower Crime,LEGAL AID FUND,NEEDHAM POULIER LTD,1336809:148327097,37226,Legal Aid Payment Lower Crime,,
MOJ,LAA,11/29/2017,Lower Crime,LEGAL AID FUND,NEEDHAM POULIER LTD,1356614:148516920,31051,Legal Aid Payment Lower Crime,,
MOJ,LAA,11/2/2017,Lower Crime,LEGAL AID FUND,NELSON GUEST & PARTNERS,1337465:148327090,36029,Legal Aid Payment Lower Crime,,
MOJ,LAA,11/29/2017,Lower Crime,LEGAL AID FUND,NELSON GUEST & PARTNERS,1357190:148516850,42806,Legal Aid Payment Lower Crime,,
MOJ,LAA,11/8/2017,Higher Crime,LEGAL AID FUND,NEWGATE SOLICITORS,1343723:148361023,34311.85,Legal Aid Payment Higher Crime,,
MOJ,LAA,11/8/2017,Higher Crime,LEGAL AID FUND,NEWGATE SOLICITORS,1343723:148379833,55663.26,Legal Aid Payment Higher Crime,,
MOJ,LAA,11/15/2017,Higher Crime,LEGAL AID FUND,NEWGATE SOLICITORS,1344941:148394078,29664.55,Legal Aid Payment Higher Crime,,
MOJ,LAA,11/7/2017,Civil Representation,LEGAL AID FUND,NICHOLAS A J GOODWIN,1340194:3000001018180005RC,-30942,Legal Aid Payment Civil Representation,,
MOJ,LAA,11/8/2017,Higher Crime,LEGAL AID FUND,NICHOLAS D F WALKER,1341500:148380036,41799.48,Legal Aid Payment Higher Crime,,
MOJ,LAA,11/29/2017,Higher Crime,LEGAL AID FUND,NICHOLAS D FOOKS,1356734:148479371,32321.64,Legal Aid Payment Higher Crime,,
MOJ,LAA,11/29/2017,Higher Crime,LEGAL AID FUND,NICHOLAS P RHODES QC,1354304:148518904,28432.06,Legal Aid Payment Higher Crime,,
MOJ,LAA,11/22/2017,Civil Representation,LEGAL AID FUND,NICOLA ISAACS,1352512:3000000906390013,28026,Legal Aid Payment Civil Representation,,
MOJ,LAA,11/8/2017,Higher Crime,LEGAL AID FUND,NICOLA ROBERSON,1343739:148347404,27699.83,Legal Aid Payment Higher Crime,,
MOJ,LAA,11/2/2017,Legal Help,LEGAL AID FUND,NOBLE SOLICITORS,1336935:148325456,26336,Legal Aid Payment Legal Help,,
MOJ,LAA,11/2/2017,Lower Crime,LEGAL AID FUND,NOBLE SOLICITORS,1339054:148327147,46766,Legal Aid Payment Lower Crime,,
MOJ,LAA,11/15/2017,Higher Crime,LEGAL AID FUND,NOBLE SOLICITORS,1347868:148392286,41993.66,Legal Aid Payment Higher Crime,,
MOJ,LAA,11/29/2017,Lower Crime,LEGAL AID FUND,NOBLE SOLICITORS,1353759:148517655,35738,Legal Aid Payment Lower Crime,,
MOJ,LAA,11/29/2017,Lower Crime,LEGAL AID FUND,NOBLE SOLICITORS,1353917:148517298,55824,Legal Aid Payment Lower Crime,,
MOJ,LAA,11/29/2017,Higher Crime,LEGAL AID FUND,NOBLE SOLICITORS,1355990:148501026,34311.85,Legal Aid Payment Higher Crime,,
MOJ,LAA,11/29/2017,Legal Help,LEGAL AID FUND,NOBLE SOLICITORS,1355990:148515791,29167,Legal Aid Payment Legal Help,,
MOJ,LAA,11/29/2017,Lower Crime,LEGAL AID FUND,NOBLE SOLICITORS,1355990:148516778,46173,Legal Aid Payment Lower Crime,,
MOJ,LAA,11/2/2017,Lower Crime,LEGAL AID FUND,NORRIE WAITE & SLATER,1339581:148327101,38000,Legal Aid Payment Lower Crime,,
MOJ,LAA,11/29/2017,Lower Crime,LEGAL AID FUND,NORRIE WAITE & SLATER,1355089:148516412,38000,Legal Aid Payment Lower Crime,,
MOJ,LAA,11/2/2017,Lower Crime,LEGAL AID FUND,NUMBER ONE LAW LLP,1336540:148327166,56984,Legal Aid Payment Lower Crime,,
MOJ,LAA,11/29/2017,Lower Crime,LEGAL AID FUND,NUMBER ONE LAW LLP,1358589:148517273,28487,Legal Aid Payment Lower Crime,,
MOJ,LAA,11/2/2017,Lower Crime,LEGAL AID FUND,OBW PERERA LTD,1336695:148327021,29000,Legal Aid Payment Lower Crime,,
MOJ,LAA,11/29/2017,Lower Crime,LEGAL AID FUND,OBW PERERA LTD,1357499:148516272,29000,Legal Aid Payment Lower Crime,,
MOJ,LAA,11/2/2017,Legal Help,LEGAL AID FUND,O'DONNELLS SOLICITORS,1339426:148325457,26431,Legal Aid Payment Legal Help,,
MOJ,LAA,11/8/2017,Higher Crime,LEGAL AID FUND,O'KEEFFE SOLICITORS,1340871:148362346,89975.11,Legal Aid Payment Higher Crime,,
MOJ,LAA,11/15/2017,Higher Crime,LEGAL AID FUND,O'KEEFFE SOLICITORS,1345763:148393928,30779.04,Legal Aid Payment Higher Crime,,
MOJ,LAA,11/22/2017,Higher Crime,LEGAL AID FUND,O'KEEFFE SOLICITORS,1352741:148432441,35342.9,Legal Aid Payment Higher Crime,,
MOJ,LAA,11/22/2017,Higher Crime,LEGAL AID FUND,O'KEEFFE SOLICITORS,1352741:148472051,89975.11,Legal Aid Payment Higher Crime,,
MOJ,LAA,11/29/2017,Higher Crime,LEGAL AID FUND,O'KEEFFE SOLICITORS,1357596:148478324,29664.55,Legal Aid Payment Higher Crime,,
MOJ,LAA,11/2/2017,Lower Crime,LEGAL AID FUND,OLD BAILEY SOLICITORS LTD,1338982:148327052,31876,Legal Aid Payment Lower Crime,,
MOJ,LAA,11/29/2017,Lower Crime,LEGAL AID FUND,OLD BAILEY SOLICITORS LTD,1359014:148517339,35805,Legal Aid Payment Lower Crime,,
MOJ,LAA,11/2/2017,Higher Crime,LEGAL AID FUND,OLIVER D'SA SOLICITORS,1339733:148327508,72372.67,Legal Aid Payment Higher Crime,,
MOJ,LAA,11/2/2017,Higher Crime,LEGAL AID FUND,OLLIERS SOLICITORS LTD,1339367:148327521,67726.69,Legal Aid Payment Higher Crime,,
MOJ,LAA,11/2/2017,Lower Crime,LEGAL AID FUND,ONE LEGAL SERVICES LTD,1335095:148327115,39306,Legal Aid Payment Lower Crime,,
MOJ,LAA,11/2/2017,Lower Crime,LEGAL AID FUND,ONE LEGAL SERVICES LTD,1335096:148327053,31938,Legal Aid Payment Lower Crime,,
MOJ,LAA,11/8/2017,Higher Crime,LEGAL AID FUND,ONE LEGAL SERVICES LTD,1340467:148346808,90082.68,Legal Aid Payment Higher Crime,,
MOJ,LAA,11/29/2017,Higher Crime,LEGAL AID FUND,ONE LEGAL SERVICES LTD,1354097:148500234,49699.48,Legal Aid Payment Higher Crime,,
MOJ,LAA,11/29/2017,Lower Crime,LEGAL AID FUND,ONE LEGAL SERVICES LTD,1354097:148517692,32301,Legal Aid Payment Lower Crime,,
MOJ,LAA,11/29/2017,Lower Crime,LEGAL AID FUND,ONE LEGAL SERVICES LTD,1354098:148517691,25268,Legal Aid Payment Lower Crime,,
MOJ,LAA,11/2/2017,Lower Crime,LEGAL AID FUND,O'NEILL WRIGHT & NASH,1338987:148327127,41550,Legal Aid Payment Lower Crime,,
MOJ,LAA,11/29/2017,Lower Crime,LEGAL AID FUND,O'NEILL WRIGHT & NASH,1359018:148517285,46121,Legal Aid Payment Lower Crime,,
MOJ,LAA,11/2/2017,Lower Crime,LEGAL AID FUND,ONUMA & CO LLP,1337806:148327039,30483,Legal Aid Payment Lower Crime,,
MOJ,LAA,11/29/2017,Lower Crime,LEGAL AID FUND,ONUMA & CO LLP,1358002:148517534,32170,Legal Aid Payment Lower Crime,,
MOJ,LAA,11/29/2017,Lower Crime,LEGAL AID FUND,ORACLE SOLICITORS & CONSULTANTS LTD,1356555:148516903,35456,Legal Aid Payment Lower Crime,,
MOJ,LAA,11/2/2017,Legal Help,LEGAL AID FUND,OSBORNES SOLICITORS LLP,1339964:148325467,29200,Legal Aid Payment Legal Help,,
MOJ,LAA,11/29/2017,Legal Help,LEGAL AID FUND,OSBORNES SOLICITORS LLP,1357563:148515159,29200,Legal Aid Payment Legal Help,,
MOJ,LAA,11/2/2017,Lower Crime,LEGAL AID FUND,OSLERS SOLICITORS,1339125:148327105,38406,Legal Aid Payment Lower Crime,,
MOJ,LAA,11/29/2017,Lower Crime,LEGAL AID FUND,OSLERS SOLICITORS,1358611:148516802,27255,Legal Aid Payment Lower Crime,,
MOJ,LAA,11/2/2017,Legal Help,LEGAL AID FUND,OTTEN PENNA LTD,1336877:148325466,29000,Legal Aid Payment Legal Help,,
MOJ,LAA,11/29/2017,Legal Help,LEGAL AID FUND,OTTEN PENNA LTD,1356313:148515203,29000,Legal Aid Payment Legal Help,,
MOJ,LAA,11/29/2017,Higher Crime,LEGAL AID FUND,OWEN & SHARPE SOLICITORS,1358193:148478212,71238.05,Legal Aid Payment Higher Crime,,
MOJ,LAA,11/2/2017,Lower Crime,LEGAL AID FUND,OWEN NASH & CO,1339844:148327119,40000,Legal Aid Payment Lower Crime,,
MOJ,LAA,11/29/2017,Lower Crime,LEGAL AID FUND,OWEN NASH & CO,1358296:148516600,40000,Legal Aid Payment Lower Crime,,
MOJ,LAA,11/2/2017,Legal Help,LEGAL AID FUND,PARAGON LAW LTD,1336774:148325492,45000,Legal Aid Payment Legal Help,,
MOJ,LAA,11/29/2017,Legal Help,LEGAL AID FUND,PARAGON LAW LTD,1357484:148489314,65000,Legal Aid Payment Legal Help,,
MOJ,LAA,11/29/2017,Legal Help,LEGAL AID FUND,PARAGON LAW LTD,1357484:148515262,45000,Legal Aid Payment Legal Help,,
MOJ,LAA,11/29/2017,Lower Crime,LEGAL AID FUND,PARKER BIRD WHITELEY,1357830:148517016,27737,Legal Aid Payment Lower Crime,,
MOJ,LAA,11/29/2017,Legal Help,LEGAL AID FUND,PARKER RHODES HICKMOTTS,1355147:148515509,35727,Legal Aid Payment Legal Help,,
MOJ,LAA,11/29/2017,Legal Help,LEGAL AID FUND,PARKER RHODES HICKMOTTS,1356692:148516091,28542,Legal Aid Payment Legal Help,,
MOJ,LAA,11/8/2017,Higher Crime,LEGAL AID FUND,PAUL K WILLIAMS,1343192:148346367,37647.77,Legal Aid Payment Higher Crime,,
MOJ,LAA,11/20/2017,Civil Representation,LEGAL AID FUND,PAUL M STOREY QC,1348944:2000000000002692,-30009.72,Legal Aid Payment Civil Representation,,
MOJ,LAA,11/20/2017,Civil Representation,LEGAL AID FUND,PAUL M STOREY QC,1348944:2000000000002692,30009.72,Legal Aid Payment Civil Representation,,
MOJ,LAA,11/20/2017,Civil Representation,LEGAL AID FUND,PAUL M STOREY QC,1348944:3000000504360036,-29249.88,Legal Aid Payment Civil Representation,,
MOJ,LAA,11/20/2017,Civil Representation,LEGAL AID FUND,PAUL M STOREY QC,1348944:3000000504360036,29249.88,Legal Aid Payment Civil Representation,,
MOJ,LAA,11/20/2017,Civil Representation,LEGAL AID FUND,PAUL M STOREY QC,1348945:2000000000002692,30009.72,Legal Aid Payment Civil Representation,,
MOJ,LAA,11/20/2017,Civil Representation,LEGAL AID FUND,PAUL M STOREY QC,1348945:3000000504360036,29249.88,Legal Aid Payment Civil Representation,,
MOJ,LAA,11/20/2017,Civil Representation,LEGAL AID FUND,PAUL M STOREY QC,1348945:300000050436003IS,-59259.6,Legal Aid Payment Civil Representation,,
MOJ,LAA,11/22/2017,Civil Representation,LEGAL AID FUND,PAUL M STOREY QC,1351483:147386151,93494.04,Legal Aid Payment Civil Representation,,
MOJ,LAA,11/22/2017,Civil Representation,LEGAL AID FUND,PAUL M STOREY QC,1351483:147386152,-92205.24,Legal Aid Payment Civil Representation,,
MOJ,LAA,11/22/2017,Civil Representation,LEGAL AID FUND,PAUL M STOREY QC,1351483:147586288,79435.14,Legal Aid Payment Civil Representation,,
MOJ,LAA,11/22/2017,Civil Representation,LEGAL AID FUND,PAUL M STOREY QC,1351483:147610110,-59576.36,Legal Aid Payment Civil Representation,,
MOJ,LAA,11/22/2017,Civil Representation,LEGAL AID FUND,PAUL M STOREY QC,1351483:147757893,33307.2,Legal Aid Payment Civil Representation,,
MOJ,LAA,11/22/2017,Civil Representation,LEGAL AID FUND,PAUL M STOREY QC,1351483:147767815,35660.52,Legal Aid Payment Civil Representation,,
MOJ,LAA,11/22/2017,Civil Representation,LEGAL AID FUND,PAUL M STOREY QC,1351483:147767876,-36860.52,Legal Aid Payment Civil Representation,,
MOJ,LAA,11/22/2017,Civil Representation,LEGAL AID FUND,PAUL M STOREY QC,1351483:147781474,-34507.2,Legal Aid Payment Civil Representation,,
MOJ,LAA,11/22/2017,Civil Representation,LEGAL AID FUND,PAUL M STOREY QC,1351483:3000000497480001RC,-53100,Legal Aid Payment Civil Representation,,
MOJ,LAA,11/22/2017,Civil Representation,LEGAL AID FUND,PAUL M STOREY QC,1351483:3000001692780024,43286.4,Legal Aid Payment Civil Representation,,
MOJ,LAA,11/22/2017,Civil Representation,LEGAL AID FUND,PAUL M STOREY QC,1351483:3000001844230018,34920,Legal Aid Payment Civil Representation,,
MOJ,LAA,11/29/2017,Civil Representation,LEGAL AID FUND,PAUL M STOREY QC,1358922:3000002116040027,63374.4,Legal Aid Payment Civil Representation,,
MOJ,LAA,11/29/2017,Higher Crime,LEGAL AID FUND,PAUL MARTIN & CO,1356881:148479153,76365.77,Legal Aid Payment Higher Crime,,
MOJ,LAA,11/29/2017,Civil Representation,LEGAL AID FUND,PAULINE M MOULDER,1357410:3000002262890021,32011.2,Legal Aid Payment Civil Representation,,
MOJ,LAA,11/15/2017,Higher Crime,LEGAL AID FUND,PEARSON CAULFIELD,1347356:148386597,28724.78,Legal Aid Payment Higher Crime,,
MOJ,LAA,11/22/2017,Civil Representation,LEGAL AID FUND,PEARSONS,1350676:148445424,41007.62,Legal Aid Payment Civil Representation,,
MOJ,LAA,11/2/2017,Civil Representation,LEGAL AID FUND,PEARSONS SOLICITORS,1339818:3000001837590001,31979.09,Legal Aid Payment Civil Representation,,
MOJ,LAA,11/29/2017,Lower Crime,LEGAL AID FUND,PENFOLD & MCPHERSON LTD,1359080:148517158,25179,Legal Aid Payment Lower Crime,,
MOJ,LAA,11/7/2017,Civil Representation,LEGAL AID FUND,PENNINGTONS MANCHES LLP,1340197:146945372,-48667.36,Legal Aid Payment Civil Representation,,
MOJ,LAA,11/7/2017,Civil Representation,LEGAL AID FUND,PENNINGTONS MANCHES LLP,1340197:146945410,-45795.37,Legal Aid Payment Civil Representation,,
MOJ,LAA,11/7/2017,Civil Representation,LEGAL AID FUND,PENNINGTONS MANCHES LLP,1340197:2000000000004652,282325.65,Legal Aid Payment Civil Representation,,
MOJ,LAA,11/8/2017,Higher Crime,LEGAL AID FUND,PETER BONNER & CO,1341090:148361447,27718.85,Legal Aid Payment Higher Crime,,
MOJ,LAA,11/8/2017,Higher Crime,LEGAL AID FUND,PETER CLARKE SOLICITORS LLP,1341567:148346570,45426.23,Legal Aid Payment Higher Crime,,
MOJ,LAA,11/2/2017,Legal Help,LEGAL AID FUND,PETER EDWARDS LAW LTD,1339422:148325498,59200,Legal Aid Payment Legal Help,,
MOJ,LAA,11/29/2017,Legal Help,LEGAL AID FUND,PETER EDWARDS LAW LTD,1356573:148515146,59200,Legal Aid Payment Legal Help,,
MOJ,LAA,11/29/2017,Higher Crime,LEGAL AID FUND,PETER L GUEST,1357747:148485949,26660.9,Legal Aid Payment Higher Crime,,
MOJ,LAA,11/15/2017,Higher Crime,LEGAL AID FUND,PETHERBRIDGE BASSRA SOLICITORS LTD,1346956:148409969,107574.07,Legal Aid Payment Higher Crime,,
MOJ,LAA,11/29/2017,Higher Crime,LEGAL AID FUND,PETHERBRIDGE BASSRA SOLICITORS LTD,1357120:148479140,26672.11,Legal Aid Payment Higher Crime,,
MOJ,LAA,11/29/2017,Lower Crime,LEGAL AID FUND,PETHERBRIDGE BASSRA SOLICITORS LTD,1357120:148517012,27030,Legal Aid Payment Lower Crime,,
MOJ,LAA,11/29/2017,Higher Crime,LEGAL AID FUND,PETHERBRIDGE BASSRA SOLICITORS LTD,1357120:148525068,75305.03,Legal Aid Payment Higher Crime,,
MOJ,LAA,11/8/2017,Higher Crime,LEGAL AID FUND,PHILIP G HACKETT QC,1341873:148365716,69720,Legal Aid Payment Higher Crime,,
MOJ,LAA,11/2/2017,Lower Crime,LEGAL AID FUND,PHILIP HANBY LTD T/A ANDREW JAY & CO,1337018:148327008,27567,Legal Aid Payment Lower Crime,,
MOJ,LAA,11/2/2017,Higher Crime,LEGAL AID FUND,PHILIP J MCGHEE,1340037:148322946,-48520.01,Legal Aid Payment Higher Crime,,
MOJ,LAA,11/2/2017,Higher Crime,LEGAL AID FUND,PHILIP J MCGHEE,1340037:148322947,48520.01,Legal Aid Payment Higher Crime,,
MOJ,LAA,11/15/2017,Higher Crime,LEGAL AID FUND,PHILIP M GIBBS,1345293:148425095,26774.4,Legal Aid Payment Higher Crime,,
MOJ,LAA,11/29/2017,Higher Crime,LEGAL AID FUND,PHILLIP TULLY,1357726:148478909,29727.38,Legal Aid Payment Higher Crime,,
MOJ,LAA,11/29/2017,Legal Help,LEGAL AID FUND,PICKUP & SCOTT SOLICITORS,1357931:148515771,25345,Legal Aid Payment Legal Help,,
MOJ,LAA,11/22/2017,Civil Representation,LEGAL AID FUND,PICTONS SOLICITORS LLP,256709:2000000000004843,42440.41,Legal Aid Payment Civil Representation,,
MOJ,LAA,11/29/2017,Higher Crime,LEGAL AID FUND,POLLY E DYER,1355229:148526270,34960.01,Legal Aid Payment Higher Crime,,
MOJ,LAA,11/2/2017,Lower Crime,LEGAL AID FUND,POOLE ALCOCK LLP,1337036:148327054,32086,Legal Aid Payment Lower Crime,,
MOJ,LAA,11/2/2017,Lower Crime,LEGAL AID FUND,POWELL SPENCER AND PARTNERS,1339854:148327133,42600,Legal Aid Payment Lower Crime,,
MOJ,LAA,11/2/2017,Higher Crime,LEGAL AID FUND,POWELL SPENCER AND PARTNERS,1339854:148328206,55622.8,Legal Aid Payment Higher Crime,,
MOJ,LAA,11/29/2017,Lower Crime,LEGAL AID FUND,POWELL SPENCER AND PARTNERS,1358309:148516290,42600,Legal Aid Payment Lower Crime,,
MOJ,LAA,11/8/2017,Civil Representation,LEGAL AID FUND,PRICE SLATER GAWNE,1343790:148255130,41125.65,Legal Aid Payment Civil Representation,,
MOJ,LAA,11/8/2017,Civil Representation,LEGAL AID FUND,PRICE SLATER GAWNE,1343790:148255201,27454.96,Legal Aid Payment Civil Representation,,
MOJ,LAA,11/8/2017,Civil Representation,LEGAL AID FUND,PRICE SLATER GAWNE,1343790:148255202,-41125.65,Legal Aid Payment Civil Representation,,
MOJ,LAA,11/2/2017,Civil Representation,LEGAL AID FUND,PS LAW LLP,1338188:3000002307010012,27731.46,Legal Aid Payment Civil Representation,,
MOJ,LAA,11/2/2017,Lower Crime,LEGAL AID FUND,PURCELL PARKER LTD,1339494:148327199,90000,Legal Aid Payment Lower Crime,,
MOJ,LAA,11/29/2017,Lower Crime,LEGAL AID FUND,PURCELL PARKER LTD,1355995:148516592,79300,Legal Aid Payment Lower Crime,,
MOJ,LAA,11/29/2017,Lower Crime,LEGAL AID FUND,PURE LAW CRIMINAL DEFENCE,1354069:148517588,25083,Legal Aid Payment Lower Crime,,
MOJ,LAA,11/29/2017,Higher Crime,LEGAL AID FUND,PURE LAW CRIMINAL DEFENCE,1354069:148518889,48800.44,Legal Aid Payment Higher Crime,,
MOJ,LAA,11/15/2017,Higher Crime,LEGAL AID FUND,Q & A LEGAL LTD,1346722:148409765,100841.25,Legal Aid Payment Higher Crime,,
MOJ,LAA,11/15/2017,Higher Crime,LEGAL AID FUND,QUALITYSOLICITORS EDWARD HUGHES,1348114:148387234,34926.83,Legal Aid Payment Higher Crime,,
MOJ,LAA,11/2/2017,Lower Crime,LEGAL AID FUND,QUALITYSOLICITORS HPJV,1339897:148326991,26052,Legal Aid Payment Lower Crime,,
MOJ,LAA,11/15/2017,Higher Crime,LEGAL AID FUND,QUALITYSOLICITORS HPJV,1346583:148387288,38382.39,Legal Aid Payment Higher Crime,,
MOJ,LAA,11/29/2017,Lower Crime,LEGAL AID FUND,QUALITYSOLICITORS HPJV,1358729:148516676,26462,Legal Aid Payment Lower Crime,,
MOJ,LAA,11/2/2017,Lower Crime,LEGAL AID FUND,QUALITYSOLICITORS JONES ROBERTSON,1336819:148326999,26649,Legal Aid Payment Lower Crime,,
MOJ,LAA,11/2/2017,Higher Crime,LEGAL AID FUND,QUINN MELVILLE,1336814:148327614,68560.95,Legal Aid Payment Higher Crime,,
MOJ,LAA,11/13/2017,Civil Representation,LEGAL AID FUND,R AELRED HOOKWAY,1344320:3000000703040009RC,-27572.4,Legal Aid Payment Civil Representation,,
MOJ,LAA,11/22/2017,Higher Crime,LEGAL AID FUND,R W SKINNER & SON,1350363:148432598,69528.79,Legal Aid Payment Higher Crime,,
MOJ,LAA,11/8/2017,Civil Representation,LEGAL AID FUND,RAMSDENS SOLICITORS LLP,1342950:3000001853560005,26201.74,Legal Aid Payment Civil Representation,,
MOJ,LAA,11/22/2017,Civil Representation,LEGAL AID FUND,RAMSDENS SOLICITORS LLP,1351937:148453637,26421.36,Legal Aid Payment Civil Representation,,
MOJ,LAA,11/15/2017,Civil Representation,LEGAL AID FUND,RAYAT & CO,1348270:148391142,29207.59,Legal Aid Payment Civil Representation,,
MOJ,LAA,11/2/2017,Lower Crime,LEGAL AID FUND,REECE THOMAS WATSON LTD,1337774:148327067,33370,Legal Aid Payment Lower Crime,,
MOJ,LAA,11/29/2017,Lower Crime,LEGAL AID FUND,REECE THOMAS WATSON LTD,1358451:148517530,26577,Legal Aid Payment Lower Crime,,
MOJ,LAA,11/2/2017,Lower Crime,LEGAL AID FUND,REEDS SOLICITORS LTD,1337577:148327145,45405,Legal Aid Payment Lower Crime,,
MOJ,LAA,11/2/2017,Lower Crime,LEGAL AID FUND,REEDS SOLICITORS LTD,1337581:148327136,43144,Legal Aid Payment Lower Crime,,
MOJ,LAA,11/2/2017,Lower Crime,LEGAL AID FUND,REEDS SOLICITORS LTD,1337717:148326982,25584,Legal Aid Payment Lower Crime,,
MOJ,LAA,11/2/2017,Lower Crime,LEGAL AID FUND,REEDS SOLICITORS LTD,1338293:148327066,33343,Legal Aid Payment Lower Crime,,
MOJ,LAA,11/2/2017,Lower Crime,LEGAL AID FUND,REEDS SOLICITORS LTD,1338993:148327019,28778,Legal Aid Payment Lower Crime,,
MOJ,LAA,11/2/2017,Lower Crime,LEGAL AID FUND,REEDS SOLICITORS LTD,1339478:148327157,51827,Legal Aid Payment Lower Crime,,
MOJ,LAA,11/15/2017,Civil Representation,LEGAL AID FUND,REEDS SOLICITORS LTD,1344774:3000001377640015,26978.3,Legal Aid Payment Civil Representation,,
MOJ,LAA,11/29/2017,Lower Crime,LEGAL AID FUND,REEDS SOLICITORS LTD,1354125:148517573,26890,Legal Aid Payment Lower Crime,,
MOJ,LAA,11/29/2017,Lower Crime,LEGAL AID FUND,REEDS SOLICITORS LTD,1354464:148517764,36905,Legal Aid Payment Lower Crime,,
MOJ,LAA,11/29/2017,Lower Crime,LEGAL AID FUND,REEDS SOLICITORS LTD,1354468:148517760,50982,Legal Aid Payment Lower Crime,,
MOJ,LAA,11/29/2017,Lower Crime,LEGAL AID FUND,REEDS SOLICITORS LTD,1354895:148517443,40759,Legal Aid Payment Lower Crime,,
MOJ,LAA,11/29/2017,Higher Crime,LEGAL AID FUND,REEDS SOLICITORS LTD,1354895:148518786,49098.68,Legal Aid Payment Higher Crime,,
MOJ,LAA,11/29/2017,Lower Crime,LEGAL AID FUND,REEDS SOLICITORS LTD,1355696:148517161,64258,Legal Aid Payment Lower Crime,,
MOJ,LAA,11/29/2017,Higher Crime,LEGAL AID FUND,REEDS SOLICITORS LTD,1356693:148518380,46389.9,Legal Aid Payment Higher Crime,,
MOJ,LAA,11/29/2017,Lower Crime,LEGAL AID FUND,REEDS SOLICITORS LTD,1359024:148517314,35553,Legal Aid Payment Lower Crime,,
MOJ,LAA,11/2/2017,Lower Crime,LEGAL AID FUND,REEVES  & CO SOLICITORS,1339070:148327135,42893,Legal Aid Payment Lower Crime,,
MOJ,LAA,11/29/2017,Higher Crime,LEGAL AID FUND,REEVES  & CO SOLICITORS,1358651:148500690,42311.58,Legal Aid Payment Higher Crime,,
MOJ,LAA,11/29/2017,Lower Crime,LEGAL AID FUND,REEVES  & CO SOLICITORS,1358651:148517124,34350,Legal Aid Payment Lower Crime,,
MOJ,LAA,11/2/2017,Lower Crime,LEGAL AID FUND,RENSHAW DERRICK & CO,1339996:148327043,30741,Legal Aid Payment Lower Crime,,
MOJ,LAA,11/29/2017,Lower Crime,LEGAL AID FUND,RENSHAW DERRICK & CO,1357974:148517173,33701,Legal Aid Payment Lower Crime,,
MOJ,LAA,11/22/2017,Civil Representation,LEGAL AID FUND,RICHARD BAKER,1351442:148452672,95322.38,Legal Aid Payment Civil Representation,,
MOJ,LAA,11/2/2017,Lower Crime,LEGAL AID FUND,RICHARD HASWELL SOLICITORS LTD,1337177:148327011,27804,Legal Aid Payment Lower Crime,,
MOJ,LAA,11/29/2017,Lower Crime,LEGAL AID FUND,RICHARD HASWELL SOLICITORS LTD,1354036:148516967,30297,Legal Aid Payment Lower Crime,,
MOJ,LAA,11/29/2017,Higher Crime,LEGAL AID FUND,RICHARD L SMITH QC,1357085:148486606,38971.62,Legal Aid Payment Higher Crime,,
MOJ,LAA,11/15/2017,Civil Representation,LEGAL AID FUND,RICHARD M A HADLEY,1347065:148321706,33242.4,Legal Aid Payment Civil Representation,,
MOJ,LAA,11/15/2017,Civil Representation,LEGAL AID FUND,RICHARD M A HADLEY,1347065:148321888,-35056.8,Legal Aid Payment Civil Representation,,
MOJ,LAA,11/15/2017,Higher Crime,LEGAL AID FUND,RICHARD P ATKINS,1348214:148425824,39285.36,Legal Aid Payment Higher Crime,,
MOJ,LAA,11/2/2017,Lower Crime,LEGAL AID FUND,RILEY HAYES & CO,1339495:148327077,34900,Legal Aid Payment Lower Crime,,
MOJ,LAA,11/2/2017,Legal Help,LEGAL AID FUND,RMNJ SOLICITORS ***,1339469:148325480,33905,Legal Aid Payment Legal Help,,
MOJ,LAA,11/2/2017,Lower Crime,LEGAL AID FUND,RMNJ SOLICITORS ***,1339469:148327156,51197,Legal Aid Payment Lower Crime,,
MOJ,LAA,11/29/2017,Legal Help,LEGAL AID FUND,RMNJ SOLICITORS ***,1355689:148515558,39015,Legal Aid Payment Legal Help,,
MOJ,LAA,11/29/2017,Lower Crime,LEGAL AID FUND,RMNJ SOLICITORS ***,1355689:148516933,47560,Legal Aid Payment Lower Crime,,
MOJ,LAA,11/2/2017,Lower Crime,LEGAL AID FUND,ROACH PITTIS,1339938:148326995,26400,Legal Aid Payment Lower Crime,,
MOJ,LAA,11/29/2017,Lower Crime,LEGAL AID FUND,ROACH PITTIS,1357539:148516528,26400,Legal Aid Payment Lower Crime,,
MOJ,LAA,11/2/2017,Lower Crime,LEGAL AID FUND,ROBERT LIZAR,1339745:148327032,30000,Legal Aid Payment Lower Crime,,
MOJ,LAA,11/29/2017,Lower Crime,LEGAL AID FUND,ROBERT LIZAR,1359098:148516492,30000,Legal Aid Payment Lower Crime,,
MOJ,LAA,11/2/2017,Lower Crime,LEGAL AID FUND,ROBERTSON'S SOLICITORS,1339628:148327025,29000,Legal Aid Payment Lower Crime,,
MOJ,LAA,11/29/2017,Lower Crime,LEGAL AID FUND,ROBERTSON'S SOLICITORS,1355447:148516421,29000,Legal Aid Payment Lower Crime,,
MOJ,LAA,11/15/2017,Higher Crime,LEGAL AID FUND,RODERICK M PRICE,1347643:148401156,27460.68,Legal Aid Payment Higher Crime,,
MOJ,LAA,11/2/2017,Lower Crime,LEGAL AID FUND,RODNEY WARREN & CO LTD,1337400:148327096,37100,Legal Aid Payment Lower Crime,,
MOJ,LAA,11/29/2017,Lower Crime,LEGAL AID FUND,RODNEY WARREN & CO LTD,1357934:148516502,37100,Legal Aid Payment Lower Crime,,
MOJ,LAA,11/2/2017,Legal Help,LEGAL AID FUND,ROEBUCKS SOLICITORS,1337211:148325459,26691,Legal Aid Payment Legal Help,,
MOJ,LAA,11/29/2017,Legal Help,LEGAL AID FUND,ROEBUCKS SOLICITORS,1353971:148515668,31120,Legal Aid Payment Legal Help,,
MOJ,LAA,11/2/2017,Lower Crime,LEGAL AID FUND,ROGERS & CO,1337427:148326989,26000,Legal Aid Payment Lower Crime,,
MOJ,LAA,11/29/2017,Lower Crime,LEGAL AID FUND,ROGERS & CO,1358345:148516567,26000,Legal Aid Payment Lower Crime,,
MOJ,LAA,11/29/2017,Civil Representation,LEGAL AID FUND,ROLAND ROBINSONS AND FENTONS LLP,1359053:3000001406840020,35264.87,Legal Aid Payment Civil Representation,,
MOJ,LAA,11/15/2017,Higher Crime,LEGAL AID FUND,RONALD FLETCHER BAKER LLP,1344914:148425614,89975.11,Legal Aid Payment Higher Crime,,
MOJ,LAA,11/8/2017,Higher Crime,LEGAL AID FUND,ROSE & DUNN,1343299:148379980,27407.53,Legal Aid Payment Higher Crime,,
MOJ,LAA,11/29/2017,Higher Crime,LEGAL AID FUND,ROSE & DUNN,1357851:148478436,72743.42,Legal Aid Payment Higher Crime,,
MOJ,LAA,11/29/2017,Lower Crime,LEGAL AID FUND,ROSE & DUNN,1357851:148517038,29215,Legal Aid Payment Lower Crime,,
MOJ,LAA,11/2/2017,Lower Crime,LEGAL AID FUND,ROSS SOLICITORS LTD,1337362:148327081,35000,Legal Aid Payment Lower Crime,,
MOJ,LAA,11/29/2017,Lower Crime,LEGAL AID FUND,ROSS SOLICITORS LTD,1357993:148516560,35000,Legal Aid Payment Lower Crime,,
MOJ,LAA,11/2/2017,Lower Crime,LEGAL AID FUND,ROWE SPARKES SOLICITORS LTD,1339160:148327139,44100,Legal Aid Payment Lower Crime,,
MOJ,LAA,11/29/2017,Lower Crime,LEGAL AID FUND,ROWE SPARKES SOLICITORS LTD,1357883:148516524,44100,Legal Aid Payment Lower Crime,,
MOJ,LAA,11/2/2017,Lower Crime,LEGAL AID FUND,ROY FOREMAN & CO SOLICITORS,1336920:148327026,29000,Legal Aid Payment Lower Crime,,
MOJ,LAA,11/29/2017,Lower Crime,LEGAL AID FUND,ROY FOREMAN & CO SOLICITORS,1355975:148516431,29000,Legal Aid Payment Lower Crime,,
MOJ,LAA,11/2/2017,Higher Crime,LEGAL AID FUND,RUSSELL & RUSSELL SOLICITORS,1339786:148327607,107970.13,Legal Aid Payment Higher Crime,,
MOJ,LAA,11/22/2017,Higher Crime,LEGAL AID FUND,RUSSELL J FRASER,1349594:148440134,25766.93,Legal Aid Payment Higher Crime,,
MOJ,LAA,11/8/2017,Higher Crime,LEGAL AID FUND,RUSSELL-COOKE LLP,1341797:148379143,37527.04,Legal Aid Payment Higher Crime,,
MOJ,LAA,11/15/2017,Higher Crime,LEGAL AID FUND,RUSSELL-COOKE LLP,1347139:148429897,32218.03,Legal Aid Payment Higher Crime,,
MOJ,LAA,11/8/2017,Higher Crime,LEGAL AID FUND,RUSTEM GUARDIAN LLP,1343143:148361970,43606.87,Legal Aid Payment Higher Crime,,
MOJ,LAA,11/29/2017,Higher Crime,LEGAL AID FUND,RUSTEM GUARDIAN LLP,1357442:148478070,128216.46,Legal Aid Payment Higher Crime,,
MOJ,LAA,11/29/2017,Civil Representation,LEGAL AID FUND,S A CARR & CO,1354386:3000001705940003RC,-25247.7,Legal Aid Payment Civil Representation,,
MOJ,LAA,11/29/2017,Civil Representation,LEGAL AID FUND,S A CARR & CO,1354386:3000001705940009,33933.8,Legal Aid Payment Civil Representation,,
MOJ,LAA,11/2/2017,Lower Crime,LEGAL AID FUND,S A LAW CHAMBERS SOLICITORS,1336854:148327111,39000,Legal Aid Payment Lower Crime,,
MOJ,LAA,11/29/2017,Lower Crime,LEGAL AID FUND,S A LAW CHAMBERS SOLICITORS,1356850:148516284,39000,Legal Aid Payment Lower Crime,,
MOJ,LAA,11/29/2017,Higher Crime,LEGAL AID FUND,S ORLANDO F POWNALL QC,1356775:148518821,27912.05,Legal Aid Payment Higher Crime,,
MOJ,LAA,11/8/2017,Higher Crime,LEGAL AID FUND,SAKHI LEGAL SERVICES LTD,1343145:148361720,46056.9,Legal Aid Payment Higher Crime,,
MOJ,LAA,11/15/2017,Higher Crime,LEGAL AID FUND,SAKHI LEGAL SERVICES LTD,1348661:148409862,52160.75,Legal Aid Payment Higher Crime,,
MOJ,LAA,11/29/2017,Lower Crime,LEGAL AID FUND,SAKHI LEGAL SERVICES LTD,1357447:148516741,30106,Legal Aid Payment Lower Crime,,
MOJ,LAA,11/29/2017,Higher Crime,LEGAL AID FUND,SALHAN & CO LTD,1356823:148478047,76713.47,Legal Aid Payment Higher Crime,,
MOJ,LAA,11/29/2017,Higher Crime,LEGAL AID FUND,SALHAN & CO LTD,1356823:148478048,-57627.87,Legal Aid Payment Higher Crime,,
MOJ,LAA,11/29/2017,Civil Representation,LEGAL AID FUND,SALLY VICTORIA STONE,1356494:148153882,30934.61,Legal Aid Payment Civil Representation,,
MOJ,LAA,11/29/2017,Civil Representation,LEGAL AID FUND,SALLY VICTORIA STONE,1356494:148198948,-27213.71,Legal Aid Payment Civil Representation,,
MOJ,LAA,11/22/2017,Civil Representation,LEGAL AID FUND,SALLY WILCOCK & CO,1351781:3000000826690011,34946.08,Legal Aid Payment Civil Representation,,
MOJ,LAA,11/22/2017,Civil Representation,LEGAL AID FUND,SAMANTHA L KING,1351620:3000001768530009,30499.2,Legal Aid Payment Civil Representation,,
MOJ,LAA,11/2/2017,Lower Crime,LEGAL AID FUND,SAMUEL & CO SOLICITORS,1336772:148326987,25800,Legal Aid Payment Lower Crime,,
MOJ,LAA,11/29/2017,Civil Representation,LEGAL AID FUND,SANDERSONS SOLICITORS LTD,1354396:3000001371110005,35409.22,Legal Aid Payment Civil Representation,,
MOJ,LAA,11/2/2017,Higher Crime,LEGAL AID FUND,SANJEEV M SHARMA,1338486:148339665,26904.1,Legal Aid Payment Higher Crime,,
MOJ,LAA,11/2/2017,Lower Crime,LEGAL AID FUND,SANSBURY DOUGLAS,1336514:148327153,50000,Legal Aid Payment Lower Crime,,
MOJ,LAA,11/15/2017,Higher Crime,LEGAL AID FUND,SANSBURY DOUGLAS,1344732:148429072,27158.4,Legal Aid Payment Higher Crime,,
MOJ,LAA,11/29/2017,Lower Crime,LEGAL AID FUND,SANSBURY DOUGLAS,1358657:148516620,50000,Legal Aid Payment Lower Crime,,
MOJ,LAA,11/2/2017,Civil Representation,LEGAL AID FUND,SARAH M MORGAN QC,1336127:148153881,59322.54,Legal Aid Payment Civil Representation,,
MOJ,LAA,11/2/2017,Civil Representation,LEGAL AID FUND,SARAH M MORGAN QC,1336127:148198949,-45841.75,Legal Aid Payment Civil Representation,,
MOJ,LAA,11/22/2017,Higher Crime,LEGAL AID FUND,SAV KHAN SOLICITORS,1350707:148457046,69506.82,Legal Aid Payment Higher Crime,,
MOJ,LAA,11/2/2017,Lower Crime,LEGAL AID FUND,SCOTT-MONCRIEFF & ASSOCIATES LLP,1337453:148327013,27978,Legal Aid Payment Lower Crime,,
MOJ,LAA,11/29/2017,Lower Crime,LEGAL AID FUND,SCOTT-MONCRIEFF & ASSOCIATES LLP,1357603:148516891,39240,Legal Aid Payment Lower Crime,,
MOJ,LAA,11/2/2017,Higher Crime,LEGAL AID FUND,SHANAHANS SOLICITORS & ADVOCATES,1339339:148339532,26279.54,Legal Aid Payment Higher Crime,,
MOJ,LAA,11/2/2017,Lower Crime,LEGAL AID FUND,SHAW GRAHAM KERSH,1339363:148326984,25700,Legal Aid Payment Lower Crime,,
MOJ,LAA,11/29/2017,Lower Crime,LEGAL AID FUND,SHAW GRAHAM KERSH,1356329:148516339,25700,Legal Aid Payment Lower Crime,,
MOJ,LAA,11/29/2017,Higher Crime,LEGAL AID FUND,SHAW GRAHAM KERSH-ADVOCATE,1354528:148518689,35603.16,Legal Aid Payment Higher Crime,,
MOJ,LAA,11/29/2017,Higher Crime,LEGAL AID FUND,SHEARMAN BOWEN & CO,1355963:148478095,78530.72,Legal Aid Payment Higher Crime,,
MOJ,LAA,11/2/2017,Lower Crime,LEGAL AID FUND,SHELLEY & CO,1336934:148327094,36768,Legal Aid Payment Lower Crime,,
MOJ,LAA,11/29/2017,Lower Crime,LEGAL AID FUND,SHELLEY & CO,1355989:148516816,26368,Legal Aid Payment Lower Crime,,
MOJ,LAA,11/22/2017,Legal Help,LEGAL AID FUND,SHELTER.,1352107:148468861,48364.97,Legal Aid Payment Legal Help,,
MOJ,LAA,11/29/2017,Lower Crime,LEGAL AID FUND,SHEPHERD SOLICITORS LTD,1358631:148517109,25227,Legal Aid Payment Lower Crime,,
MOJ,LAA,11/2/2017,Lower Crime,LEGAL AID FUND,SHEPPARDS SOLICITORS LTD,1336850:148327146,46400,Legal Aid Payment Lower Crime,,
MOJ,LAA,11/2/2017,Higher Crime,LEGAL AID FUND,SHEPPARDS SOLICITORS LTD,1336850:148339858,94137.84,Legal Aid Payment Higher Crime,,
MOJ,LAA,11/22/2017,Higher Crime,LEGAL AID FUND,SHEPPARDS SOLICITORS LTD,1351330:148441708,27333.01,Legal Aid Payment Higher Crime,,
MOJ,LAA,11/29/2017,Lower Crime,LEGAL AID FUND,SHEPPARDS SOLICITORS LTD,1356846:148516562,46400,Legal Aid Payment Lower Crime,,
MOJ,LAA,11/29/2017,Higher Crime,LEGAL AID FUND,SHERYL NWOSU,1358506:148518653,28944.96,Legal Aid Payment Higher Crime,,
MOJ,LAA,11/8/2017,Higher Crime,LEGAL AID FUND,SILVERSMITHS LLP,1343538:148360751,29664.55,Legal Aid Payment Higher Crime,,
MOJ,LAA,11/2/2017,Higher Crime,LEGAL AID FUND,SIMON A PENTOL,1336336:148340330,38772.12,Legal Aid Payment Higher Crime,,
MOJ,LAA,11/29/2017,Higher Crime,LEGAL AID FUND,SIMON L BICKLER QC,1358915:148525052,36960,Legal Aid Payment Higher Crime,,
MOJ,LAA,11/29/2017,Higher Crime,LEGAL AID FUND,SIMPSON HEALD PEARSON,1356000:148518709,29846.33,Legal Aid Payment Higher Crime,,
MOJ,LAA,11/23/2017,Civil Representation,LEGAL AID FUND,SIMPSON MILLAR SOLICITORS LLP,1353619:148276650,-26549.99,Legal Aid Payment Civil Representation,,
MOJ,LAA,11/23/2017,Civil Representation,LEGAL AID FUND,SIMPSON MILLAR SOLICITORS LLP,1353619:2000000000004872,213852.44,Legal Aid Payment Civil Representation,,
MOJ,LAA,11/2/2017,Higher Crime,LEGAL AID FUND,SIOBHAN GREY QC,1338892:148302442,28635.48,Legal Aid Payment Higher Crime,,
MOJ,LAA,11/15/2017,Higher Crime,LEGAL AID FUND,SJ LAW,1348127:148402262,89975.11,Legal Aid Payment Higher Crime,,
MOJ,LAA,11/22/2017,Higher Crime,LEGAL AID FUND,SKR LEGAL SOLICITORS,1352072:148432292,38939.93,Legal Aid Payment Higher Crime,,
MOJ,LAA,11/8/2017,Higher Crime,LEGAL AID FUND,SLATER & GORDON (UK) LLP,1340827:148383710,35571.84,Legal Aid Payment Higher Crime,,
MOJ,LAA,11/15/2017,Higher Crime,LEGAL AID FUND,SLATER & GORDON (UK) LLP,1345736:148392285,30213.59,Legal Aid Payment Higher Crime,,
MOJ,LAA,11/7/2017,Civil Representation,LEGAL AID FUND,SMITH LLEWELYN PARTNERSHIP,1340201:2000000000004657,31295.28,Legal Aid Payment Civil Representation,,
MOJ,LAA,11/2/2017,Lower Crime,LEGAL AID FUND,SMITH PARTNERSHIP,1336729:148327126,41200,Legal Aid Payment Lower Crime,,
MOJ,LAA,11/15/2017,Higher Crime,LEGAL AID FUND,SMITH PARTNERSHIP,1348458:148401999,87437.2,Legal Aid Payment Higher Crime,,
MOJ,LAA,11/29/2017,Lower Crime,LEGAL AID FUND,SMITH PARTNERSHIP,1357100:148516250,27600,Legal Aid Payment Lower Crime,,
MOJ,LAA,11/2/2017,Lower Crime,LEGAL AID FUND,SONN MACMILLAN WALKER LTD,1337462:148327193,77300,Legal Aid Payment Lower Crime,,
MOJ,LAA,11/29/2017,Lower Crime,LEGAL AID FUND,SONN MACMILLAN WALKER LTD,1357187:148516281,77300,Legal Aid Payment Lower Crime,,
MOJ,LAA,11/29/2017,Legal Help,LEGAL AID FUND,SOUTH WEST LONDON LAW CENTRES,1356606:148515838,25879,Legal Aid Payment Legal Help,,
MOJ,LAA,11/2/2017,Legal Help,LEGAL AID FUND,SOUTHERNS SOLICITORS,1337253:148325462,27934,Legal Aid Payment Legal Help,,
MOJ,LAA,11/15/2017,Civil Representation,LEGAL AID FUND,SOUTHERNS SOLICITORS,1347128:3000000810080021,26975.5,Legal Aid Payment Civil Representation,,
MOJ,LAA,11/2/2017,Legal Help,LEGAL AID FUND,SOUTHWARK LAW CENTRE,1339385:148325461,27320,Legal Aid Payment Legal Help,,
MOJ,LAA,11/2/2017,Civil Representation,LEGAL AID FUND,STEEL & SHAMASH,1339857:148321367,32833.81,Legal Aid Payment Civil Representation,,
MOJ,LAA,11/2/2017,Lower Crime,LEGAL AID FUND,STEEL & SHAMASH,1339857:148326978,25100,Legal Aid Payment Lower Crime,,
MOJ,LAA,11/29/2017,Lower Crime,LEGAL AID FUND,STEEL & SHAMASH,1358312:148516346,25100,Legal Aid Payment Lower Crime,,
MOJ,LAA,11/2/2017,Lower Crime,LEGAL AID FUND,STEPHEN BURDON SOLICITORS,1339442:148327112,39100,Legal Aid Payment Lower Crime,,
MOJ,LAA,11/29/2017,Lower Crime,LEGAL AID FUND,STEPHEN BURDON SOLICITORS,1356593:148516245,39100,Legal Aid Payment Lower Crime,,
MOJ,LAA,11/8/2017,Higher Crime,LEGAL AID FUND,STEPHEN C MEADOWCROFT QC,1342246:148346489,25555.93,Legal Aid Payment Higher Crime,,
MOJ,LAA,11/29/2017,Higher Crime,LEGAL AID FUND,STEPHEN FIDLER & CO,1356238:148486348,64304.88,Legal Aid Payment Higher Crime,,
MOJ,LAA,11/29/2017,Higher Crime,LEGAL AID FUND,STEPHEN FIDLER & CO-ADVOCATE,1354925:148500827,29955.31,Legal Aid Payment Higher Crime,,
MOJ,LAA,11/2/2017,Higher Crime,LEGAL AID FUND,STEPHEN M A KAMLISH QC,1336335:148336275,74440,Legal Aid Payment Higher Crime,,
MOJ,LAA,11/29/2017,Higher Crime,LEGAL AID FUND,STEPHEN M A KAMLISH QC,1355049:148478862,36056.92,Legal Aid Payment Higher Crime,,
MOJ,LAA,11/29/2017,Civil Representation,LEGAL AID FUND,STEPHEN P AINSLEY,1357408:3000002805560004,36288,Legal Aid Payment Civil Representation,,
MOJ,LAA,11/15/2017,Civil Representation,LEGAL AID FUND,STEPHENS & SCOWN LLP,1346327:148421983,27788.92,Legal Aid Payment Civil Representation,,
MOJ,LAA,11/2/2017,Lower Crime,LEGAL AID FUND,STEPHENSONS SOLICITORS LLP,1339747:148327028,29149,Legal Aid Payment Lower Crime,,
MOJ,LAA,11/2/2017,Lower Crime,LEGAL AID FUND,STEPHENSONS SOLICITORS LLP,1339750:148327180,64947,Legal Aid Payment Lower Crime,,
MOJ,LAA,11/22/2017,Civil Representation,LEGAL AID FUND,STEPHENSONS SOLICITORS LLP,1349227:148468171,26648.2,Legal Aid Payment Civil Representation,,
MOJ,LAA,11/22/2017,Legal Help,LEGAL AID FUND,STEPHENSONS SOLICITORS LLP,1349227:148468866,66405.78,Legal Aid Payment Legal Help,,
MOJ,LAA,11/29/2017,Lower Crime,LEGAL AID FUND,STEPHENSONS SOLICITORS LLP,1359100:148516927,32143,Legal Aid Payment Lower Crime,,
MOJ,LAA,11/29/2017,Lower Crime,LEGAL AID FUND,STEPHENSONS SOLICITORS LLP,1359114:148517052,80856,Legal Aid Payment Lower Crime,,
MOJ,LAA,11/2/2017,Lower Crime,LEGAL AID FUND,STERNBERG REED SOLICITORS,1339170:148327068,33500,Legal Aid Payment Lower Crime,,
MOJ,LAA,11/2/2017,Lower Crime,LEGAL AID FUND,STEVEN YOUNG & CO INC ROWBIS,1339280:148327075,34583,Legal Aid Payment Lower Crime,,
MOJ,LAA,11/29/2017,Lower Crime,LEGAL AID FUND,STEVEN YOUNG & CO INC ROWBIS,1356807:148517201,31037,Legal Aid Payment Lower Crime,,
MOJ,LAA,11/2/2017,Lower Crime,LEGAL AID FUND,STEVENS SOLICITORS,1339804:148326975,25000,Legal Aid Payment Lower Crime,,
MOJ,LAA,11/2/2017,Lower Crime,LEGAL AID FUND,STEVENS SOLICITORS,1339806:148327172,60000,Legal Aid Payment Lower Crime,,
MOJ,LAA,11/2/2017,Lower Crime,LEGAL AID FUND,STEVENS SOLICITORS,1339807:148327150,49300,Legal Aid Payment Lower Crime,,
MOJ,LAA,11/29/2017,Lower Crime,LEGAL AID FUND,STEVENS SOLICITORS,1354004:148516586,25000,Legal Aid Payment Lower Crime,,
MOJ,LAA,11/29/2017,Lower Crime,LEGAL AID FUND,STEVENS SOLICITORS,1354006:148516580,60000,Legal Aid Payment Lower Crime,,
MOJ,LAA,11/29/2017,Lower Crime,LEGAL AID FUND,STEVENS SOLICITORS,1354007:148516579,49300,Legal Aid Payment Lower Crime,,
MOJ,LAA,11/15/2017,Higher Crime,LEGAL AID FUND,STEVENS SOLICITORS-ADVOCATE,1348559:148394638,31556.5,Legal Aid Payment Higher Crime,,
MOJ,LAA,11/22/2017,Higher Crime,LEGAL AID FUND,STOKOE PARTNERSHIP,1352799:148440237,36241.27,Legal Aid Payment Higher Crime,,
MOJ,LAA,11/22/2017,Higher Crime,LEGAL AID FUND,STRAIN & COMPANY,1349475:148456315,26898.94,Legal Aid Payment Higher Crime,,
MOJ,LAA,11/15/2017,Civil Representation,LEGAL AID FUND,STUART FULLER,1345243:3000001844230019,32076,Legal Aid Payment Civil Representation,,
MOJ,LAA,11/2/2017,Civil Representation,LEGAL AID FUND,STUART GORDON SOLICITORS,1336645:148287212,35025.19,Legal Aid Payment Civil Representation,,
MOJ,LAA,11/2/2017,Lower Crime,LEGAL AID FUND,STUART MILLER SOLICITORS LTD,1337246:148327202,108434,Legal Aid Payment Lower Crime,,
MOJ,LAA,11/8/2017,Higher Crime,LEGAL AID FUND,STUART MILLER SOLICITORS LTD,1341783:148346549,77404.46,Legal Aid Payment Higher Crime,,
MOJ,LAA,11/8/2017,Higher Crime,LEGAL AID FUND,STUART MILLER SOLICITORS LTD,1341783:148362266,105857.75,Legal Aid Payment Higher Crime,,
MOJ,LAA,11/29/2017,Lower Crime,LEGAL AID FUND,STUART MILLER SOLICITORS LTD,1354376:148516893,96139,Legal Aid Payment Lower Crime,,
MOJ,LAA,11/15/2017,Civil Representation,LEGAL AID FUND,SUSAN C CAMPBELL QC,1347588:3000001472600024,50797.2,Legal Aid Payment Civil Representation,,
MOJ,LAA,11/8/2017,Civil Representation,LEGAL AID FUND,SUSAN D GEORGE,1340910:148343457,48967.2,Legal Aid Payment Civil Representation,,
MOJ,LAA,11/22/2017,Civil Representation,LEGAL AID FUND,SUSAN D STAMFORD,1349421:3000000983480014,35993.23,Legal Aid Payment Civil Representation,,
MOJ,LAA,11/15/2017,Civil Representation,LEGAL AID FUND,SUSANNAH JONES,1346181:3000001084010008RC,-26838,Legal Aid Payment Civil Representation,,
MOJ,LAA,11/22/2017,Civil Representation,LEGAL AID FUND,SUSANNAH JONES,1349427:3000001849840007,35714.54,Legal Aid Payment Civil Representation,,
MOJ,LAA,11/15/2017,Civil Representation,LEGAL AID FUND,SUSANNAH M JOHNSON,1348708:148344041,113876.15,Legal Aid Payment Civil Representation,,
MOJ,LAA,11/2/2017,Lower Crime,LEGAL AID FUND,SUSSEX DEFENCE SOLICITORS,1339104:148326973,25000,Legal Aid Payment Lower Crime,,
MOJ,LAA,11/29/2017,Lower Crime,LEGAL AID FUND,SUSSEX DEFENCE SOLICITORS,1358207:148516518,25000,Legal Aid Payment Lower Crime,,
MOJ,LAA,11/2/2017,Legal Help,LEGAL AID FUND,SUTOVIC & HARTIGAN,1339914:148325481,34300,Legal Aid Payment Legal Help,,
MOJ,LAA,11/29/2017,Legal Help,LEGAL AID FUND,SUTOVIC & HARTIGAN,1357608:148515179,34300,Legal Aid Payment Legal Help,,
MOJ,LAA,11/2/2017,Higher Crime,LEGAL AID FUND,SVS SOLICITORS,1339064:148309067,26893.52,Legal Aid Payment Higher Crime,,
MOJ,LAA,11/8/2017,Higher Crime,LEGAL AID FUND,SVS SOLICITORS,1343493:148360930,89975.11,Legal Aid Payment Higher Crime,,
MOJ,LAA,11/15/2017,Higher Crime,LEGAL AID FUND,SVS SOLICITORS,1344508:148401782,89975.11,Legal Aid Payment Higher Crime,,
MOJ,LAA,11/2/2017,Lower Crime,LEGAL AID FUND,SWAIN & CO SOLICITORS,1339281:148327201,100000,Legal Aid Payment Lower Crime,,
MOJ,LAA,11/2/2017,Legal Help,LEGAL AID FUND,SWAIN & CO SOLICITORS,1339282:148325454,25000,Legal Aid Payment Legal Help,,
MOJ,LAA,11/8/2017,Lower Crime,LEGAL AID FUND,SWAIN & CO SOLICITORS,1343467:148383213,30467.82,Legal Aid Payment Lower Crime,,
MOJ,LAA,11/22/2017,Lower Crime,LEGAL AID FUND,SWAIN & CO SOLICITORS,1351907:148445104,32499.26,Legal Aid Payment Lower Crime,,
MOJ,LAA,11/29/2017,Lower Crime,LEGAL AID FUND,SWAIN & CO SOLICITORS,1356808:148516522,100000,Legal Aid Payment Lower Crime,,
MOJ,LAA,11/29/2017,Legal Help,LEGAL AID FUND,SWAIN & CO SOLICITORS,1356809:148515273,25000,Legal Aid Payment Legal Help,,
MOJ,LAA,11/2/2017,Legal Help,LEGAL AID FUND,SWITALSKI'S SOLICITORS LTD,1337083:148325490,43882,Legal Aid Payment Legal Help,,
MOJ,LAA,11/29/2017,Legal Help,LEGAL AID FUND,SWITALSKI'S SOLICITORS LTD,1354775:148515526,50061,Legal Aid Payment Legal Help,,
MOJ,LAA,11/29/2017,Civil Representation,LEGAL AID FUND,SWITALSKI'S SOLICITORS LTD,1355845:3000001703010003,42924,Legal Aid Payment Civil Representation,,
MOJ,LAA,11/29/2017,Civil Representation,LEGAL AID FUND,SWITALSKI'S SOLICITORS LTD,1358621:3000000808600011,27768,Legal Aid Payment Civil Representation,,
MOJ,LAA,11/2/2017,Lower Crime,LEGAL AID FUND,T S LAW LTD,1335664:148326976,25000,Legal Aid Payment Lower Crime,,
MOJ,LAA,11/2/2017,Lower Crime,LEGAL AID FUND,T S LAW LTD,1336889:148326971,25000,Legal Aid Payment Lower Crime,,
MOJ,LAA,11/29/2017,Lower Crime,LEGAL AID FUND,T S LAW LTD,1355230:148516631,25000,Legal Aid Payment Lower Crime,,
MOJ,LAA,11/29/2017,Lower Crime,LEGAL AID FUND,T S LAW LTD,1356040:148516326,25000,Legal Aid Payment Lower Crime,,
MOJ,LAA,11/2/2017,Legal Help,LEGAL AID FUND,T V EDWARDS LLP,1337180:148325502,64900,Legal Aid Payment Legal Help,,
MOJ,LAA,11/2/2017,Lower Crime,LEGAL AID FUND,T V EDWARDS LLP,1337180:148327195,85200,Legal Aid Payment Lower Crime,,
MOJ,LAA,11/8/2017,Civil Representation,LEGAL AID FUND,T V EDWARDS LLP,1341801:3000001159500024,25591.98,Legal Aid Payment Civil Representation,,
MOJ,LAA,11/29/2017,Legal Help,LEGAL AID FUND,T V EDWARDS LLP,1354038:148515158,64900,Legal Aid Payment Legal Help,,
MOJ,LAA,11/29/2017,Lower Crime,LEGAL AID FUND,T V EDWARDS LLP,1354038:148516324,85200,Legal Aid Payment Lower Crime,,
MOJ,LAA,11/22/2017,Legal Help,LEGAL AID FUND,T. A. LAW,1352103:148468876,42009.4,Legal Aid Payment Legal Help,,
MOJ,LAA,11/2/2017,Lower Crime,LEGAL AID FUND,TAIT FARRIER GRAHAM,1339650:148327024,29000,Legal Aid Payment Lower Crime,,
MOJ,LAA,11/29/2017,Lower Crime,LEGAL AID FUND,TAIT FARRIER GRAHAM,1354335:148516398,29000,Legal Aid Payment Lower Crime,,
MOJ,LAA,11/8/2017,Civil Representation,LEGAL AID FUND,TALBOTS LAW,1342856:148343819,52933.2,Legal Aid Payment Civil Representation,,
MOJ,LAA,11/15/2017,Higher Crime,LEGAL AID FUND,TAYLOR GOODCHILD LTD,1344711:148425845,44384.31,Legal Aid Payment Higher Crime,,
MOJ,LAA,11/29/2017,Lower Crime,LEGAL AID FUND,TAYLOR HALDANE BARLEX LLP,1358011:148517564,31281,Legal Aid Payment Lower Crime,,
MOJ,LAA,11/2/2017,Lower Crime,LEGAL AID FUND,TAYLOR STREET SOLICITORS LLP,1339665:148327057,32400,Legal Aid Payment Lower Crime,,
MOJ,LAA,11/29/2017,Lower Crime,LEGAL AID FUND,TAYLOR STREET SOLICITORS LLP,1354753:148516510,32400,Legal Aid Payment Lower Crime,,
MOJ,LAA,11/2/2017,Lower Crime,LEGAL AID FUND,TEESSIDE LAW LTD,1335437:148327047,31339,Legal Aid Payment Lower Crime,,
MOJ,LAA,11/29/2017,Lower Crime,LEGAL AID FUND,TEESSIDE LAW LTD,1357285:148517465,33165,Legal Aid Payment Lower Crime,,
MOJ,LAA,11/2/2017,Legal Help,LEGAL AID FUND,THALIWAL & VEJA SOLICITORS,1339319:148325476,32624,Legal Aid Payment Legal Help,,
MOJ,LAA,11/29/2017,Legal Help,LEGAL AID FUND,THALIWAL & VEJA SOLICITORS,1357128:148515727,39162,Legal Aid Payment Legal Help,,
MOJ,LAA,11/2/2017,Lower Crime,LEGAL AID FUND,THE CASTLE PARTNERSHIP,1337032:148327033,30000,Legal Aid Payment Lower Crime,,
MOJ,LAA,11/29/2017,Lower Crime,LEGAL AID FUND,THE CASTLE PARTNERSHIP,1355697:148516512,25000,Legal Aid Payment Lower Crime,,
MOJ,LAA,11/8/2017,Higher Crime,LEGAL AID FUND,THE CASTLE PARTNERSHIP-ADVOCATE,1342626:148347597,38292.55,Legal Aid Payment Higher Crime,,
MOJ,LAA,11/22/2017,Higher Crime,LEGAL AID FUND,THE CENTRAL LAW PRACTICE,1351144:148441339,26778.37,Legal Aid Payment Higher Crime,,
MOJ,LAA,11/22/2017,Legal Help,LEGAL AID FUND,THE COMMUNITY LAW PARTNERSHIP LTD,1351340:148452465,36147.06,Legal Aid Payment Legal Help,,
MOJ,LAA,11/7/2017,Civil Representation,LEGAL AID FUND,THE HONOURABLE MR JUSTICE MACDONALD,1340179:147579717,38124,Legal Aid Payment Civil Representation,,
MOJ,LAA,11/7/2017,Civil Representation,LEGAL AID FUND,THE HONOURABLE MR JUSTICE MACDONALD,1340179:147579719,-49212,Legal Aid Payment Civil Representation,,
MOJ,LAA,11/2/2017,Lower Crime,LEGAL AID FUND,THE JOHNSON PARTNERSHIP,1335443:148326977,25000,Legal Aid Payment Lower Crime,,
MOJ,LAA,11/2/2017,Lower Crime,LEGAL AID FUND,THE JOHNSON PARTNERSHIP,1336512:148327122,40600,Legal Aid Payment Lower Crime,,
MOJ,LAA,11/2/2017,Lower Crime,LEGAL AID FUND,THE JOHNSON PARTNERSHIP,1337011:148327137,44000,Legal Aid Payment Lower Crime,,
MOJ,LAA,11/2/2017,Lower Crime,LEGAL AID FUND,THE JOHNSON PARTNERSHIP,1337012:148327058,32500,Legal Aid Payment Lower Crime,,
MOJ,LAA,11/2/2017,Lower Crime,LEGAL AID FUND,THE JOHNSON PARTNERSHIP,1337013:148327205,190000,Legal Aid Payment Lower Crime,,
MOJ,LAA,11/15/2017,Lower Crime,LEGAL AID FUND,THE JOHNSON PARTNERSHIP,1347704:148398225,28635.65,Legal Aid Payment Lower Crime,,
MOJ,LAA,11/29/2017,Lower Crime,LEGAL AID FUND,THE JOHNSON PARTNERSHIP,1355394:148516243,44000,Legal Aid Payment Lower Crime,,
MOJ,LAA,11/29/2017,Lower Crime,LEGAL AID FUND,THE JOHNSON PARTNERSHIP,1355395:148516242,32500,Legal Aid Payment Lower Crime,,
MOJ,LAA,11/29/2017,Lower Crime,LEGAL AID FUND,THE JOHNSON PARTNERSHIP,1355396:148516241,190000,Legal Aid Payment Lower Crime,,
MOJ,LAA,11/29/2017,Lower Crime,LEGAL AID FUND,THE JOHNSON PARTNERSHIP,1357293:148516638,25000,Legal Aid Payment Lower Crime,,
MOJ,LAA,11/29/2017,Lower Crime,LEGAL AID FUND,THE JOHNSON PARTNERSHIP,1359007:148516622,40600,Legal Aid Payment Lower Crime,,
MOJ,LAA,11/15/2017,Higher Crime,LEGAL AID FUND,THE RINGROSE LAW,1347524:148393782,52029.77,Legal Aid Payment Higher Crime,,
MOJ,LAA,11/30/2017,Civil Representation,LEGAL AID FUND,THE ROLAND PARTNERSHIP,1359332:2000000000004888,39507.85,Legal Aid Payment Civil Representation,,
MOJ,LAA,11/2/2017,Higher Crime,LEGAL AID FUND,THOMAS BOYD WHYTE,1337506:148308405,89975.11,Legal Aid Payment Higher Crime,,
MOJ,LAA,11/2/2017,Lower Crime,LEGAL AID FUND,THOMAS BOYD WHYTE,1337506:148327106,38539,Legal Aid Payment Lower Crime,,
MOJ,LAA,11/2/2017,Higher Crime,LEGAL AID FUND,THOMAS BOYD WHYTE,1337506:148327496,82029.89,Legal Aid Payment Higher Crime,,
MOJ,LAA,11/2/2017,Higher Crime,LEGAL AID FUND,THOMAS BOYD WHYTE,1337506:148328362,36077.02,Legal Aid Payment Higher Crime,,
MOJ,LAA,11/22/2017,Higher Crime,LEGAL AID FUND,THOMAS BOYD WHYTE,1352720:148440065,89210.03,Legal Aid Payment Higher Crime,,
MOJ,LAA,11/29/2017,Lower Crime,LEGAL AID FUND,THOMAS BOYD WHYTE,1357573:148516853,35971,Legal Aid Payment Lower Crime,,
MOJ,LAA,11/29/2017,Higher Crime,LEGAL AID FUND,THOMAS M C ALLEN,1356720:148493000,57597.29,Legal Aid Payment Higher Crime,,
MOJ,LAA,11/29/2017,Higher Crime,LEGAL AID FUND,THOMAS PRICE QC,1355011:148511655,73920,Legal Aid Payment Higher Crime,,
MOJ,LAA,11/2/2017,Higher Crime,LEGAL AID FUND,THOMPSON & CO SOLICITORS LTD,1339794:148327507,81154.13,Legal Aid Payment Higher Crime,,
MOJ,LAA,11/29/2017,Legal Help,LEGAL AID FUND,THOMPSON & CO SOLICITORS LTD,1353994:148515162,32600,Legal Aid Payment Legal Help,,
MOJ,LAA,11/8/2017,Higher Crime,LEGAL AID FUND,TIMOTHY E CLARK,1340943:148379676,69581.15,Legal Aid Payment Higher Crime,,
MOJ,LAA,11/9/2017,Civil Representation,LEGAL AID FUND,TIMOTHY J OTTY QC,1344280:147346090,-30550,Legal Aid Payment Civil Representation,,
MOJ,LAA,11/9/2017,Civil Representation,LEGAL AID FUND,TIMOTHY J OTTY QC,1344280:2000000000004683,33115,Legal Aid Payment Civil Representation,,
MOJ,LAA,11/22/2017,Civil Representation,LEGAL AID FUND,TIMOTHY J OTTY QC,256708:148474063,30550,Legal Aid Payment Civil Representation,,
MOJ,LAA,11/29/2017,Higher Crime,LEGAL AID FUND,TOMAS P MCGARVEY,1355228:148478492,33052.42,Legal Aid Payment Higher Crime,,
MOJ,LAA,11/15/2017,Civil Representation,LEGAL AID FUND,TOZERS LLP,1344372:9627491,49032.77,Legal Aid Payment Civil Representation,,
MOJ,LAA,11/2/2017,Lower Crime,LEGAL AID FUND,TRANTERS SOLICITORS LTD,1339501:148327041,30600,Legal Aid Payment Lower Crime,,
MOJ,LAA,11/8/2017,Higher Crime,LEGAL AID FUND,TRANTERS SOLICITORS LTD,1342538:148347506,28813.57,Legal Aid Payment Higher Crime,,
MOJ,LAA,11/29/2017,Lower Crime,LEGAL AID FUND,TRANTERS SOLICITORS LTD,1356002:148516488,30600,Legal Aid Payment Lower Crime,,
MOJ,LAA,11/8/2017,Higher Crime,LEGAL AID FUND,TRAYMANS LLP SOLICITORS,1341779:148380451,30102.28,Legal Aid Payment Higher Crime,,
MOJ,LAA,11/8/2017,Higher Crime,LEGAL AID FUND,TRINITY ADVOCATES,1343525:148379647,27108.14,Legal Aid Payment Higher Crime,,
MOJ,LAA,11/2/2017,Lower Crime,LEGAL AID FUND,TUCKERS SOLICITORS LLP,1337243:148327203,130300,Legal Aid Payment Lower Crime,,
MOJ,LAA,11/2/2017,Lower Crime,LEGAL AID FUND,TUCKERS SOLICITORS LLP,1337244:148327204,177200,Legal Aid Payment Lower Crime,,
MOJ,LAA,11/2/2017,Higher Crime,LEGAL AID FUND,TUCKERS SOLICITORS LLP,1337244:148327494,129088.88,Legal Aid Payment Higher Crime,,
MOJ,LAA,11/2/2017,Lower Crime,LEGAL AID FUND,TUCKERS SOLICITORS LLP,1337705:148327091,36637,Legal Aid Payment Lower Crime,,
MOJ,LAA,11/2/2017,Lower Crime,LEGAL AID FUND,TUCKERS SOLICITORS LLP,1337870:148327007,27400,Legal Aid Payment Lower Crime,,
MOJ,LAA,11/2/2017,Lower Crime,LEGAL AID FUND,TUCKERS SOLICITORS LLP,1339126:148327176,61100,Legal Aid Payment Lower Crime,,
MOJ,LAA,11/2/2017,Higher Crime,LEGAL AID FUND,TUCKERS SOLICITORS LLP,1339126:148327473,48237.25,Legal Aid Payment Higher Crime,,
MOJ,LAA,11/15/2017,Lower Crime,LEGAL AID FUND,TUCKERS SOLICITORS LLP,1345558:148429515,39000,Legal Aid Payment Lower Crime,,
MOJ,LAA,11/22/2017,Higher Crime,LEGAL AID FUND,TUCKERS SOLICITORS LLP,1349576:148432564,54641.08,Legal Aid Payment Higher Crime,,
MOJ,LAA,11/22/2017,Higher Crime,LEGAL AID FUND,TUCKERS SOLICITORS LLP,1349779:148440924,39803.52,Legal Aid Payment Higher Crime,,
MOJ,LAA,11/29/2017,Lower Crime,LEGAL AID FUND,TUCKERS SOLICITORS LLP,1354372:148516487,130300,Legal Aid Payment Lower Crime,,
MOJ,LAA,11/29/2017,Lower Crime,LEGAL AID FUND,TUCKERS SOLICITORS LLP,1354373:148516337,90000,Legal Aid Payment Lower Crime,,
MOJ,LAA,11/29/2017,Lower Crime,LEGAL AID FUND,TUCKERS SOLICITORS LLP,1357329:148516639,27400,Legal Aid Payment Lower Crime,,
MOJ,LAA,11/29/2017,Higher Crime,LEGAL AID FUND,TUCKERS SOLICITORS LLP,1357998:148478581,31862.28,Legal Aid Payment Higher Crime,,
MOJ,LAA,11/29/2017,Lower Crime,LEGAL AID FUND,TUCKERS SOLICITORS LLP,1358612:148516341,61100,Legal Aid Payment Lower Crime,,
MOJ,LAA,11/29/2017,Lower Crime,LEGAL AID FUND,TUCKERS SOLICITORS LLP,1358838:148517568,32494,Legal Aid Payment Lower Crime,,
MOJ,LAA,11/2/2017,Legal Help,LEGAL AID FUND,TURPIN & MILLER LLP,1336860:148325478,33822,Legal Aid Payment Legal Help,,
MOJ,LAA,11/29/2017,Legal Help,LEGAL AID FUND,TURPIN & MILLER LLP,1356856:148515781,39949,Legal Aid Payment Legal Help,,
MOJ,LAA,11/2/2017,Lower Crime,LEGAL AID FUND,USMANI KING LTD,1336859:148327160,53696,Legal Aid Payment Lower Crime,,
MOJ,LAA,11/22/2017,Higher Crime,LEGAL AID FUND,USMANI KING LTD,1351336:148471733,29684.23,Legal Aid Payment Higher Crime,,
MOJ,LAA,11/29/2017,Lower Crime,LEGAL AID FUND,USMANI KING LTD,1356855:148516779,59204,Legal Aid Payment Lower Crime,,
MOJ,LAA,11/15/2017,Higher Crime,LEGAL AID FUND,USMANI KING LTD-ADVOCATE,1348420:148410442,37957.8,Legal Aid Payment Higher Crime,,
MOJ,LAA,11/15/2017,Higher Crime,LEGAL AID FUND,USMANI KING LTD-ADVOCATE,1348420:148410454,25163.88,Legal Aid Payment Higher Crime,,
MOJ,LAA,11/2/2017,Civil Representation,LEGAL AID FUND,VENTERS SOLICITORS,1339085:3000000998250019,25261.54,Legal Aid Payment Civil Representation,,
MOJ,LAA,11/2/2017,Lower Crime,LEGAL AID FUND,VHS FLETCHERS,1336990:148327188,72100,Legal Aid Payment Lower Crime,,
MOJ,LAA,11/2/2017,Lower Crime,LEGAL AID FUND,VHS FLETCHERS,1339063:148327060,32700,Legal Aid Payment Lower Crime,,
MOJ,LAA,11/29/2017,Lower Crime,LEGAL AID FUND,VHS FLETCHERS,1355468:148516244,72100,Legal Aid Payment Lower Crime,,
MOJ,LAA,11/29/2017,Lower Crime,LEGAL AID FUND,VHS FLETCHERS,1358645:148516246,32700,Legal Aid Payment Lower Crime,,
MOJ,LAA,11/29/2017,Lower Crime,LEGAL AID FUND,VICKERS & CO,1353951:148516911,27320,Legal Aid Payment Lower Crime,,
MOJ,LAA,11/2/2017,Lower Crime,LEGAL AID FUND,VICKERS CHISMAN & WISHLADE,1337105:148327173,60200,Legal Aid Payment Lower Crime,,
MOJ,LAA,11/29/2017,Lower Crime,LEGAL AID FUND,VICKERS CHISMAN & WISHLADE,1354699:148516374,60200,Legal Aid Payment Lower Crime,,
MOJ,LAA,11/15/2017,Higher Crime,LEGAL AID FUND,VICTOR CLIFFORD SOLICITORS,1344767:148402326,69664.38,Legal Aid Payment Higher Crime,,
MOJ,LAA,11/29/2017,Civil Representation,LEGAL AID FUND,VICTORIA M MILLER,1356679:148343774,34920,Legal Aid Payment Civil Representation,,
MOJ,LAA,11/29/2017,Civil Representation,LEGAL AID FUND,VICTORIA M MILLER,1356679:148350470,-34530.26,Legal Aid Payment Civil Representation,,
MOJ,LAA,11/2/2017,Lower Crime,LEGAL AID FUND,VYMAN SOLICITORS LTD,1339254:148327036,30000,Legal Aid Payment Lower Crime,,
MOJ,LAA,11/22/2017,Higher Crime,LEGAL AID FUND,VYMAN SOLICITORS LTD,1351376:148449255,68412.53,Legal Aid Payment Higher Crime,,
MOJ,LAA,11/29/2017,Lower Crime,LEGAL AID FUND,VYMAN SOLICITORS LTD,1357159:148517115,36385,Legal Aid Payment Lower Crime,,
MOJ,LAA,11/29/2017,Lower Crime,LEGAL AID FUND,W BROOK & CO LTD,1357126:148516414,31000,Legal Aid Payment Lower Crime,,
MOJ,LAA,11/2/2017,Lower Crime,LEGAL AID FUND,W M B LAW LTD,1336946:148327076,34631,Legal Aid Payment Lower Crime,,
MOJ,LAA,11/29/2017,Civil Representation,LEGAL AID FUND,WACE MORGAN SOLICITORS,1358288:3000000554350029,26491.65,Legal Aid Payment Civil Representation,,
MOJ,LAA,11/29/2017,Higher Crime,LEGAL AID FUND,WADDINGTON & SON,1354025:148487005,25867.34,Legal Aid Payment Higher Crime,,
MOJ,LAA,11/2/2017,Lower Crime,LEGAL AID FUND,WAINWRIGHT & CUMMINS LLP,1336766:148327130,42000,Legal Aid Payment Lower Crime,,
MOJ,LAA,11/29/2017,Lower Crime,LEGAL AID FUND,WAINWRIGHT & CUMMINS LLP,1357478:148516348,42000,Legal Aid Payment Lower Crime,,
MOJ,LAA,11/8/2017,Higher Crime,LEGAL AID FUND,WALKERS SOLICITORS LIMITED,1341641:148347181,52438.37,Legal Aid Payment Higher Crime,,
MOJ,LAA,11/2/2017,Higher Crime,LEGAL AID FUND,WALSH SOLICITORS LTD,1337834:148327505,83675.98,Legal Aid Payment Higher Crime,,
MOJ,LAA,11/2/2017,Civil Representation,LEGAL AID FUND,WANNOPS LLP,1337475:3000000962210034,34788.58,Legal Aid Payment Civil Representation,,
MOJ,LAA,11/2/2017,Lower Crime,LEGAL AID FUND,WANNOPS LLP,1339053:148327134,42834,Legal Aid Payment Lower Crime,,
MOJ,LAA,11/29/2017,Lower Crime,LEGAL AID FUND,WANNOPS LLP,1353916:148517424,42715,Legal Aid Payment Lower Crime,,
MOJ,LAA,11/22/2017,Civil Representation,LEGAL AID FUND,WARD HADAWAY,1349819:3000001215660013,26470.59,Legal Aid Payment Civil Representation,,
MOJ,LAA,11/15/2017,Higher Crime,LEGAL AID FUND,WARWICK I G ALEESON,1347449:148401148,25227.3,Legal Aid Payment Higher Crime,,
MOJ,LAA,11/15/2017,Higher Crime,LEGAL AID FUND,WARWICK VESEY'S,1344538:148425584,81272.04,Legal Aid Payment Higher Crime,,
MOJ,LAA,11/29/2017,Lower Crime,LEGAL AID FUND,WATERS MOORE AT THE LAW CHAMBER,1358236:148517175,27079,Legal Aid Payment Lower Crime,,
MOJ,LAA,11/2/2017,Lower Crime,LEGAL AID FUND,WATSON WOODHOUSE SOLICITORS LLP,1337236:148326996,26500,Legal Aid Payment Lower Crime,,
MOJ,LAA,11/2/2017,Lower Crime,LEGAL AID FUND,WATSON WOODHOUSE SOLICITORS LLP,1337238:148327023,29000,Legal Aid Payment Lower Crime,,
MOJ,LAA,11/2/2017,Higher Crime,LEGAL AID FUND,WATSON WOODHOUSE SOLICITORS LLP,1337238:148327538,68560.95,Legal Aid Payment Higher Crime,,
MOJ,LAA,11/29/2017,Lower Crime,LEGAL AID FUND,WATSON WOODHOUSE SOLICITORS LLP,1354365:148516379,26500,Legal Aid Payment Lower Crime,,
MOJ,LAA,11/29/2017,Higher Crime,LEGAL AID FUND,WATSON WOODHOUSE SOLICITORS LLP,1354367:148479162,74102.01,Legal Aid Payment Higher Crime,,
MOJ,LAA,11/29/2017,Lower Crime,LEGAL AID FUND,WATSON WOODHOUSE SOLICITORS LLP,1354367:148516375,29000,Legal Aid Payment Lower Crime,,
MOJ,LAA,11/15/2017,Higher Crime,LEGAL AID FUND,WAYNE T JACKSON,1346523:148402642,28476.24,Legal Aid Payment Higher Crime,,
MOJ,LAA,11/8/2017,Lower Crime,LEGAL AID FUND,WBW SOLICITORS LLP,1340632:148358466,-27593,Legal Aid Payment Lower Crime,,
MOJ,LAA,11/8/2017,Legal Help,LEGAL AID FUND,WBW SOLICITORS LLP,1340632:148358467,31861,Legal Aid Payment Legal Help,,
MOJ,LAA,11/15/2017,Civil Representation,LEGAL AID FUND,WBW SOLICITORS LLP,1346336:148399417,32836.64,Legal Aid Payment Civil Representation,,
MOJ,LAA,11/22/2017,Civil Representation,LEGAL AID FUND,WBW SOLICITORS LLP,1353025:148446100,33265.64,Legal Aid Payment Civil Representation,,
MOJ,LAA,11/22/2017,Civil Representation,LEGAL AID FUND,WBW SOLICITORS LLP,1353025:148446114,-32836.64,Legal Aid Payment Civil Representation,,
MOJ,LAA,11/2/2017,Lower Crime,LEGAL AID FUND,WELLS BURCOMBE LLP,1336457:148327158,52644,Legal Aid Payment Lower Crime,,
MOJ,LAA,11/2/2017,Higher Crime,LEGAL AID FUND,WELLS BURCOMBE LLP,1336457:148327500,101959.87,Legal Aid Payment Higher Crime,,
MOJ,LAA,11/2/2017,Lower Crime,LEGAL AID FUND,WELLS BURCOMBE LLP,1339132:148327148,47177,Legal Aid Payment Lower Crime,,
MOJ,LAA,11/29/2017,Lower Crime,LEGAL AID FUND,WELLS BURCOMBE LLP,1353879:148517351,49095,Legal Aid Payment Lower Crime,,
MOJ,LAA,11/29/2017,Lower Crime,LEGAL AID FUND,WELLS BURCOMBE LLP,1358618:148516774,79272,Legal Aid Payment Lower Crime,,
MOJ,LAA,11/2/2017,Lower Crime,LEGAL AID FUND,WESSEX SOLICITORS CHAMBERS,1336532:148327192,77100,Legal Aid Payment Lower Crime,,
MOJ,LAA,11/29/2017,Lower Crime,LEGAL AID FUND,WESSEX SOLICITORS CHAMBERS,1358578:148516617,77100,Legal Aid Payment Lower Crime,,
MOJ,LAA,11/29/2017,Higher Crime,LEGAL AID FUND,WEST MIDLANDS SOLICITORS,1357430:148479098,39515.86,Legal Aid Payment Higher Crime,,
MOJ,LAA,11/22/2017,Higher Crime,LEGAL AID FUND,WESTGARTHS,1351356:148471562,34395.13,Legal Aid Payment Higher Crime,,
MOJ,LAA,11/29/2017,Civil Representation,LEGAL AID FUND,WHELTONS,1358247:148063763,29109.21,Legal Aid Payment Civil Representation,,
MOJ,LAA,11/22/2017,Civil Representation,LEGAL AID FUND,WHISKERS LLP SOLICITORS & NOTARIES,1350617:3000001336740025,30144.08,Legal Aid Payment Civil Representation,,
MOJ,LAA,11/15/2017,Higher Crime,LEGAL AID FUND,WHITELOCK & STORR,1345752:148402383,58197.68,Legal Aid Payment Higher Crime,,
MOJ,LAA,11/29/2017,Higher Crime,LEGAL AID FUND,WHITELOCK & STORR,1357219:148500251,89975.11,Legal Aid Payment Higher Crime,,
MOJ,LAA,11/2/2017,Higher Crime,LEGAL AID FUND,WILFORD SMITH & CO LTD,1339297:148327493,38272.56,Legal Aid Payment Higher Crime,,
MOJ,LAA,11/15/2017,Civil Representation,LEGAL AID FUND,WILKINSON WOODWARD.,1347872:3000001454820010,34351.51,Legal Aid Payment Civil Representation,,
MOJ,LAA,11/2/2017,Lower Crime,LEGAL AID FUND,WILLIAMSONS SOLICITORS LTD,1339632:148327128,41600,Legal Aid Payment Lower Crime,,
MOJ,LAA,11/29/2017,Lower Crime,LEGAL AID FUND,WILLIAMSONS SOLICITORS LTD,1354317:148516437,41600,Legal Aid Payment Lower Crime,,
MOJ,LAA,11/22/2017,Civil Representation,LEGAL AID FUND,WILSON BROWNE LLP,1350027:3000001158320015RC,-30194.27,Legal Aid Payment Civil Representation,,
MOJ,LAA,11/22/2017,Civil Representation,LEGAL AID FUND,WILSON BROWNE LLP,1350027:3000001158320019,43117.15,Legal Aid Payment Civil Representation,,
MOJ,LAA,11/2/2017,Lower Crime,LEGAL AID FUND,WILSON DEVONALD GRIFFITHS JOHN,1339520:148327141,45000,Legal Aid Payment Lower Crime,,
MOJ,LAA,11/29/2017,Lower Crime,LEGAL AID FUND,WILSON DEVONALD GRIFFITHS JOHN,1356021:148516219,45000,Legal Aid Payment Lower Crime,,
MOJ,LAA,11/2/2017,Legal Help,LEGAL AID FUND,WILSON SOLICITORS LLP,1336930:148325505,70000,Legal Aid Payment Legal Help,,
MOJ,LAA,11/29/2017,Legal Help,LEGAL AID FUND,WILSON SOLICITORS LLP,1355985:148515151,70000,Legal Aid Payment Legal Help,,
MOJ,LAA,11/29/2017,Legal Help,LEGAL AID FUND,WILSON SOLICITORS LLP,1356955:148516115,34393,Legal Aid Payment Legal Help,,
MOJ,LAA,11/29/2017,Legal Help,LEGAL AID FUND,WIMBLEDON SOLICITORS,1358649:148515795,43387,Legal Aid Payment Legal Help,,
MOJ,LAA,11/2/2017,Legal Help,LEGAL AID FUND,WOLTON & CO,1336721:148325487,41335,Legal Aid Payment Legal Help,,
MOJ,LAA,11/29/2017,Legal Help,LEGAL AID FUND,WOLTON & CO,1357093:148515347,27888,Legal Aid Payment Legal Help,,
MOJ,LAA,11/2/2017,Higher Crime,LEGAL AID FUND,WOODS SOLICITORS,1339240:148303276,35167.69,Legal Aid Payment Higher Crime,,
MOJ,LAA,11/22/2017,Higher Crime,LEGAL AID FUND,WOOLFE & CO SOLICITORS LTD,1349895:148471183,71574.26,Legal Aid Payment Higher Crime,,
MOJ,LAA,11/22/2017,Higher Crime,LEGAL AID FUND,YATES ARDERN,1349531:148440384,26330.34,Legal Aid Payment Higher Crime,,
MOJ,LAA,11/22/2017,Higher Crime,LEGAL AID FUND,YOUNG SWISTAK,1350897:148472141,30749.93,Legal Aid Payment Higher Crime,,
MOJ,LAA,11/29/2017,Higher Crime,LEGAL AID FUND,ZAFAR ALI,1356158:148493714,47364.9,Legal Aid Payment Higher Crime,,
MOJ,LAA,11/2/2017,Higher Crime,LEGAL AID FUND,ZMS LEGAL LTD TA ZMS SOLICITORS,1336661:148329133,105857.75,Legal Aid Payment Higher Crime,,
